Workbook

Sheet Rank of top medaling nations
C2: 3 | D2: 2 | E2: 1
C3: Gold | D3: Silver | E3: Bronze | F3: Points | G3: Match GDP | H3: GDP ($M) | I3: GDP $T | J3: Pts/$T GDP
A4: 1 | B4: United States | C4: 46 | D4: 37 | E4: 38 | F4: =SUMPRODUCT(C4:E4,$C$2:$E$2) -> 250 | G4: =MATCH(B4, 'GDP-2016'!$C$3:$C$197,0) -> 1 | H4: =OFFSET('GDP-2016'!$D$2,G4,0) -> 17946996 | I4: =H4/1000/1000 -> 17.946996 | J4: =F4/I4 -> 13.92990782
A5: 2 | B5: Great Britain | C5: 27 | D5: 23 | E5: 17 | F5: =SUMPRODUCT(C5:E5,$C$2:$E$2) -> 144 | G5: =MATCH(B5, 'GDP-2016'!$C$3:$C$197,0) -> 5 | H5: =OFFSET('GDP-2016'!$D$2,G5,0) -> 2848755 | I5: =H5/1000/1000 -> 2.848755 | J5: =F5/I5 -> 50.54839746
A6: 3 | B6: China | C6: 26 | D6: 18 | E6: 26 | F6: =SUMPRODUCT(C6:E6,$C$2:$E$2) -> 140 | G6: =MATCH(B6, 'GDP-2016'!$C$3:$C$197,0) -> 2 | H6: =OFFSET('GDP-2016'!$D$2,G6,0) -> 10866444 | I6: 10.866444 | J6: 12.88369958
A7: 4 | B7: Russia | C7: 19 | D7: 18 | E7: 19 | F7: =SUMPRODUCT(C7:E7,$C$2:$E$2) -> 112 | G7: =MATCH(B7, 'GDP-2016'!$C$3:$C$197,0) -> 13 | H7: =OFFSET('GDP-2016'!$D$2,G7,0) -> 1326015 | I7: 1.326015 | J7: 84.46359958
A8: 5 | B8: Germany | C8: 17 | D8: 10 | E8: 15 | F8: =SUMPRODUCT(C8:E8,$C$2:$E$2) -> 86 | G8: =MATCH(B8, 'GDP-2016'!$C$3:$C$197,0) -> 4 | H8: =OFFSET('GDP-2016'!$D$2,G8,0) -> 3355772 | I8: 3.355772 | J8: 25.62748602
A9: 6 | B9: Japan | C9: 12 | D9: 8 | E9: 21 | F9: =SUMPRODUCT(C9:E9,$C$2:$E$2) -> 73 | G9: =MATCH(B9, 'GDP-2016'!$C$3:$C$197,0) -> 3 | H9: =OFFSET('GDP-2016'!$D$2,G9,0) -> 4123258 | I9: 4.123258 | J9: 17.70444634
A10: 7 | B10: France | C10: 10 | D10: 18 | E10: 14 | F10: =SUMPRODUCT(C10:E10,$C$2:$E$2) -> 80 | G10: =MATCH(B10, 'GDP-2016'!$C$3:$C$197,0) -> 6 | H10: =OFFSET('GDP-2016'!$D$2,G10,0) -> 2421682 | I10: 2.421682 | J10: 33.03489063
A11: 8 | B11: South Korea | C11: 9 | D11: 3 | E11: 9 | F11: =SUMPRODUCT(C11:E11,$C$2:$E$2) -> 42 | G11: =MATCH(B11, 'GDP-2016'!$C$3:$C$197,0) -> 11 | H11: =OFFSET('GDP-2016'!$D$2,G11,0) -> 1377873 | I11: 1.377873 | J11: 30.48176428
A12: 9 | B12: Italy | C12: 8 | D12: 12 | E12: 8 | F12: =SUMPRODUCT(C12:E12,$C$2:$E$2) -> 56 | G12: =MATCH(B12, 'GDP-2016'!$C$3:$C$197,0) -> 8 | H12: =OFFSET('GDP-2016'!$D$2,G12,0) -> 1814763 | I12: 1.814763 | J12: 30.85802389
A13: 10 | B13: Australia | C13: 8 | D13: 11 | E13: 10 | F13: =SUMPRODUCT(C13:E13,$C$2:$E$2) -> 56 | G13: =MATCH(B13, 'GDP-2016'!$C$3:$C$197,0) -> 12 | H13: =OFFSET('GDP-2016'!$D$2,G13,0) -> 1339539 | I13: 1.339539 | J13: 41.80542709
A14: 11 | B14: Netherlands | C14: 8 | D14: 7 | E14: 4 | F14: =SUMPRODUCT(C14:E14,$C$2:$E$2) -> 42 | G14: =MATCH(B14, 'GDP-2016'!$C$3:$C$197,0) -> 17 | H14: =OFFSET('GDP-2016'!$D$2,G14,0) -> 752547 | I14: 0.752547 | J14: 55.81046765
A15: 12 | B15: Hungary | C15: 8 | D15: 3 | E15: 4 | F15: =SUMPRODUCT(C15:E15,$C$2:$E$2) -> 34 | G15: =MATCH(B15, 'GDP-2016'!$C$3:$C$197,0) -> 57 | H15: =OFFSET('GDP-2016'!$D$2,G15,0) -> 120687 | I15: 0.120687 | J15: 281.7204836
A16: 13 | B16: Brazil | C16: 7 | D16: 6 | E16: 6 | F16: =SUMPRODUCT(C16:E16,$C$2:$E$2) -> 39 | G16: =MATCH(B16, 'GDP-2016'!$C$3:$C$197,0) -> 9 | H16: =OFFSET('GDP-2016'!$D$2,G16,0) -> 1774725 | I16: 1.774725 | J16: 21.9752356
A17: 14 | B17: Spain | C17: 7 | D17: 4 | E17: 6 | F17: =SUMPRODUCT(C17:E17,$C$2:$E$2) -> 35 | G17: =MATCH(B17, 'GDP-2016'!$C$3:$C$197,0) -> 14 | H17: =OFFSET('GDP-2016'!$D$2,G17,0) -> 1199057 | I17: 1.199057 | J17: 29.18960483
A18: 15 | B18: Kenya | C18: 6 | D18: 6 | E18: 1 | F18: =SUMPRODUCT(C18:E18,$C$2:$E$2) -> 31 | G18: =MATCH(B18, 'GDP-2016'!$C$3:$C$197,0) -> 73 | H18: =OFFSET('GDP-2016'!$D$2,G18,0) -> 63398 | I18: 0.063398 | J18: 488.9744156
A19: 16 | B19: Jamaica | C19: 6 | D19: 3 | E19: 2 | F19: =SUMPRODUCT(C19:E19,$C$2:$E$2) -> 26 | G19: =MATCH(B19, 'GDP-2016'!$C$3:$C$197,0) -> 125 | H19: =OFFSET('GDP-2016'!$D$2,G19,0) -> 13891 | I19: 0.013891 | J19: 1871.715499
A20: 17 | B20: Croatia | C20: 5 | D20: 3 | E20: 2 | F20: =SUMPRODUCT(C20:E20,$C$2:$E$2) -> 23 | G20: =MATCH(B20, 'GDP-2016'!$C$3:$C$197,0) -> 82 | H20: =OFFSET('GDP-2016'!$D$2,G20,0) -> 48732 | I20: 0.048732 | J20: 471.9691373
A21: 18 | B21: Cuba | C21: 5 | D21: 2 | E21: 4 | F21: =SUMPRODUCT(C21:E21,$C$2:$E$2) -> 23 | G21: =MATCH(B21, 'GDP-2016'!$C$3:$C$197,0) -> 67 | H21: =OFFSET('GDP-2016'!$D$2,G21,0) -> 77150 | I21: 0.07715 | J21: 298.1205444
A22: 19 | B22: New Zealand | C22: 4 | D22: 9 | E22: 5 | F22: =SUMPRODUCT(C22:E22,$C$2:$E$2) -> 35 | G22: =MATCH(B22, 'GDP-2016'!$C$3:$C$197,0) -> 53 | H22: =OFFSET('GDP-2016'!$D$2,G22,0) -> 173754 | I22: 0.173754 | J22: 201.4342116
A23: 20 | B23: Canada | C23: 4 | D23: 3 | E23: 15 | F23: =SUMPRODUCT(C23:E23,$C$2:$E$2) -> 33 | G23: =MATCH(B23, 'GDP-2016'!$C$3:$C$197,0) -> 10 | H23: =OFFSET('GDP-2016'!$D$2,G23,0) -> 1550537 | I23: 1.550537 | J23: 21.28294907
A24: 21 | B24: Uzbekistan | C24: 4 | D24: 2 | E24: 7 | F24: =SUMPRODUCT(C24:E24,$C$2:$E$2) -> 23 | G24: =MATCH(B24, 'GDP-2016'!$C$3:$C$197,0) -> 70 | H24: =OFFSET('GDP-2016'!$D$2,G24,0) -> 66733 | I24: 0.066733 | J24: 344.6570662
A25: 22 | B25: Kazakhstan | C25: 3 | D25: 5 | E25: 9 | F25: =SUMPRODUCT(C25:E25,$C$2:$E$2) -> 28 | G25: =MATCH(B25, 'GDP-2016'!$C$3:$C$197,0) -> 50 | H25: =OFFSET('GDP-2016'!$D$2,G25,0) -> 184361 | I25: 0.184361 | J25: 151.8759391
A26: 23 | B26: Colombia | C26: 3 | D26: 2 | E26: 3 | F26: =SUMPRODUCT(C26:E26,$C$2:$E$2) -> 16 | G26: =MATCH(B26, 'GDP-2016'!$C$3:$C$197,0) -> 39 | H26: =OFFSET('GDP-2016'!$D$2,G26,0) -> 292080 | I26: 0.29208 | J26: 54.77951246
A27: 24 | B27: Switzerland | C27: 3 | D27: 2 | E27: 2 | F27: =SUMPRODUCT(C27:E27,$C$2:$E$2) -> 15 | G27: =MATCH(B27, 'GDP-2016'!$C$3:$C$197,0) -> 19 | H27: =OFFSET('GDP-2016'!$D$2,G27,0) -> 664738 | I27: 0.664738 | J27: 22.56528136
A28: 25 | B28: Iran | C28: 3 | D28: 1 | E28: 4 | F28: =SUMPRODUCT(C28:E28,$C$2:$E$2) -> 15 | G28: =MATCH(B28, 'GDP-2016'!$C$3:$C$197,0) -> 26 | H28: =OFFSET('GDP-2016'!$D$2,G28,0) -> 425326 | I28: 0.425326 | J28: 35.26706573
A29: 26 | B29: Greece | C29: 3 | D29: 1 | E29: 2 | F29: =SUMPRODUCT(C29:E29,$C$2:$E$2) -> 13 | G29: =MATCH(B29, 'GDP-2016'!$C$3:$C$197,0) -> 46 | H29: =OFFSET('GDP-2016'!$D$2,G29,0) -> 195212 | I29: 0.195212 | J29: 66.59426675
A30: 27 | B30: Argentina | C30: 3 | D30: 1 | E30: 0 | F30: =SUMPRODUCT(C30:E30,$C$2:$E$2) -> 11 | G30: =MATCH(B30, 'GDP-2016'!$C$3:$C$197,0) -> 21 | H30: =OFFSET('GDP-2016'!$D$2,G30,0) -> 548055 | I30: 0.548055 | J30: 20.07097828
A31: 28 | B31: Denmark | C31: 2 | D31: 6 | E31: 7 | F31: =SUMPRODUCT(C31:E31,$C$2:$E$2) -> 25 | G31: =MATCH(B31, 'GDP-2016'!$C$3:$C$197,0) -> 37 | H31: =OFFSET('GDP-2016'!$D$2,G31,0) -> 295164 | I31: 0.295164 | J31: 84.69867599
A32: 29 | B32: Sweden | C32: 2 | D32: 6 | E32: 3 | F32: =SUMPRODUCT(C32:E32,$C$2:$E$2) -> 21 | G32: =MATCH(B32, 'GDP-2016'!$C$3:$C$197,0) -> 22 | H32: =OFFSET('GDP-2016'!$D$2,G32,0) -> 492618 | I32: 0.492618 | J32: 42.62938017
A33: 30 | B33: South Africa | C33: 2 | D33: 6 | E33: 2 | F33: =SUMPRODUCT(C33:E33,$C$2:$E$2) -> 20 | G33: =MATCH(B33, 'GDP-2016'!$C$3:$C$197,0) -> 33 | H33: =OFFSET('GDP-2016'!$D$2,G33,0) -> 312798 | I33: 0.312798 | J33: 63.93902774
A34: 31 | B34: Ukraine | C34: 2 | D34: 5 | E34: 4 | F34: =SUMPRODUCT(C34:E34,$C$2:$E$2) -> 20 | G34: =MATCH(B34, 'GDP-2016'!$C$3:$C$197,0) -> 63 | H34: =OFFSET('GDP-2016'!$D$2,G34,0) -> 90615 | I34: 0.090615 | J34: 220.7140098
A35: 32 | B35: Serbia | C35: 2 | D35: 4 | E35: 2 | F35: =SUMPRODUCT(C35:E35,$C$2:$E$2) -> 16 | G35: =MATCH(B35, 'GDP-2016'!$C$3:$C$197,0) -> 92 | H35: =OFFSET('GDP-2016'!$D$2,G35,0) -> 36513 | I35: 0.036513 | J35: 438.2000931
A36: 33 | B36: Poland | C36: 2 | D36: 3 | E36: 6 | F36: =SUMPRODUCT(C36:E36,$C$2:$E$2) -> 18 | G36: =MATCH(B36, 'GDP-2016'!$C$3:$C$197,0) -> 24 | H36: =OFFSET('GDP-2016'!$D$2,G36,0) -> 474783 | I36: 0.474783 | J36: 37.91205667
A37: 34 | B37: North Korea | C37: 2 | D37: 3 | E37: 2 | F37: =SUMPRODUCT(C37:E37,$C$2:$E$2) -> 14 | G37: =MATCH(B37, 'GDP-2016'!$C$3:$C$197,0) ->  | H37: 17396 | I37: 0.017396 | J37: 804.7827087 | L37: From UN 2014
A38: 35 | B38: Belgium | C38: 2 | D38: 2 | E38: 2 | F38: =SUMPRODUCT(C38:E38,$C$2:$E$2) -> 12 | G38: =MATCH(B38, 'GDP-2016'!$C$3:$C$197,0) -> 25 | H38: =OFFSET('GDP-2016'!$D$2,G38,0) -> 454039 | I38: 0.454039 | J38: 26.42944769
A39: 36 | B39: Thailand | C39: 2 | D39: 2 | E39: 2 | F39: =SUMPRODUCT(C39:E39,$C$2:$E$2) -> 12 | G39: =MATCH(B39, 'GDP-2016'!$C$3:$C$197,0) -> 27 | H39: =OFFSET('GDP-2016'!$D$2,G39,0) -> 395282 | I39: 0.395282 | J39: 30.35807348
A40: 37 | B40: Slovakia | C40: 2 | D40: 2 | E40: 0 | F40: =SUMPRODUCT(C40:E40,$C$2:$E$2) -> 10 | G40: =MATCH(B40, 'GDP-2016'!$C$3:$C$197,0) -> 64 | H40: =OFFSET('GDP-2016'!$D$2,G40,0) -> 86582 | I40: 0.086582 | J40: 115.4974475
A41: 38 | B41: Georgia | C41: 2 | D41: 1 | E41: 4 | F41: =SUMPRODUCT(C41:E41,$C$2:$E$2) -> 12 | G41: =MATCH(B41, 'GDP-2016'!$C$3:$C$197,0) -> 117 | H41: =OFFSET('GDP-2016'!$D$2,G41,0) -> 16530 | I41: 0.01653 | J41: 725.9528131
A42: 39 | B42: Azerbaijan | C42: 1 | D42: 7 | E42: 10 | F42: =SUMPRODUCT(C42:E42,$C$2:$E$2) -> 27 | G42: =MATCH(B42, 'GDP-2016'!$C$3:$C$197,0) -> 78 | H42: =OFFSET('GDP-2016'!$D$2,G42,0) -> 53047 | I42: 0.053047 | J42: 508.9826003
A43: 40 | B43: Belarus | C43: 1 | D43: 4 | E43: 4 | F43: =SUMPRODUCT(C43:E43,$C$2:$E$2) -> 15 | G43: =MATCH(B43, 'GDP-2016'!$C$3:$C$197,0) -> 76 | H43: =OFFSET('GDP-2016'!$D$2,G43,0) -> 54609 | I43: 0.054609 | J43: 274.6799978
A44: 41 | B44: Turkey | C44: 1 | D44: 3 | E44: 4 | F44: =SUMPRODUCT(C44:E44,$C$2:$E$2) -> 13 | G44: =MATCH(B44, 'GDP-2016'!$C$3:$C$197,0) -> 18 | H44: =OFFSET('GDP-2016'!$D$2,G44,0) -> 718221 | I44: 0.718221 | J44: 18.10027833
A45: 42 | B45: Armenia | C45: 1 | D45: 3 | E45: 0 | F45: =SUMPRODUCT(C45:E45,$C$2:$E$2) -> 9 | G45: =MATCH(B45, 'GDP-2016'!$C$3:$C$197,0) -> 136 | H45: =OFFSET('GDP-2016'!$D$2,G45,0) -> 11644 | I45: 0.011644 | J45: 772.9302645
A46: 43 | B46: Czech Republic | C46: 1 | D46: 2 | E46: 7 | F46: =SUMPRODUCT(C46:E46,$C$2:$E$2) -> 14 | G46: =MATCH(B46, 'GDP-2016'!$C$3:$C$197,0) -> 51 | H46: =OFFSET('GDP-2016'!$D$2,G46,0) -> 181811 | I46: 0.181811 | J46: 77.00304162
A47: 44 | B47: Ethiopia | C47: 1 | D47: 2 | E47: 5 | F47: =SUMPRODUCT(C47:E47,$C$2:$E$2) -> 12 | G47: =MATCH(B47, 'GDP-2016'!$C$3:$C$197,0) -> 74 | H47: =OFFSET('GDP-2016'!$D$2,G47,0) -> 61537 | I47: 0.061537 | J47: 195.0046314
A48: 45 | B48: Slovenia | C48: 1 | D48: 2 | E48: 1 | F48: =SUMPRODUCT(C48:E48,$C$2:$E$2) -> 8 | G48: =MATCH(B48, 'GDP-2016'!$C$3:$C$197,0) -> 87 | H48: =OFFSET('GDP-2016'!$D$2,G48,0) -> 42747 | I48: 0.042747 | J48: 187.1476361
A49: 46 | B49: Indonesia | C49: 1 | D49: 2 | E49: 0 | F49: =SUMPRODUCT(C49:E49,$C$2:$E$2) -> 7 | G49: =MATCH(B49, 'GDP-2016'!$C$3:$C$197,0) -> 16 | H49: =OFFSET('GDP-2016'!$D$2,G49,0) -> 861934 | I49: 0.861934 | J49: 8.121271466
A50: 47 | B50: Romania | C50: 1 | D50: 1 | E50: 3 | F50: =SUMPRODUCT(C50:E50,$C$2:$E$2) -> 8 | G50: =MATCH(B50, 'GDP-2016'!$C$3:$C$197,0) -> 52 | H50: =OFFSET('GDP-2016'!$D$2,G50,0) -> 177954 | I50: 0.177954 | J50: 44.95543792
A51: 48 | B51: Bahrain | C51: 1 | D51: 1 | E51: 0 | F51: =SUMPRODUCT(C51:E51,$C$2:$E$2) -> 5 | G51: =MATCH(B51, 'GDP-2016'!$C$3:$C$197,0) -> 96 | H51: =OFFSET('GDP-2016'!$D$2,G51,0) -> 32221 | I51: 0.032221 | J51: 155.1782999
A52: 49 | B52: Vietnam | C52: 1 | D52: 1 | E52: 0 | F52: =SUMPRODUCT(C52:E52,$C$2:$E$2) -> 5 | G52: =MATCH(B52, 'GDP-2016'!$C$3:$C$197,0) -> 48 | H52: =OFFSET('GDP-2016'!$D$2,G52,0) -> 193599 | I52: 0.193599 | J52: 25.82657968
A53: 50 | B53: Taiwan | C53: 1 | D53: 0 | E53: 2 | F53: =SUMPRODUCT(C53:E53,$C$2:$E$2) -> 5 | G53: =MATCH(B53, 'GDP-2016'!$C$3:$C$197,0) ->  | H53: 508849 | I53: 0.508849 | J53: 9.826097723 | L53: From IMF 2016 Estimate
A54: 51 | B54: The Bahamas | C54: 1 | D54: 0 | E54: 1 | F54: =SUMPRODUCT(C54:E54,$C$2:$E$2) -> 4 | G54: =MATCH(B54, 'GDP-2016'!$C$3:$C$197,0) -> 143 | H54: =OFFSET('GDP-2016'!$D$2,G54,0) -> 8511 | I54: 0.008511 | J54: 469.9800258
A55: 52 | B55: Côte d'Ivoire | C55: 1 | D55: 0 | E55: 1 | F55: =SUMPRODUCT(C55:E55,$C$2:$E$2) -> 4 | G55: =MATCH(B55, 'GDP-2016'!$C$3:$C$197,0) -> 97 | H55: =OFFSET('GDP-2016'!$D$2,G55,0) -> 31753 | I55: 0.031753 | J55: 125.9723491
A56: 53 | B56: Independent Olympic Athletes | C56: 1 | D56: 0 | E56: 1 | F56: =SUMPRODUCT(C56:E56,$C$2:$E$2) -> 4 | G56: =MATCH(B56, 'GDP-2016'!$C$3:$C$197,0) ->  | H56: =OFFSET('GDP-2016'!$D$2,G56,0) -> 
A57: 54 | B57: Fiji | C57: 1 | D57: 0 | E57: 0 | F57: =SUMPRODUCT(C57:E57,$C$2:$E$2) -> 3 | G57: =MATCH(B57, 'GDP-2016'!$C$3:$C$197,0) -> 157 | H57: =OFFSET('GDP-2016'!$D$2,G57,0) -> 4532 | I57: 0.004532 | J57: 661.9593998
A58: 55 | B58: Jordan | C58: 1 | D58: 0 | E58: 0 | F58: =SUMPRODUCT(C58:E58,$C$2:$E$2) -> 3 | G58: =MATCH(B58, 'GDP-2016'!$C$3:$C$197,0) -> 90 | H58: =OFFSET('GDP-2016'!$D$2,G58,0) -> 37517 | I58: 0.037517 | J58: 79.96374977
A59: 56 | B59: Kosovo | C59: 1 | D59: 0 | E59: 0 | F59: =SUMPRODUCT(C59:E59,$C$2:$E$2) -> 3 | G59: =MATCH(B59, 'GDP-2016'!$C$3:$C$197,0) -> 148 | H59: =OFFSET('GDP-2016'!$D$2,G59,0) -> 7387 | I59: 0.007387 | J59: 406.1188575
A60: 57 | B60: Puerto Rico | C60: 1 | D60: 0 | E60: 0 | F60: =SUMPRODUCT(C60:E60,$C$2:$E$2) -> 3 | G60: =MATCH(B60, 'GDP-2016'!$C$3:$C$197,0) -> 59 | H60: =OFFSET('GDP-2016'!$D$2,G60,0) -> 103135 | I60: 0.103135 | J60: 29.08808843
A61: 58 | B61: Singapore | C61: 1 | D61: 0 | E61: 0 | F61: =SUMPRODUCT(C61:E61,$C$2:$E$2) -> 3 | G61: =MATCH(B61, 'GDP-2016'!$C$3:$C$197,0) -> 38 | H61: =OFFSET('GDP-2016'!$D$2,G61,0) -> 292739 | I61: 0.292739 | J61: 10.24803665
A62: 59 | B62: Tajikistan | C62: 1 | D62: 0 | E62: 0 | F62: =SUMPRODUCT(C62:E62,$C$2:$E$2) -> 3 | G62: =MATCH(B62, 'GDP-2016'!$C$3:$C$197,0) -> 141 | H62: =OFFSET('GDP-2016'!$D$2,G62,0) -> 9242 | I62: 0.009242 | J62: 324.6050638
A63: 60 | B63: Malaysia | C63: 0 | D63: 4 | E63: 1 | F63: =SUMPRODUCT(C63:E63,$C$2:$E$2) -> 9 | G63: =MATCH(B63, 'GDP-2016'!$C$3:$C$197,0) -> 35 | H63: =OFFSET('GDP-2016'!$D$2,G63,0) -> 296218 | I63: 0.296218 | J63: 30.38302872
A64: 61 | B64: Mexico | C64: 0 | D64: 3 | E64: 2 | F64: =SUMPRODUCT(C64:E64,$C$2:$E$2) -> 8 | G64: =MATCH(B64, 'GDP-2016'!$C$3:$C$197,0) -> 15 | H64: =OFFSET('GDP-2016'!$D$2,G64,0) -> 1144331 | I64: 1.144331 | J64: 6.990984252
A65: 62 | B65: Algeria | C65: 0 | D65: 2 | E65: 0 | F65: =SUMPRODUCT(C65:E65,$C$2:$E$2) -> 4 | G65: =MATCH(B65, 'GDP-2016'!$C$3:$C$197,0) -> 56 | H65: =OFFSET('GDP-2016'!$D$2,G65,0) -> 166839 | I65: 0.166839 | J65: 23.97520963
A66: 63 | B66: Ireland | C66: 0 | D66: 2 | E66: 0 | F66: =SUMPRODUCT(C66:E66,$C$2:$E$2) -> 4 | G66: =MATCH(B66, 'GDP-2016'!$C$3:$C$197,0) -> 43 | H66: =OFFSET('GDP-2016'!$D$2,G66,0) -> 238020 | I66: 0.23802 | J66: 16.80531048
A67: 64 | B67: Lithuania | C67: 0 | D67: 1 | E67: 3 | F67: =SUMPRODUCT(C67:E67,$C$2:$E$2) -> 5 | G67: =MATCH(B67, 'GDP-2016'!$C$3:$C$197,0) -> 88 | H67: =OFFSET('GDP-2016'!$D$2,G67,0) -> 41244 | I67: 0.041244 | J67: 121.2297546
A68: 65 | B68: Bulgaria | C68: 0 | D68: 1 | E68: 2 | F68: =SUMPRODUCT(C68:E68,$C$2:$E$2) -> 4 | G68: =MATCH(B68, 'GDP-2016'!$C$3:$C$197,0) -> 81 | H68: =OFFSET('GDP-2016'!$D$2,G68,0) -> 48953 | I68: 0.048953 | J68: 81.71102895
A69: 66 | B69: Venezuela | C69: 0 | D69: 1 | E69: 2 | F69: =SUMPRODUCT(C69:E69,$C$2:$E$2) -> 4 | G69: =MATCH(B69, 'GDP-2016'!$C$3:$C$197,0) -> 30 | H69: =OFFSET('GDP-2016'!$D$2,G69,0) -> 371337 | I69: =H69/1000/1000 -> 0.371337 | J69: =F69/I69 -> 10.77188645
A70: 67 | B70: India | C70: 0 | D70: 1 | E70: 1 | F70: =SUMPRODUCT(C70:E70,$C$2:$E$2) -> 3 | G70: =MATCH(B70, 'GDP-2016'!$C$3:$C$197,0) -> 7 | H70: =OFFSET('GDP-2016'!$D$2,G70,0) -> 2073543 | I70: 2.073543 | J70: 1.446799029
A71: 68 | B71: Mongolia | C71: 0 | D71: 1 | E71: 1 | F71: =SUMPRODUCT(C71:E71,$C$2:$E$2) -> 3 | G71: =MATCH(B71, 'GDP-2016'!$C$3:$C$197,0) -> 133 | H71: =OFFSET('GDP-2016'!$D$2,G71,0) -> 12016 | I71: 0.012016 | J71: 249.6671105
A72: 69 | B72: Burundi | C72: 0 | D72: 1 | E72: 0 | F72: =SUMPRODUCT(C72:E72,$C$2:$E$2) -> 2 | G72: =MATCH(B72, 'GDP-2016'!$C$3:$C$197,0) -> 164 | H72: =OFFSET('GDP-2016'!$D$2,G72,0) -> 3094 | I72: 0.003094 | J72: 646.4124111
A73: 70 | B73: Grenada | C73: 0 | D73: 1 | E73: 0 | F73: =SUMPRODUCT(C73:E73,$C$2:$E$2) -> 2 | G73: =MATCH(B73, 'GDP-2016'!$C$3:$C$197,0) -> 182 | H73: =OFFSET('GDP-2016'!$D$2,G73,0) -> 884 | I73: 0.000884 | J73: 2262.443439
A74: 71 | B74: Niger | C74: 0 | D74: 1 | E74: 0 | F74: =SUMPRODUCT(C74:E74,$C$2:$E$2) -> 2 | G74: =MATCH(B74, 'GDP-2016'!$C$3:$C$197,0) -> 144 | H74: =OFFSET('GDP-2016'!$D$2,G74,0) -> 8169 | I74: 0.008169 | J74: 244.8280083
A75: 72 | B75: Philippines | C75: 0 | D75: 1 | E75: 0 | F75: =SUMPRODUCT(C75:E75,$C$2:$E$2) -> 2 | G75: =MATCH(B75, 'GDP-2016'!$C$3:$C$197,0) -> 40 | H75: =OFFSET('GDP-2016'!$D$2,G75,0) -> 291965 | I75: 0.291965 | J75: 6.850136146
A76: 73 | B76: Qatar | C76: 0 | D76: 1 | E76: 0 | F76: =SUMPRODUCT(C76:E76,$C$2:$E$2) -> 2 | G76: =MATCH(B76, 'GDP-2016'!$C$3:$C$197,0) -> 55 | H76: =OFFSET('GDP-2016'!$D$2,G76,0) -> 166908 | I76: 0.166908 | J76: 11.98264912
A77: 74 | B77: Norway | C77: 0 | D77: 0 | E77: 4 | F77: =SUMPRODUCT(C77:E77,$C$2:$E$2) -> 4 | G77: =MATCH(B77, 'GDP-2016'!$C$3:$C$197,0) -> 28 | H77: =OFFSET('GDP-2016'!$D$2,G77,0) -> 388315 | I77: 0.388315 | J77: 10.30091549
A78: 75 | B78: Egypt | C78: 0 | D78: 0 | E78: 3 | F78: =SUMPRODUCT(C78:E78,$C$2:$E$2) -> 3 | G78: =MATCH(B78, 'GDP-2016'!$C$3:$C$197,0) -> 32 | H78: =OFFSET('GDP-2016'!$D$2,G78,0) -> 330779 | I78: 0.330779 | J78: 9.069499575
A79: 76 | B79: Tunisia | C79: 0 | D79: 0 | E79: 3 | F79: =SUMPRODUCT(C79:E79,$C$2:$E$2) -> 3 | G79: =MATCH(B79, 'GDP-2016'!$C$3:$C$197,0) -> 86 | H79: =OFFSET('GDP-2016'!$D$2,G79,0) -> 43015 | I79: 0.043015 | J79: 69.74311287
A80: 77 | B80: Israel | C80: 0 | D80: 0 | E80: 2 | F80: =SUMPRODUCT(C80:E80,$C$2:$E$2) -> 2 | G80: =MATCH(B80, 'GDP-2016'!$C$3:$C$197,0) -> 36 | H80: =OFFSET('GDP-2016'!$D$2,G80,0) -> 296075 | I80: 0.296075 | J80: 6.755045174
A81: 78 | B81: Austria | C81: 0 | D81: 0 | E81: 1 | F81: =SUMPRODUCT(C81:E81,$C$2:$E$2) -> 1 | G81: =MATCH(B81, 'GDP-2016'!$C$3:$C$197,0) -> 29 | H81: =OFFSET('GDP-2016'!$D$2,G81,0) -> 374056 | I81: 0.374056 | J81: 2.673396497
A82: 79 | B82: Dominican Republic | C82: 0 | D82: 0 | E82: 1 | F82: =SUMPRODUCT(C82:E82,$C$2:$E$2) -> 1 | G82: =MATCH(B82, 'GDP-2016'!$C$3:$C$197,0) -> 69 | H82: =OFFSET('GDP-2016'!$D$2,G82,0) -> 67103 | I82: 0.067103 | J82: 14.90246338
A83: 80 | B83: Estonia | C83: 0 | D83: 0 | E83: 1 | F83: =SUMPRODUCT(C83:E83,$C$2:$E$2) -> 1 | G83: =MATCH(B83, 'GDP-2016'!$C$3:$C$197,0) -> 105 | H83: =OFFSET('GDP-2016'!$D$2,G83,0) -> 22691 | I83: 0.022691 | J83: 44.07033626
A84: 81 | B84: Finland | C84: 0 | D84: 0 | E84: 1 | F84: =SUMPRODUCT(C84:E84,$C$2:$E$2) -> 1 | G84: =MATCH(B84, 'GDP-2016'!$C$3:$C$197,0) -> 44 | H84: =OFFSET('GDP-2016'!$D$2,G84,0) -> 229810 | I84: 0.22981 | J84: 4.351420739
A85: 82 | B85: Morocco | C85: 0 | D85: 0 | E85: 1 | F85: =SUMPRODUCT(C85:E85,$C$2:$E$2) -> 1 | G85: =MATCH(B85, 'GDP-2016'!$C$3:$C$197,0) -> 62 | H85: =OFFSET('GDP-2016'!$D$2,G85,0) -> 100360 | I85: 0.10036 | J85: 9.964129135
A86: 83 | B86: Moldova | C86: 0 | D86: 0 | E86: 1 | F86: =SUMPRODUCT(C86:E86,$C$2:$E$2) -> 1 | G86: =MATCH(B86, 'GDP-2016'!$C$3:$C$197,0) -> 145 | H86: =OFFSET('GDP-2016'!$D$2,G86,0) -> 7962 | I86: 0.007962 | J86: 125.5965838
A87: 84 | B87: Nigeria | C87: 0 | D87: 0 | E87: 1 | F87: =SUMPRODUCT(C87:E87,$C$2:$E$2) -> 1 | G87: =MATCH(B87, 'GDP-2016'!$C$3:$C$197,0) -> 23 | H87: =OFFSET('GDP-2016'!$D$2,G87,0) -> 481066 | I87: 0.481066 | J87: 2.07871685
A88: 85 | B88: Portugal | C88: 0 | D88: 0 | E88: 1 | F88: =SUMPRODUCT(C88:E88,$C$2:$E$2) -> 1 | G88: =MATCH(B88, 'GDP-2016'!$C$3:$C$197,0) -> 45 | H88: =OFFSET('GDP-2016'!$D$2,G88,0) -> 198931 | I88: 0.198931 | J88: 5.026868613
A89: 86 | B89: Trinidad and Tobago | C89: 0 | D89: 0 | E89: 1 | F89: =SUMPRODUCT(C89:E89,$C$2:$E$2) -> 1 | G89: =MATCH(B89, 'GDP-2016'!$C$3:$C$197,0) -> 100 | H89: =OFFSET('GDP-2016'!$D$2,G89,0) -> 27806 | I89: 0.027806 | J89: 35.96346112
A90: 87 | B90: United Arab Emirates | C90: 0 | D90: 0 | E90: 1 | F90: =SUMPRODUCT(C90:E90,$C$2:$E$2) -> 1 | G90: =MATCH(B90, 'GDP-2016'!$C$3:$C$197,0) -> 31 | H90: =OFFSET('GDP-2016'!$D$2,G90,0) -> 370293 | I90: 0.370293 | J90: 2.700564148
C91: =SUM(C4:C90) -> 307 | D91: =SUM(D4:D90) -> 307 | E91: 360 | F91: 1895

Sheet rank of top economies
C2: 3 | D2: 2 | E2: 1
C3: Gold | D3: Silver | E3: Bronze | F3: Points | G3: Match GDP | H3: GDP ($M) | I3: GDP $T | J3: Pts/$T GDP
A4: 1 | B4: United States | C4: 46 | D4: 37 | E4: 38 | F4: =SUMPRODUCT(C4:E4,$C$2:$E$2) -> 250 | G4: =MATCH(B4, 'GDP-2016'!$C$3:$C$197,0) -> 1 | H4: =OFFSET('GDP-2016'!$D$2,G4,0) -> 17946996 | I4: =H4/1000/1000 -> 17.946996 | J4: =F4/I4 -> 13.92990782
A5: 3 | B5: China | C5: 26 | D5: 18 | E5: 26 | F5: =SUMPRODUCT(C5:E5,$C$2:$E$2) -> 140 | G5: =MATCH(B5, 'GDP-2016'!$C$3:$C$197,0) -> 2 | H5: =OFFSET('GDP-2016'!$D$2,G5,0) -> 10866444 | I5: =H5/1000/1000 -> 10.866444 | J5: =F5/I5 -> 12.88369958
A6: 6 | B6: Japan | C6: 12 | D6: 8 | E6: 21 | F6: =SUMPRODUCT(C6:E6,$C$2:$E$2) -> 73 | G6: =MATCH(B6, 'GDP-2016'!$C$3:$C$197,0) -> 3 | H6: =OFFSET('GDP-2016'!$D$2,G6,0) -> 4123258 | I6: =H6/1000/1000 -> 4.123258 | J6: =F6/I6 -> 17.70444634
A7: 5 | B7: Germany | C7: 17 | D7: 10 | E7: 15 | F7: =SUMPRODUCT(C7:E7,$C$2:$E$2) -> 86 | G7: =MATCH(B7, 'GDP-2016'!$C$3:$C$197,0) -> 4 | H7: =OFFSET('GDP-2016'!$D$2,G7,0) -> 3355772 | I7: =H7/1000/1000 -> 3.355772 | J7: =F7/I7 -> 25.62748602
A8: 2 | B8: Great Britain | C8: 27 | D8: 23 | E8: 17 | F8: =SUMPRODUCT(C8:E8,$C$2:$E$2) -> 144 | G8: =MATCH(B8, 'GDP-2016'!$C$3:$C$197,0) -> 5 | H8: =OFFSET('GDP-2016'!$D$2,G8,0) -> 2848755 | I8: =H8/1000/1000 -> 2.848755 | J8: =F8/I8 -> 50.54839746
A9: 7 | B9: France | C9: 10 | D9: 18 | E9: 14 | F9: =SUMPRODUCT(C9:E9,$C$2:$E$2) -> 80 | G9: =MATCH(B9, 'GDP-2016'!$C$3:$C$197,0) -> 6 | H9: =OFFSET('GDP-2016'!$D$2,G9,0) -> 2421682 | I9: =H9/1000/1000 -> 2.421682 | J9: =F9/I9 -> 33.03489063
A10: 67 | B10: India | C10: 0 | D10: 1 | E10: 1 | F10: =SUMPRODUCT(C10:E10,$C$2:$E$2) -> 3 | G10: =MATCH(B10, 'GDP-2016'!$C$3:$C$197,0) -> 7 | H10: =OFFSET('GDP-2016'!$D$2,G10,0) -> 2073543 | I10: =H10/1000/1000 -> 2.073543 | J10: =F10/I10 -> 1.446799029
A11: 9 | B11: Italy | C11: 8 | D11: 12 | E11: 8 | F11: =SUMPRODUCT(C11:E11,$C$2:$E$2) -> 56 | G11: =MATCH(B11, 'GDP-2016'!$C$3:$C$197,0) -> 8 | H11: =OFFSET('GDP-2016'!$D$2,G11,0) -> 1814763 | I11: =H11/1000/1000 -> 1.814763 | J11: =F11/I11 -> 30.85802389
A12: 13 | B12: Brazil | C12: 7 | D12: 6 | E12: 6 | F12: =SUMPRODUCT(C12:E12,$C$2:$E$2) -> 39 | G12: =MATCH(B12, 'GDP-2016'!$C$3:$C$197,0) -> 9 | H12: =OFFSET('GDP-2016'!$D$2,G12,0) -> 1774725 | I12: =H12/1000/1000 -> 1.774725 | J12: =F12/I12 -> 21.9752356
A13: 20 | B13: Canada | C13: 4 | D13: 3 | E13: 15 | F13: =SUMPRODUCT(C13:E13,$C$2:$E$2) -> 33 | G13: =MATCH(B13, 'GDP-2016'!$C$3:$C$197,0) -> 10 | H13: =OFFSET('GDP-2016'!$D$2,G13,0) -> 1550537 | I13: =H13/1000/1000 -> 1.550537 | J13: =F13/I13 -> 21.28294907
A14: 8 | B14: South Korea | C14: 9 | D14: 3 | E14: 9 | F14: =SUMPRODUCT(C14:E14,$C$2:$E$2) -> 42 | G14: =MATCH(B14, 'GDP-2016'!$C$3:$C$197,0) -> 11 | H14: =OFFSET('GDP-2016'!$D$2,G14,0) -> 1377873 | I14: =H14/1000/1000 -> 1.377873 | J14: =F14/I14 -> 30.48176428
A15: 10 | B15: Australia | C15: 8 | D15: 11 | E15: 10 | F15: =SUMPRODUCT(C15:E15,$C$2:$E$2) -> 56 | G15: =MATCH(B15, 'GDP-2016'!$C$3:$C$197,0) -> 12 | H15: =OFFSET('GDP-2016'!$D$2,G15,0) -> 1339539 | I15: =H15/1000/1000 -> 1.339539 | J15: =F15/I15 -> 41.80542709
A16: 4 | B16: Russia | C16: 19 | D16: 18 | E16: 19 | F16: =SUMPRODUCT(C16:E16,$C$2:$E$2) -> 112 | G16: =MATCH(B16, 'GDP-2016'!$C$3:$C$197,0) -> 13 | H16: =OFFSET('GDP-2016'!$D$2,G16,0) -> 1326015 | I16: =H16/1000/1000 -> 1.326015 | J16: =F16/I16 -> 84.46359958
A17: 14 | B17: Spain | C17: 7 | D17: 4 | E17: 6 | F17: =SUMPRODUCT(C17:E17,$C$2:$E$2) -> 35 | G17: =MATCH(B17, 'GDP-2016'!$C$3:$C$197,0) -> 14 | H17: =OFFSET('GDP-2016'!$D$2,G17,0) -> 1199057 | I17: =H17/1000/1000 -> 1.199057 | J17: =F17/I17 -> 29.18960483
A18: 61 | B18: Mexico | C18: 0 | D18: 3 | E18: 2 | F18: =SUMPRODUCT(C18:E18,$C$2:$E$2) -> 8 | G18: =MATCH(B18, 'GDP-2016'!$C$3:$C$197,0) -> 15 | H18: =OFFSET('GDP-2016'!$D$2,G18,0) -> 1144331 | I18: =H18/1000/1000 -> 1.144331 | J18: =F18/I18 -> 6.990984252
A19: 46 | B19: Indonesia | C19: 1 | D19: 2 | E19: 0 | F19: =SUMPRODUCT(C19:E19,$C$2:$E$2) -> 7 | G19: =MATCH(B19, 'GDP-2016'!$C$3:$C$197,0) -> 16 | H19: =OFFSET('GDP-2016'!$D$2,G19,0) -> 861934 | I19: =H19/1000/1000 -> 0.861934 | J19: =F19/I19 -> 8.121271466
A20: 11 | B20: Netherlands | C20: 8 | D20: 7 | E20: 4 | F20: =SUMPRODUCT(C20:E20,$C$2:$E$2) -> 42 | G20: =MATCH(B20, 'GDP-2016'!$C$3:$C$197,0) -> 17 | H20: =OFFSET('GDP-2016'!$D$2,G20,0) -> 752547 | I20: =H20/1000/1000 -> 0.752547 | J20: =F20/I20 -> 55.81046765
A21: 41 | B21: Turkey | C21: 1 | D21: 3 | E21: 4 | F21: =SUMPRODUCT(C21:E21,$C$2:$E$2) -> 13 | G21: =MATCH(B21, 'GDP-2016'!$C$3:$C$197,0) -> 18 | H21: =OFFSET('GDP-2016'!$D$2,G21,0) -> 718221 | I21: =H21/1000/1000 -> 0.718221 | J21: =F21/I21 -> 18.10027833
A22: 24 | B22: Switzerland | C22: 3 | D22: 2 | E22: 2 | F22: =SUMPRODUCT(C22:E22,$C$2:$E$2) -> 15 | G22: =MATCH(B22, 'GDP-2016'!$C$3:$C$197,0) -> 19 | H22: =OFFSET('GDP-2016'!$D$2,G22,0) -> 664738 | I22: =H22/1000/1000 -> 0.664738 | J22: =F22/I22 -> 22.56528136
A23: 27 | B23: Argentina | C23: 3 | D23: 1 | E23: 0 | F23: =SUMPRODUCT(C23:E23,$C$2:$E$2) -> 11 | G23: =MATCH(B23, 'GDP-2016'!$C$3:$C$197,0) -> 21 | H23: =OFFSET('GDP-2016'!$D$2,G23,0) -> 548055 | I23: =H23/1000/1000 -> 0.548055 | J23: =F23/I23 -> 20.07097828
A24: 50 | B24: Taiwan | C24: 1 | D24: 0 | E24: 2 | F24: =SUMPRODUCT(C24:E24,$C$2:$E$2) -> 5 | G24: =MATCH(B24, 'GDP-2016'!$C$3:$C$197,0) ->  | H24: 508849 | I24: =H24/1000/1000 -> 0.508849 | J24: =F24/I24 -> 9.826097723
A25: 29 | B25: Sweden | C25: 2 | D25: 6 | E25: 3 | F25: =SUMPRODUCT(C25:E25,$C$2:$E$2) -> 21 | G25: =MATCH(B25, 'GDP-2016'!$C$3:$C$197,0) -> 22 | H25: =OFFSET('GDP-2016'!$D$2,G25,0) -> 492618 | I25: =H25/1000/1000 -> 0.492618 | J25: =F25/I25 -> 42.62938017
A26: 84 | B26: Nigeria | C26: 0 | D26: 0 | E26: 1 | F26: =SUMPRODUCT(C26:E26,$C$2:$E$2) -> 1 | G26: =MATCH(B26, 'GDP-2016'!$C$3:$C$197,0) -> 23 | H26: =OFFSET('GDP-2016'!$D$2,G26,0) -> 481066 | I26: =H26/1000/1000 -> 0.481066 | J26: =F26/I26 -> 2.07871685
A27: 33 | B27: Poland | C27: 2 | D27: 3 | E27: 6 | F27: =SUMPRODUCT(C27:E27,$C$2:$E$2) -> 18 | G27: =MATCH(B27, 'GDP-2016'!$C$3:$C$197,0) -> 24 | H27: =OFFSET('GDP-2016'!$D$2,G27,0) -> 474783 | I27: =H27/1000/1000 -> 0.474783 | J27: =F27/I27 -> 37.91205667
A28: 35 | B28: Belgium | C28: 2 | D28: 2 | E28: 2 | F28: =SUMPRODUCT(C28:E28,$C$2:$E$2) -> 12 | G28: =MATCH(B28, 'GDP-2016'!$C$3:$C$197,0) -> 25 | H28: =OFFSET('GDP-2016'!$D$2,G28,0) -> 454039 | I28: =H28/1000/1000 -> 0.454039 | J28: =F28/I28 -> 26.42944769
A29: 25 | B29: Iran | C29: 3 | D29: 1 | E29: 4 | F29: =SUMPRODUCT(C29:E29,$C$2:$E$2) -> 15 | G29: =MATCH(B29, 'GDP-2016'!$C$3:$C$197,0) -> 26 | H29: =OFFSET('GDP-2016'!$D$2,G29,0) -> 425326 | I29: =H29/1000/1000 -> 0.425326 | J29: =F29/I29 -> 35.26706573
A30: 36 | B30: Thailand | C30: 2 | D30: 2 | E30: 2 | F30: =SUMPRODUCT(C30:E30,$C$2:$E$2) -> 12 | G30: =MATCH(B30, 'GDP-2016'!$C$3:$C$197,0) -> 27 | H30: =OFFSET('GDP-2016'!$D$2,G30,0) -> 395282 | I30: =H30/1000/1000 -> 0.395282 | J30: =F30/I30 -> 30.35807348
A31: 74 | B31: Norway | C31: 0 | D31: 0 | E31: 4 | F31: =SUMPRODUCT(C31:E31,$C$2:$E$2) -> 4 | G31: =MATCH(B31, 'GDP-2016'!$C$3:$C$197,0) -> 28 | H31: =OFFSET('GDP-2016'!$D$2,G31,0) -> 388315 | I31: =H31/1000/1000 -> 0.388315 | J31: =F31/I31 -> 10.30091549
A32: 78 | B32: Austria | C32: 0 | D32: 0 | E32: 1 | F32: =SUMPRODUCT(C32:E32,$C$2:$E$2) -> 1 | G32: =MATCH(B32, 'GDP-2016'!$C$3:$C$197,0) -> 29 | H32: =OFFSET('GDP-2016'!$D$2,G32,0) -> 374056 | I32: =H32/1000/1000 -> 0.374056 | J32: =F32/I32 -> 2.673396497
A33: 66 | B33: Venezuela | C33: 0 | D33: 1 | E33: 2 | F33: =SUMPRODUCT(C33:E33,$C$2:$E$2) -> 4 | G33: =MATCH(B33, 'GDP-2016'!$C$3:$C$197,0) -> 30 | H33: =OFFSET('GDP-2016'!$D$2,G33,0) -> 371337 | I33: =H33/1000/1000 -> 0.371337 | J33: =F33/I33 -> 10.77188645
A34: 87 | B34: United Arab Emirates | C34: 0 | D34: 0 | E34: 1 | F34: =SUMPRODUCT(C34:E34,$C$2:$E$2) -> 1 | G34: =MATCH(B34, 'GDP-2016'!$C$3:$C$197,0) -> 31 | H34: =OFFSET('GDP-2016'!$D$2,G34,0) -> 370293 | I34: =H34/1000/1000 -> 0.370293 | J34: =F34/I34 -> 2.700564148
A35: 75 | B35: Egypt | C35: 0 | D35: 0 | E35: 3 | F35: =SUMPRODUCT(C35:E35,$C$2:$E$2) -> 3 | G35: =MATCH(B35, 'GDP-2016'!$C$3:$C$197,0) -> 32 | H35: =OFFSET('GDP-2016'!$D$2,G35,0) -> 330779 | I35: =H35/1000/1000 -> 0.330779 | J35: =F35/I35 -> 9.069499575
A36: 30 | B36: South Africa | C36: 2 | D36: 6 | E36: 2 | F36: =SUMPRODUCT(C36:E36,$C$2:$E$2) -> 20 | G36: =MATCH(B36, 'GDP-2016'!$C$3:$C$197,0) -> 33 | H36: =OFFSET('GDP-2016'!$D$2,G36,0) -> 312798 | I36: =H36/1000/1000 -> 0.312798 | J36: =F36/I36 -> 63.93902774 | L36: From UN 2014
A37: 60 | B37: Malaysia | C37: 0 | D37: 4 | E37: 1 | F37: =SUMPRODUCT(C37:E37,$C$2:$E$2) -> 9 | G37: =MATCH(B37, 'GDP-2016'!$C$3:$C$197,0) -> 35 | H37: =OFFSET('GDP-2016'!$D$2,G37,0) -> 296218 | I37: =H37/1000/1000 -> 0.296218 | J37: =F37/I37 -> 30.38302872
A38: 77 | B38: Israel | C38: 0 | D38: 0 | E38: 2 | F38: =SUMPRODUCT(C38:E38,$C$2:$E$2) -> 2 | G38: =MATCH(B38, 'GDP-2016'!$C$3:$C$197,0) -> 36 | H38: =OFFSET('GDP-2016'!$D$2,G38,0) -> 296075 | I38: =H38/1000/1000 -> 0.296075 | J38: =F38/I38 -> 6.755045174
A39: 28 | B39: Denmark | C39: 2 | D39: 6 | E39: 7 | F39: =SUMPRODUCT(C39:E39,$C$2:$E$2) -> 25 | G39: =MATCH(B39, 'GDP-2016'!$C$3:$C$197,0) -> 37 | H39: =OFFSET('GDP-2016'!$D$2,G39,0) -> 295164 | I39: =H39/1000/1000 -> 0.295164 | J39: =F39/I39 -> 84.69867599
A40: 58 | B40: Singapore | C40: 1 | D40: 0 | E40: 0 | F40: =SUMPRODUCT(C40:E40,$C$2:$E$2) -> 3 | G40: =MATCH(B40, 'GDP-2016'!$C$3:$C$197,0) -> 38 | H40: =OFFSET('GDP-2016'!$D$2,G40,0) -> 292739 | I40: =H40/1000/1000 -> 0.292739 | J40: =F40/I40 -> 10.24803665
A41: 23 | B41: Colombia | C41: 3 | D41: 2 | E41: 3 | F41: =SUMPRODUCT(C41:E41,$C$2:$E$2) -> 16 | G41: =MATCH(B41, 'GDP-2016'!$C$3:$C$197,0) -> 39 | H41: =OFFSET('GDP-2016'!$D$2,G41,0) -> 292080 | I41: =H41/1000/1000 -> 0.29208 | J41: =F41/I41 -> 54.77951246
A42: 72 | B42: Philippines | C42: 0 | D42: 1 | E42: 0 | F42: =SUMPRODUCT(C42:E42,$C$2:$E$2) -> 2 | G42: =MATCH(B42, 'GDP-2016'!$C$3:$C$197,0) -> 40 | H42: =OFFSET('GDP-2016'!$D$2,G42,0) -> 291965 | I42: =H42/1000/1000 -> 0.291965 | J42: =F42/I42 -> 6.850136146
A43: 63 | B43: Ireland | C43: 0 | D43: 2 | E43: 0 | F43: =SUMPRODUCT(C43:E43,$C$2:$E$2) -> 4 | G43: =MATCH(B43, 'GDP-2016'!$C$3:$C$197,0) -> 43 | H43: =OFFSET('GDP-2016'!$D$2,G43,0) -> 238020 | I43: =H43/1000/1000 -> 0.23802 | J43: =F43/I43 -> 16.80531048
A44: 81 | B44: Finland | C44: 0 | D44: 0 | E44: 1 | F44: =SUMPRODUCT(C44:E44,$C$2:$E$2) -> 1 | G44: =MATCH(B44, 'GDP-2016'!$C$3:$C$197,0) -> 44 | H44: =OFFSET('GDP-2016'!$D$2,G44,0) -> 229810 | I44: =H44/1000/1000 -> 0.22981 | J44: =F44/I44 -> 4.351420739
A45: 85 | B45: Portugal | C45: 0 | D45: 0 | E45: 1 | F45: =SUMPRODUCT(C45:E45,$C$2:$E$2) -> 1 | G45: =MATCH(B45, 'GDP-2016'!$C$3:$C$197,0) -> 45 | H45: =OFFSET('GDP-2016'!$D$2,G45,0) -> 198931 | I45: =H45/1000/1000 -> 0.198931 | J45: =F45/I45 -> 5.026868613
A46: 26 | B46: Greece | C46: 3 | D46: 1 | E46: 2 | F46: =SUMPRODUCT(C46:E46,$C$2:$E$2) -> 13 | G46: =MATCH(B46, 'GDP-2016'!$C$3:$C$197,0) -> 46 | H46: =OFFSET('GDP-2016'!$D$2,G46,0) -> 195212 | I46: =H46/1000/1000 -> 0.195212 | J46: =F46/I46 -> 66.59426675
A47: 49 | B47: Vietnam | C47: 1 | D47: 1 | E47: 0 | F47: =SUMPRODUCT(C47:E47,$C$2:$E$2) -> 5 | G47: =MATCH(B47, 'GDP-2016'!$C$3:$C$197,0) -> 48 | H47: =OFFSET('GDP-2016'!$D$2,G47,0) -> 193599 | I47: =H47/1000/1000 -> 0.193599 | J47: =F47/I47 -> 25.82657968
A48: 22 | B48: Kazakhstan | C48: 3 | D48: 5 | E48: 9 | F48: =SUMPRODUCT(C48:E48,$C$2:$E$2) -> 28 | G48: =MATCH(B48, 'GDP-2016'!$C$3:$C$197,0) -> 50 | H48: =OFFSET('GDP-2016'!$D$2,G48,0) -> 184361 | I48: =H48/1000/1000 -> 0.184361 | J48: =F48/I48 -> 151.8759391
A49: 43 | B49: Czech Republic | C49: 1 | D49: 2 | E49: 7 | F49: =SUMPRODUCT(C49:E49,$C$2:$E$2) -> 14 | G49: =MATCH(B49, 'GDP-2016'!$C$3:$C$197,0) -> 51 | H49: =OFFSET('GDP-2016'!$D$2,G49,0) -> 181811 | I49: =H49/1000/1000 -> 0.181811 | J49: =F49/I49 -> 77.00304162
A50: 47 | B50: Romania | C50: 1 | D50: 1 | E50: 3 | F50: =SUMPRODUCT(C50:E50,$C$2:$E$2) -> 8 | G50: =MATCH(B50, 'GDP-2016'!$C$3:$C$197,0) -> 52 | H50: =OFFSET('GDP-2016'!$D$2,G50,0) -> 177954 | I50: =H50/1000/1000 -> 0.177954 | J50: =F50/I50 -> 44.95543792
A51: 19 | B51: New Zealand | C51: 4 | D51: 9 | E51: 5 | F51: =SUMPRODUCT(C51:E51,$C$2:$E$2) -> 35 | G51: =MATCH(B51, 'GDP-2016'!$C$3:$C$197,0) -> 53 | H51: =OFFSET('GDP-2016'!$D$2,G51,0) -> 173754 | I51: =H51/1000/1000 -> 0.173754 | J51: =F51/I51 -> 201.4342116
A52: 73 | B52: Qatar | C52: 0 | D52: 1 | E52: 0 | F52: =SUMPRODUCT(C52:E52,$C$2:$E$2) -> 2 | G52: =MATCH(B52, 'GDP-2016'!$C$3:$C$197,0) -> 55 | H52: =OFFSET('GDP-2016'!$D$2,G52,0) -> 166908 | I52: =H52/1000/1000 -> 0.166908 | J52: =F52/I52 -> 11.98264912 | L52: From IMF 2016 Estimate
A53: 62 | B53: Algeria | C53: 0 | D53: 2 | E53: 0 | F53: =SUMPRODUCT(C53:E53,$C$2:$E$2) -> 4 | G53: =MATCH(B53, 'GDP-2016'!$C$3:$C$197,0) -> 56 | H53: =OFFSET('GDP-2016'!$D$2,G53,0) -> 166839 | I53: =H53/1000/1000 -> 0.166839 | J53: =F53/I53 -> 23.97520963
A54: 12 | B54: Hungary | C54: 8 | D54: 3 | E54: 4 | F54: =SUMPRODUCT(C54:E54,$C$2:$E$2) -> 34 | G54: =MATCH(B54, 'GDP-2016'!$C$3:$C$197,0) -> 57 | H54: =OFFSET('GDP-2016'!$D$2,G54,0) -> 120687 | I54: =H54/1000/1000 -> 0.120687 | J54: =F54/I54 -> 281.7204836
A55: 57 | B55: Puerto Rico | C55: 1 | D55: 0 | E55: 0 | F55: =SUMPRODUCT(C55:E55,$C$2:$E$2) -> 3 | G55: =MATCH(B55, 'GDP-2016'!$C$3:$C$197,0) -> 59 | H55: =OFFSET('GDP-2016'!$D$2,G55,0) -> 103135 | I55: =H55/1000/1000 -> 0.103135 | J55: =F55/I55 -> 29.08808843
A56: 82 | B56: Morocco | C56: 0 | D56: 0 | E56: 1 | F56: =SUMPRODUCT(C56:E56,$C$2:$E$2) -> 1 | G56: =MATCH(B56, 'GDP-2016'!$C$3:$C$197,0) -> 62 | H56: =OFFSET('GDP-2016'!$D$2,G56,0) -> 100360 | I56: =H56/1000/1000 -> 0.10036 | J56: =F56/I56 -> 9.964129135
A57: 31 | B57: Ukraine | C57: 2 | D57: 5 | E57: 4 | F57: =SUMPRODUCT(C57:E57,$C$2:$E$2) -> 20 | G57: =MATCH(B57, 'GDP-2016'!$C$3:$C$197,0) -> 63 | H57: =OFFSET('GDP-2016'!$D$2,G57,0) -> 90615 | I57: =H57/1000/1000 -> 0.090615 | J57: =F57/I57 -> 220.7140098
A58: 37 | B58: Slovakia | C58: 2 | D58: 2 | E58: 0 | F58: =SUMPRODUCT(C58:E58,$C$2:$E$2) -> 10 | G58: =MATCH(B58, 'GDP-2016'!$C$3:$C$197,0) -> 64 | H58: =OFFSET('GDP-2016'!$D$2,G58,0) -> 86582 | I58: =H58/1000/1000 -> 0.086582 | J58: =F58/I58 -> 115.4974475
A59: 18 | B59: Cuba | C59: 5 | D59: 2 | E59: 4 | F59: =SUMPRODUCT(C59:E59,$C$2:$E$2) -> 23 | G59: =MATCH(B59, 'GDP-2016'!$C$3:$C$197,0) -> 67 | H59: =OFFSET('GDP-2016'!$D$2,G59,0) -> 77150 | I59: =H59/1000/1000 -> 0.07715 | J59: =F59/I59 -> 298.1205444
A60: 79 | B60: Dominican Republic | C60: 0 | D60: 0 | E60: 1 | F60: =SUMPRODUCT(C60:E60,$C$2:$E$2) -> 1 | G60: =MATCH(B60, 'GDP-2016'!$C$3:$C$197,0) -> 69 | H60: =OFFSET('GDP-2016'!$D$2,G60,0) -> 67103 | I60: =H60/1000/1000 -> 0.067103 | J60: =F60/I60 -> 14.90246338
A61: 21 | B61: Uzbekistan | C61: 4 | D61: 2 | E61: 7 | F61: =SUMPRODUCT(C61:E61,$C$2:$E$2) -> 23 | G61: =MATCH(B61, 'GDP-2016'!$C$3:$C$197,0) -> 70 | H61: =OFFSET('GDP-2016'!$D$2,G61,0) -> 66733 | I61: =H61/1000/1000 -> 0.066733 | J61: =F61/I61 -> 344.6570662
A62: 15 | B62: Kenya | C62: 6 | D62: 6 | E62: 1 | F62: =SUMPRODUCT(C62:E62,$C$2:$E$2) -> 31 | G62: =MATCH(B62, 'GDP-2016'!$C$3:$C$197,0) -> 73 | H62: =OFFSET('GDP-2016'!$D$2,G62,0) -> 63398 | I62: =H62/1000/1000 -> 0.063398 | J62: =F62/I62 -> 488.9744156
A63: 44 | B63: Ethiopia | C63: 1 | D63: 2 | E63: 5 | F63: =SUMPRODUCT(C63:E63,$C$2:$E$2) -> 12 | G63: =MATCH(B63, 'GDP-2016'!$C$3:$C$197,0) -> 74 | H63: =OFFSET('GDP-2016'!$D$2,G63,0) -> 61537 | I63: =H63/1000/1000 -> 0.061537 | J63: =F63/I63 -> 195.0046314
A64: 40 | B64: Belarus | C64: 1 | D64: 4 | E64: 4 | F64: =SUMPRODUCT(C64:E64,$C$2:$E$2) -> 15 | G64: =MATCH(B64, 'GDP-2016'!$C$3:$C$197,0) -> 76 | H64: =OFFSET('GDP-2016'!$D$2,G64,0) -> 54609 | I64: =H64/1000/1000 -> 0.054609 | J64: =F64/I64 -> 274.6799978
A65: 39 | B65: Azerbaijan | C65: 1 | D65: 7 | E65: 10 | F65: =SUMPRODUCT(C65:E65,$C$2:$E$2) -> 27 | G65: =MATCH(B65, 'GDP-2016'!$C$3:$C$197,0) -> 78 | H65: =OFFSET('GDP-2016'!$D$2,G65,0) -> 53047 | I65: =H65/1000/1000 -> 0.053047 | J65: =F65/I65 -> 508.9826003
A66: 65 | B66: Bulgaria | C66: 0 | D66: 1 | E66: 2 | F66: =SUMPRODUCT(C66:E66,$C$2:$E$2) -> 4 | G66: =MATCH(B66, 'GDP-2016'!$C$3:$C$197,0) -> 81 | H66: =OFFSET('GDP-2016'!$D$2,G66,0) -> 48953 | I66: =H66/1000/1000 -> 0.048953 | J66: =F66/I66 -> 81.71102895
A67: 17 | B67: Croatia | C67: 5 | D67: 3 | E67: 2 | F67: =SUMPRODUCT(C67:E67,$C$2:$E$2) -> 23 | G67: =MATCH(B67, 'GDP-2016'!$C$3:$C$197,0) -> 82 | H67: =OFFSET('GDP-2016'!$D$2,G67,0) -> 48732 | I67: =H67/1000/1000 -> 0.048732 | J67: =F67/I67 -> 471.9691373
A68: 76 | B68: Tunisia | C68: 0 | D68: 0 | E68: 3 | F68: =SUMPRODUCT(C68:E68,$C$2:$E$2) -> 3 | G68: =MATCH(B68, 'GDP-2016'!$C$3:$C$197,0) -> 86 | H68: =OFFSET('GDP-2016'!$D$2,G68,0) -> 43015 | I68: =H68/1000/1000 -> 0.043015 | J68: =F68/I68 -> 69.74311287
A69: 45 | B69: Slovenia | C69: 1 | D69: 2 | E69: 1 | F69: =SUMPRODUCT(C69:E69,$C$2:$E$2) -> 8 | G69: =MATCH(B69, 'GDP-2016'!$C$3:$C$197,0) -> 87 | H69: =OFFSET('GDP-2016'!$D$2,G69,0) -> 42747 | I69: =H69/1000/1000 -> 0.042747 | J69: =F69/I69 -> 187.1476361
A70: 64 | B70: Lithuania | C70: 0 | D70: 1 | E70: 3 | F70: =SUMPRODUCT(C70:E70,$C$2:$E$2) -> 5 | G70: =MATCH(B70, 'GDP-2016'!$C$3:$C$197,0) -> 88 | H70: =OFFSET('GDP-2016'!$D$2,G70,0) -> 41244 | I70: =H70/1000/1000 -> 0.041244 | J70: =F70/I70 -> 121.2297546
A71: 55 | B71: Jordan | C71: 1 | D71: 0 | E71: 0 | F71: =SUMPRODUCT(C71:E71,$C$2:$E$2) -> 3 | G71: =MATCH(B71, 'GDP-2016'!$C$3:$C$197,0) -> 90 | H71: =OFFSET('GDP-2016'!$D$2,G71,0) -> 37517 | I71: =H71/1000/1000 -> 0.037517 | J71: =F71/I71 -> 79.96374977
A72: 32 | B72: Serbia | C72: 2 | D72: 4 | E72: 2 | F72: =SUMPRODUCT(C72:E72,$C$2:$E$2) -> 16 | G72: =MATCH(B72, 'GDP-2016'!$C$3:$C$197,0) -> 92 | H72: =OFFSET('GDP-2016'!$D$2,G72,0) -> 36513 | I72: =H72/1000/1000 -> 0.036513 | J72: =F72/I72 -> 438.2000931
A73: 48 | B73: Bahrain | C73: 1 | D73: 1 | E73: 0 | F73: =SUMPRODUCT(C73:E73,$C$2:$E$2) -> 5 | G73: =MATCH(B73, 'GDP-2016'!$C$3:$C$197,0) -> 96 | H73: =OFFSET('GDP-2016'!$D$2,G73,0) -> 32221 | I73: =H73/1000/1000 -> 0.032221 | J73: =F73/I73 -> 155.1782999
A74: 52 | B74: Côte d'Ivoire | C74: 1 | D74: 0 | E74: 1 | F74: =SUMPRODUCT(C74:E74,$C$2:$E$2) -> 4 | G74: =MATCH(B74, 'GDP-2016'!$C$3:$C$197,0) -> 97 | H74: =OFFSET('GDP-2016'!$D$2,G74,0) -> 31753 | I74: =H74/1000/1000 -> 0.031753 | J74: =F74/I74 -> 125.9723491
A75: 86 | B75: Trinidad and Tobago | C75: 0 | D75: 0 | E75: 1 | F75: =SUMPRODUCT(C75:E75,$C$2:$E$2) -> 1 | G75: =MATCH(B75, 'GDP-2016'!$C$3:$C$197,0) -> 100 | H75: =OFFSET('GDP-2016'!$D$2,G75,0) -> 27806 | I75: =H75/1000/1000 -> 0.027806 | J75: =F75/I75 -> 35.96346112
A76: 80 | B76: Estonia | C76: 0 | D76: 0 | E76: 1 | F76: =SUMPRODUCT(C76:E76,$C$2:$E$2) -> 1 | G76: =MATCH(B76, 'GDP-2016'!$C$3:$C$197,0) -> 105 | H76: =OFFSET('GDP-2016'!$D$2,G76,0) -> 22691 | I76: =H76/1000/1000 -> 0.022691 | J76: =F76/I76 -> 44.07033626
A77: 34 | B77: North Korea | C77: 2 | D77: 3 | E77: 2 | F77: =SUMPRODUCT(C77:E77,$C$2:$E$2) -> 14 | G77: =MATCH(B77, 'GDP-2016'!$C$3:$C$197,0) ->  | H77: 17396 | I77: =H77/1000/1000 -> 0.017396 | J77: =F77/I77 -> 804.7827087
A78: 38 | B78: Georgia | C78: 2 | D78: 1 | E78: 4 | F78: =SUMPRODUCT(C78:E78,$C$2:$E$2) -> 12 | G78: =MATCH(B78, 'GDP-2016'!$C$3:$C$197,0) -> 117 | H78: =OFFSET('GDP-2016'!$D$2,G78,0) -> 16530 | I78: =H78/1000/1000 -> 0.01653 | J78: =F78/I78 -> 725.9528131
A79: 16 | B79: Jamaica | C79: 6 | D79: 3 | E79: 2 | F79: =SUMPRODUCT(C79:E79,$C$2:$E$2) -> 26 | G79: =MATCH(B79, 'GDP-2016'!$C$3:$C$197,0) -> 125 | H79: =OFFSET('GDP-2016'!$D$2,G79,0) -> 13891 | I79: =H79/1000/1000 -> 0.013891 | J79: =F79/I79 -> 1871.715499
A80: 68 | B80: Mongolia | C80: 0 | D80: 1 | E80: 1 | F80: =SUMPRODUCT(C80:E80,$C$2:$E$2) -> 3 | G80: =MATCH(B80, 'GDP-2016'!$C$3:$C$197,0) -> 133 | H80: =OFFSET('GDP-2016'!$D$2,G80,0) -> 12016 | I80: =H80/1000/1000 -> 0.012016 | J80: =F80/I80 -> 249.6671105
A81: 42 | B81: Armenia | C81: 1 | D81: 3 | E81: 0 | F81: =SUMPRODUCT(C81:E81,$C$2:$E$2) -> 9 | G81: =MATCH(B81, 'GDP-2016'!$C$3:$C$197,0) -> 136 | H81: =OFFSET('GDP-2016'!$D$2,G81,0) -> 11644 | I81: =H81/1000/1000 -> 0.011644 | J81: =F81/I81 -> 772.9302645
A82: 59 | B82: Tajikistan | C82: 1 | D82: 0 | E82: 0 | F82: =SUMPRODUCT(C82:E82,$C$2:$E$2) -> 3 | G82: =MATCH(B82, 'GDP-2016'!$C$3:$C$197,0) -> 141 | H82: =OFFSET('GDP-2016'!$D$2,G82,0) -> 9242 | I82: =H82/1000/1000 -> 0.009242 | J82: =F82/I82 -> 324.6050638
A83: 51 | B83: The Bahamas | C83: 1 | D83: 0 | E83: 1 | F83: =SUMPRODUCT(C83:E83,$C$2:$E$2) -> 4 | G83: =MATCH(B83, 'GDP-2016'!$C$3:$C$197,0) -> 143 | H83: =OFFSET('GDP-2016'!$D$2,G83,0) -> 8511 | I83: =H83/1000/1000 -> 0.008511 | J83: =F83/I83 -> 469.9800258
A84: 71 | B84: Niger | C84: 0 | D84: 1 | E84: 0 | F84: =SUMPRODUCT(C84:E84,$C$2:$E$2) -> 2 | G84: =MATCH(B84, 'GDP-2016'!$C$3:$C$197,0) -> 144 | H84: =OFFSET('GDP-2016'!$D$2,G84,0) -> 8169 | I84: =H84/1000/1000 -> 0.008169 | J84: =F84/I84 -> 244.8280083
A85: 83 | B85: Moldova | C85: 0 | D85: 0 | E85: 1 | F85: =SUMPRODUCT(C85:E85,$C$2:$E$2) -> 1 | G85: =MATCH(B85, 'GDP-2016'!$C$3:$C$197,0) -> 145 | H85: =OFFSET('GDP-2016'!$D$2,G85,0) -> 7962 | I85: =H85/1000/1000 -> 0.007962 | J85: =F85/I85 -> 125.5965838
A86: 56 | B86: Kosovo | C86: 1 | D86: 0 | E86: 0 | F86: =SUMPRODUCT(C86:E86,$C$2:$E$2) -> 3 | G86: =MATCH(B86, 'GDP-2016'!$C$3:$C$197,0) -> 148 | H86: =OFFSET('GDP-2016'!$D$2,G86,0) -> 7387 | I86: =H86/1000/1000 -> 0.007387 | J86: =F86/I86 -> 406.1188575
A87: 54 | B87: Fiji | C87: 1 | D87: 0 | E87: 0 | F87: =SUMPRODUCT(C87:E87,$C$2:$E$2) -> 3 | G87: =MATCH(B87, 'GDP-2016'!$C$3:$C$197,0) -> 157 | H87: =OFFSET('GDP-2016'!$D$2,G87,0) -> 4532 | I87: =H87/1000/1000 -> 0.004532 | J87: =F87/I87 -> 661.9593998
A88: 69 | B88: Burundi | C88: 0 | D88: 1 | E88: 0 | F88: =SUMPRODUCT(C88:E88,$C$2:$E$2) -> 2 | G88: =MATCH(B88, 'GDP-2016'!$C$3:$C$197,0) -> 164 | H88: =OFFSET('GDP-2016'!$D$2,G88,0) -> 3094 | I88: =H88/1000/1000 -> 0.003094 | J88: =F88/I88 -> 646.4124111
A89: 70 | B89: Grenada | C89: 0 | D89: 1 | E89: 0 | F89: =SUMPRODUCT(C89:E89,$C$2:$E$2) -> 2 | G89: =MATCH(B89, 'GDP-2016'!$C$3:$C$197,0) -> 182 | H89: =OFFSET('GDP-2016'!$D$2,G89,0) -> 884 | I89: =H89/1000/1000 -> 0.000884 | J89: =F89/I89 -> 2262.443439
A90: 53 | B90: Independent Olympic Athletes | C90: 1 | D90: 0 | E90: 1 | F90: =SUMPRODUCT(C90:E90,$C$2:$E$2) -> 4 | G90: =MATCH(B90, 'GDP-2016'!$C$3:$C$197,0) ->  | H90: =OFFSET('GDP-2016'!$D$2,G90,0) ->  | I90: =H90/1000/1000 ->  | J90: =F90/I90 -> 

Sheet GDP-2016
A1: https://en.wikipedia.org/wiki/List_of_countries_by_GDP_(nominal)
A2: World Bank 2015 numbers | D2: $M | E2: $B
B3: 1 | C3: United States | D3: 17946996 | E3: =D3/1000 -> 17946.996
B4: 2 | C4: China | D4: 10866444 | E4: =D4/1000 -> 10866.444
B5: 3 | C5: Japan | D5: 4123258 | E5: 4123.258
B6: 4 | C6: Germany | D6: 3355772 | E6: 3355.772
B7: 5 | C7: Great Britain | D7: 2848755 | E7: 2848.755 | F7: United Kingdom
B8: 6 | C8: France | D8: 2421682 | E8: 2421.682
B9: 7 | C9: India | D9: 2073543 | E9: 2073.543
B10: 8 | C10: Italy | D10: 1814763 | E10: 1814.763
B11: 9 | C11: Brazil | D11: 1774725 | E11: 1774.725
B12: 10 | C12: Canada | D12: 1550537 | E12: 1550.537
B13: 11 | C13: South Korea | D13: 1377873 | E13: 1377.873
B14: 12 | C14: Australia | D14: 1339539 | E14: 1339.539
B15: 13 | C15: Russia | D15: 1326015 | E15: 1326.015
B16: 14 | C16: Spain | D16: 1199057 | E16: 1199.057
B17: 15 | C17: Mexico | D17: 1144331 | E17: 1144.331
B18: 16 | C18: Indonesia | D18: 861934 | E18: 861.934
B19: 17 | C19: Netherlands | D19: 752547 | E19: 752.547
B20: 18 | C20: Turkey | D20: 718221 | E20: 718.221
B21: 19 | C21: Switzerland | D21: 664738 | E21: 664.738
B22: 20 | C22: Saudi Arabia | D22: 646002 | E22: 646.002 | G22: =SUM(E3:E21,E23)/E198 -> 0.8052699763
B23: 21 | C23: Argentina | D23: 548055 | E23: 548.055
B24: 22 | C24: Sweden | D24: 492618 | E24: 492.618
B25: 23 | C25: Nigeria | D25: 481066 | E25: 481.066
B26: 24 | C26: Poland | D26: 474783 | E26: 474.783
B27: 25 | C27: Belgium | D27: 454039 | E27: 454.039
B28: 26 | C28: Iran | D28: 425326 | E28: 425.326
B29: 27 | C29: Thailand | D29: 395282 | E29: 395.282
B30: 28 | C30: Norway | D30: 388315 | E30: 388.315
B31: 29 | C31: Austria | D31: 374056 | E31: 374.056
B32: 30 | C32: Venezuela | D32: 371337 | E32: 371.337
B33: 31 | C33: United Arab Emirates | D33: 370293 | E33: 370.293
B34: 32 | C34: Egypt | D34: 330779 | E34: 330.779
B35: 33 | C35: South Africa | D35: 312798 | E35: 312.798
B36: — | C36: Hong Kong | D36: 309929 | E36: 309.929
B37: 34 | C37: Malaysia | D37: 296218 | E37: 296.218
B38: 35 | C38: Israel | D38: 296075 | E38: 296.075
B39: 36 | C39: Denmark | D39: 295164 | E39: 295.164
B40: 37 | C40: Singapore | D40: 292739 | E40: 292.739
B41: 38 | C41: Colombia | D41: 292080 | E41: 292.08
B42: 39 | C42: Philippines | D42: 291965 | E42: 291.965
B43: 40 | C43: Pakistan | D43: 269971 | E43: 269.971
B44: 41 | C44: Chile | D44: 240216 | E44: 240.216
B45: 42 | C45: Ireland | D45: 238020 | E45: 238.02
B46: 43 | C46: Finland | D46: 229810 | E46: 229.81
B47: 44 | C47: Portugal | D47: 198931 | E47: 198.931
B48: 45 | C48: Greece | D48: 195212 | E48: 195.212
B49: 46 | C49: Bangladesh | D49: 195079 | E49: 195.079
B50: 47 | C50: Vietnam | D50: 193599 | E50: 193.599
B51: 48 | C51: Peru | D51: 192084 | E51: 192.084
B52: 49 | C52: Kazakhstan | D52: 184361 | E52: 184.361
B53: 50 | C53: Czech Republic | D53: 181811 | E53: 181.811
B54: 51 | C54: Romania | D54: 177954 | E54: 177.954
B55: 52 | C55: New Zealand | D55: 173754 | E55: 173.754
B56: 53 | C56: Iraq | D56: 168607 | E56: 168.607
B57: 54 | C57: Qatar | D57: 166908 | E57: 166.908
B58: 55 | C58: Algeria | D58: 166839 | E58: 166.839
B59: 56 | C59: Hungary | D59: 120687 | E59: 120.687
B60: 57 | C60: Kuwait | D60: 112812 | E60: 112.812
C61: Puerto Rico | D61: 103135 | E61: 103.135
B62: 58 | C62: Angola | D62: 102643 | E62: 102.643
B63: 59 | C63: Ecuador | D63: 100872 | E63: 100.872
B64: 60 | C64: Morocco | D64: 100360 | E64: 100.36
B65: 61 | C65: Ukraine | D65: 90615 | E65: 90.615
B66: 62 | C66: Slovakia | D66: 86582 | E66: 86.582
B67: 63 | C67: Sudan | D67: 84067 | E67: 84.067
B68: 64 | C68: Sri Lanka | D68: 82316 | E68: =D68/1000 -> 82.316
B69: 65 | C69: Cuba | D69: 77150 | E69: 77.15 | G69: 2013
B70: 66 | C70: Oman | D70: 70255 | E70: 70.255
B71: 67 | C71: Dominican Republic | D71: 67103 | E71: 67.103
B72: 68 | C72: Uzbekistan | D72: 66733 | E72: 66.733
B73: 69 | C73: Myanmar | D73: 64866 | E73: 64.866
B74: 70 | C74: Guatemala | D74: 63794 | E74: 63.794
B75: 71 | C75: Kenya | D75: 63398 | E75: 63.398
B76: 72 | C76: Ethiopia | D76: 61537 | E76: 61.537
B77: 73 | C77: Luxembourg | D77: 57794 | E77: 57.794
B78: 74 | C78: Belarus | D78: 54609 | E78: 54.609
B79: 75 | C79: Uruguay | D79: 53443 | E79: 53.443
B80: 76 | C80: Azerbaijan | D80: 53047 | E80: 53.047
B81: 77 | C81: Panama | D81: 52132 | E81: 52.132
B82: 78 | C82: Costa Rica | D82: 51107 | E82: 51.107
B83: 79 | C83: Bulgaria | D83: 48953 | E83: 48.953
B84: 80 | C84: Croatia | D84: 48732 | E84: 48.732
B85: 81 | C85: Lebanon | D85: 47103 | E85: 47.103
B86: — | C86: Macau, China | D86: 46178 | E86: 46.178
B87: 82 | C87: Tanzania | D87: 44895 | E87: 44.895
B88: 83 | C88: Tunisia | D88: 43015 | E88: 43.015
B89: 84 | C89: Slovenia | D89: 42747 | E89: 42.747
B90: 85 | C90: Lithuania | D90: 41244 | E90: 41.244
B91: 86 | C91: Ghana | D91: 37864 | E91: 37.864
B92: 87 | C92: Jordan | D92: 37517 | E92: 37.517
B93: 88 | C93: Turkmenistan | D93: 37334 | E93: 37.334
B94: 89 | C94: Serbia | D94: 36513 | E94: 36.513
B95: 90 | C95: Yemen | D95: 35955 | E95: 35.955
B96: 91 | C96: Democratic Republic of the Congo | D96: 35238 | E96: 35.238
B97: 92 | C97: Bolivia | D97: 33197 | E97: 33.197
B98: 93 | C98: Bahrain | D98: 32221 | E98: 32.221
B99: 94 | C99: Côte d'Ivoire | D99: 31753 | E99: 31.753
B100: 95 | C100: Cameroon | D100: 29198 | E100: 29.198
B101: 96 | C101: Libya | D101: 29153 | E101: 29.153
B102: 97 | C102: Trinidad and Tobago | D102: 27806 | E102: 27.806
B103: 98 | C103: Paraguay | D103: 27623 | E103: 27.623
B104: 99 | C104: Latvia | D104: 27035 | E104: 27.035
B105: 100 | C105: Uganda | D105: 26369 | E105: 26.369
B106: 101 | C106: El Salvador | D106: 25850 | E106: 25.85
B107: 102 | C107: Estonia | D107: 22691 | E107: 22.691
B108: 103 | C108: Zambia | D108: 21202 | E108: 21.202
B109: 104 | C109: Nepal | D109: 20881 | E109: 20.881
B110: 105 | C110: Honduras | D110: 20152 | E110: 20.152
B111: 106 | C111: Cyprus | D111: 19320 | E111: 19.32
B112: 107 | C112: Afghanistan | D112: 19199 | E112: 19.199
B113: 108 | C113: Bosnia and Herzegovina | D113: 18521 | E113: 18.521
B114: 109 | C114: Gabon | D114: 18180 | E114: 18.18
B115: 110 | C115: Brunei | D115: 17105 | E115: 17.105
B116: 111 | C116: Iceland | D116: 17036 | E116: 17.036
B117: 112 | C117: Papua New Guinea | D117: 16929 | E117: 16.929
B118: 113 | C118: Cambodia | D118: 16778 | E118: 16.778
B119: 114 | C119: Georgia | D119: 16530 | E119: 16.53
B120: 115 | C120: Mozambique | D120: 15938 | E120: 15.938
B121: 116 | C121: Botswana | D121: 15813 | E121: 15.813
B122: 117 | C122: Senegal | D122: 15658 | E122: 15.658
B123: 118 | C123: Equatorial Guinea | D123: 15530 | E123: 15.53
B124: 119 | C124: Zimbabwe | D124: 14197 | E124: 14.197
B125: 120 | C125: Republic of the Congo | D125: 14177 | E125: 14.177
B126: 121 | C126: Chad | D126: 13922 | E126: 13.922
B127: 122 | C127: Jamaica | D127: 13891 | E127: 13.891
B128: 123 | C128: South Sudan | D128: 13282 | E128: 13.282
B129: 124 | C129: Albania | D129: 13212 | E129: 13.212
B130: 125 | C130: Namibia | D130: 12995 | E130: 12.995
C131: West Bank and Gaza | D131: 12738 | E131: 12.738
B132: 126 | C132: Mauritius | D132: 12630 | E132: =D132/1000 -> 12.63
B133: 127 | C133: Burkina Faso | D133: 12542 | E133: 12.542
B134: 128 | C134: Mali | D134: 12037 | E134: 12.037
B135: 129 | C135: Mongolia | D135: 12016 | E135: 12.016
B136: 130 | C136: Laos | D136: 11997 | E136: 11.997
B137: 131 | C137: Nicaragua | D137: 11806 | E137: 11.806
B138: 132 | C138: Armenia | D138: 11644 | E138: 11.644
B139: 133 | C139: Macedonia | D139: 11324 | E139: 11.324
B140: 134 | C140: Madagascar | D140: 10593 | E140: 10.593
B141: 135 | C141: Malta | D141: 9643 | E141: 9.643
B142: 136 | C142: Benin | D142: 9575 | E142: 9.575
B143: 137 | C143: Tajikistan | D143: 9242 | E143: 9.242
B144: 138 | C144: Haiti | D144: 8713 | E144: 8.713
B145: 139 | C145: The Bahamas | D145: 8511 | E145: 8.511
B146: 140 | C146: Niger | D146: 8169 | E146: 8.169
B147: 141 | C147: Moldova | D147: 7962 | E147: 7.962
B148: 142 | C148: Rwanda | D148: 7890 | E148: 7.89
B149: 143 | C149: Kyrgyzstan | D149: 7404 | E149: 7.404
B150: 144 | C150: Kosovo | D150: 7387 | E150: 7.387
B151: 145 | C151: Guinea | D151: 6624 | E151: 6.624
B152: 146 | C152: Somalia | D152: 5707 | E152: 5.707
C153: Bermuda | D153: 5574 | E153: 5.574
B154: 147 | C154: Liechtenstein | D154: 5488 | E154: 5.488
B155: 148 | C155: Suriname | D155: 5210 | E155: 5.21
B156: 149 | C156: Mauritania | D156: 5061 | E156: 5.061
B157: 150 | C157: Sierra Leone | D157: 4838 | E157: 4.838
B158: 151 | C158: Montenegro | D158: 4588 | E158: 4.588
B159: 152 | C159: Fiji | D159: 4532 | E159: 4.532
B160: 153 | C160: Togo | D160: 4518 | E160: 4.518
B161: 154 | C161: Swaziland | D161: 4413 | E161: 4.413
B162: 155 | C162: Barbados | D162: 4355 | E162: 4.355
B163: 156 | C163: Malawi | D163: 4258 | E163: 4.258
B164: 157 | C164: Andorra | D164: 3249 | E164: 3.249
B165: 158 | C165: Guyana | D165: 3097 | E165: 3.097
B166: 159 | C166: Burundi | D166: 3094 | E166: 3.094
B167: 160 | C167: Maldives | D167: 3062 | E167: 3.062
C168: Faroe Islands | D168: 2613 | E168: 2.613
C169: Greenland | D169: 2441 | E169: 2.441
B170: 161 | C170: Lesotho | D170: 2181 | E170: 2.181
B171: 162 | C171: Liberia | D171: 2013 | E171: 2.013
B172: 163 | C172: Bhutan | D172: 1959 | E172: 1.959
B173: 164 | C173: Cape Verde | D173: 1871 | E173: 1.871
B174: 165 | C174: Central African Republic | D174: 1723 | E174: 1.723
B175: 166 | C175: Belize | D175: 1699 | E175: 1.699
B176: 167 | C176: Djibouti | D176: 1589 | E176: 1.589
B177: 168 | C177: Seychelles | D177: 1423 | E177: 1.423
B178: 169 | C178: Timor-Leste | D178: 1417 | E178: 1.417
B179: 170 | C179: Saint Lucia | D179: 1404 | E179: 1.404
B180: 171 | C180: Antigua and Barbuda | D180: 1221 | E180: 1.221
B181: 172 | C181: Solomon Islands | D181: 1158 | E181: 1.158
B182: 173 | C182: Guinea-Bissau | D182: 1209 | E182: 1.209
B183: 174 | C183: The Gambia | D183: 851 | E183: 0.851
B184: 175 | C184: Grenada | D184: 884 | E184: 0.884
B185: 176 | C185: Saint Kitts and Nevis | D185: 852 | E185: 0.852
B186: 177 | C186: Vanuatu | D186: 815 | E186: 0.815
B187: 178 | C187: Samoa | D187: 800 | E187: 0.8
B188: 179 | C188: Saint Vincent and the Grenadines | D188: 729 | E188: 0.729
B189: 180 | C189: Comoros | D189: 624 | E189: 0.624
B190: 182 | C190: Dominica | D190: 524 | E190: 0.524
B191: 183 | C191: Tonga | D191: 434 | E191: 0.434
B192: 185 | C192: São Tomé and Príncipe | D192: 337 | E192: 0.337
B193: 184 | C193: Federated States of Micronesia | D193: 318 | E193: 0.318
B194: 186 | C194: Palau | D194: 251 | E194: 0.251
B195: 187 | C195: Marshall Islands | D195: 187 | E195: 0.187
B196: 188 | C196: Kiribati | D196: 167 | E196: =D196/1000 -> 0.167
B197: 189 | C197: Tuvalu | D197: 38 | E197: 0.038
E198: =SUM(E3:E197) -> 72905.717

Sheet Top 12 Medaling 2016 GDP-Adj
A1: Olympic Medal Efficiency: Top 20 Economies Sorted by GDP-Adjusted Score | M1: 2016 Games
B2: Analysis by David Brode of The Brode Group
E5: 3 | F5: 2 | G5: 1 | I5: USD B | J5: Pts per
B6: Country | E6: Gold | F6: Silver | G6: Bronze | H6: Points | I6: GDP | J6: $T GDP | L6: Visual Representation
B7: Russia | E7: 19 | F7: 18 | G7: 19 | H7: =SUMPRODUCT($E$5:$G$5,E7:G7) -> 112 | I7: 1326.015 | J7: =H7/(I7/1000) -> 84.46359958 | L7: =REPT("|",ROUND(J7,0)) -> ||||||||||||||||||||||||||||||||||||||||||||||||||||||||||||||||||||||||||||||||||||
B8: Netherlands | E8: 8 | F8: 7 | G8: 4 | H8: =SUMPRODUCT($E$5:$G$5,E8:G8) -> 42 | I8: 752.547 | J8: =H8/(I8/1000) -> 55.81046765 | L8: =REPT("|",ROUND(J8,0)) -> ||||||||||||||||||||||||||||||||||||||||||||||||||||||||
B9: Great Britain | E9: 27 | F9: 23 | G9: 17 | H9: =SUMPRODUCT($E$5:$G$5,E9:G9) -> 144 | I9: 2848.755 | J9: =H9/(I9/1000) -> 50.54839746 | L9: |||||||||||||||||||||||||||||||||||||||||||||||||||
B10: Australia | E10: 8 | F10: 11 | G10: 10 | H10: =SUMPRODUCT($E$5:$G$5,E10:G10) -> 56 | I10: 1339.539 | J10: =H10/(I10/1000) -> 41.80542709 | L10: ||||||||||||||||||||||||||||||||||||||||||
B11: France | E11: 10 | F11: 18 | G11: 14 | H11: =SUMPRODUCT($E$5:$G$5,E11:G11) -> 80 | I11: 2421.682 | J11: =H11/(I11/1000) -> 33.03489063 | L11: |||||||||||||||||||||||||||||||||
B12: Italy | E12: 8 | F12: 12 | G12: 8 | H12: =SUMPRODUCT($E$5:$G$5,E12:G12) -> 56 | I12: 1814.763 | J12: =H12/(I12/1000) -> 30.85802389 | L12: |||||||||||||||||||||||||||||||
B13: South Korea | E13: 9 | F13: 3 | G13: 9 | H13: =SUMPRODUCT($E$5:$G$5,E13:G13) -> 42 | I13: 1377.873 | J13: =H13/(I13/1000) -> 30.48176428 | L13: ||||||||||||||||||||||||||||||
B14: Spain | E14: 7 | F14: 4 | G14: 6 | H14: =SUMPRODUCT($E$5:$G$5,E14:G14) -> 35 | I14: 1199.057 | J14: =H14/(I14/1000) -> 29.18960483 | L14: |||||||||||||||||||||||||||||
B15: Germany | E15: 17 | F15: 10 | G15: 15 | H15: =SUMPRODUCT($E$5:$G$5,E15:G15) -> 86 | I15: 3355.772 | J15: =H15/(I15/1000) -> 25.62748602 | L15: ||||||||||||||||||||||||||
B16: Switzerland | E16: 3 | F16: 2 | G16: 2 | H16: =SUMPRODUCT($E$5:$G$5,E16:G16) -> 15 | I16: 664.738 | J16: =H16/(I16/1000) -> 22.56528136 | L16: |||||||||||||||||||||||
B17: Brazil | E17: 7 | F17: 6 | G17: 6 | H17: =SUMPRODUCT($E$5:$G$5,E17:G17) -> 39 | I17: 1774.725 | J17: =H17/(I17/1000) -> 21.9752356 | L17: ||||||||||||||||||||||
B18: Canada | E18: 4 | F18: 3 | G18: 15 | H18: =SUMPRODUCT($E$5:$G$5,E18:G18) -> 33 | I18: 1550.537 | J18: =H18/(I18/1000) -> 21.28294907 | L18: |||||||||||||||||||||
B19: Argentina | E19: 3 | F19: 1 | G19: 0 | H19: =SUMPRODUCT($E$5:$G$5,E19:G19) -> 11 | I19: 548.055 | J19: =H19/(I19/1000) -> 20.07097828 | L19: ||||||||||||||||||||
B20: Turkey | E20: 1 | F20: 3 | G20: 4 | H20: =SUMPRODUCT($E$5:$G$5,E20:G20) -> 13 | I20: 718.221 | J20: =H20/(I20/1000) -> 18.10027833 | L20: ||||||||||||||||||
B21: Japan | E21: 12 | F21: 8 | G21: 21 | H21: =SUMPRODUCT($E$5:$G$5,E21:G21) -> 73 | I21: 4123.258 | J21: =H21/(I21/1000) -> 17.70444634 | L21: ||||||||||||||||||
B22: United States | E22: 46 | F22: 37 | G22: 38 | H22: =SUMPRODUCT($E$5:$G$5,E22:G22) -> 250 | I22: 17946.996 | J22: =H22/(I22/1000) -> 13.92990782 | L22: ||||||||||||||
B23: China | E23: 26 | F23: 18 | G23: 26 | H23: =SUMPRODUCT($E$5:$G$5,E23:G23) -> 140 | I23: 10866.444 | J23: =H23/(I23/1000) -> 12.88369958 | L23: |||||||||||||
B24: Indonesia | E24: 1 | F24: 2 | G24: 0 | H24: =SUMPRODUCT($E$5:$G$5,E24:G24) -> 7 | I24: 861.934 | J24: =H24/(I24/1000) -> 8.121271466 | L24: ||||||||
B25: Mexico | E25: 0 | F25: 3 | G25: 2 | H25: =SUMPRODUCT($E$5:$G$5,E25:G25) -> 8 | I25: 1144.331 | J25: =H25/(I25/1000) -> 6.990984252 | L25: |||||||
B26: India | E26: 0 | F26: 1 | G26: 1 | H26: =SUMPRODUCT($E$5:$G$5,E26:G26) -> 3 | I26: 2073.543 | J26: =H26/(I26/1000) -> 1.446799029 | L26: |
E27: =SUM(E7:E26) -> 216 | F27: =SUM(F7:F26) -> 190 | G27: 217 | H27: =SUM(H7:H26) -> 1245 | I27: =SUM(I7:I26) -> 58708.785 | J27: =H27/(I27/1000) -> 21.2063663
N29: =RSQ(H7:H26,I7:I26) -> 0.7307009377 | O29: 73% R-Squared!
B30: Saudi Arabia is actually the 20th largest economy, just ahead of Argentina, but the country failed to medal in Rio.

Sheet Top 12 Medaling 2012 GDP-Adj
A1: Olympic Medal Efficiency: Top 20 Economies Sorted by GDP-Adjusted Score | M1: 2016 Games
B2: Analysis by David Brode of The Brode Group
E5: 3 | F5: 2 | G5: 1 | I5: USD B | J5: Pts per
B6: Country | E6: Gold | F6: Silver | G6: Bronze | H6: Points | I6: GDP | J6: $T GDP | L6: Visual Representation
B7: Russia | E7: 24 | F7: 26 | G7: 32 | H7: =SUMPRODUCT($E$5:$G$5,E7:G7) -> 156 | I7: 1850.401 | J7: =H7/(I7/1000) -> 84.30605042 | L7: =REPT("|",ROUND(J7,0)) -> ||||||||||||||||||||||||||||||||||||||||||||||||||||||||||||||||||||||||||||||||||||
B8: United Kingdom | E8: 29 | F8: 17 | G8: 19 | H8: =SUMPRODUCT($E$5:$G$5,E8:G8) -> 140 | I8: 2417.57 | J8: 57.90938835 | L8: =REPT("|",ROUND(J8,0)) -> ||||||||||||||||||||||||||||||||||||||||||||||||||||||||||
B9: South Korea | E9: 13 | F9: 8 | G9: 7 | H9: =SUMPRODUCT($E$5:$G$5,E9:G9) -> 62 | I9: 1116.247 | J9: 55.54326238 | L9: ||||||||||||||||||||||||||||||||||||||||||||||||||||||||
B10: Netherlands | E10: 6 | F10: 6 | G10: 8 | H10: =SUMPRODUCT($E$5:$G$5,E10:G10) -> 38 | I10: 840.433 | J10: 45.21478809 | L10: |||||||||||||||||||||||||||||||||||||||||||||
B11: Australia | E11: 7 | F11: 16 | G11: 12 | H11: =SUMPRODUCT($E$5:$G$5,E11:G11) -> 65 | I11: 1488.221 | J11: 43.67630883 | L11: ||||||||||||||||||||||||||||||||||||||||||||
B12: China | E12: 38 | F12: 27 | G12: 23 | H12: =SUMPRODUCT($E$5:$G$5,E12:G12) -> 191 | I12: 7298.147 | J12: 26.1710267 | L12: ||||||||||||||||||||||||||
B13: France | E13: 11 | F13: 11 | G13: 12 | H13: =SUMPRODUCT($E$5:$G$5,E13:G13) -> 67 | I13: 2776.324 | J13: 24.13263005 | L13: ||||||||||||||||||||||||
B14: Italy | E14: 8 | F14: 9 | G14: 11 | H14: =SUMPRODUCT($E$5:$G$5,E14:G14) -> 53 | I14: 2198.73 | J14: 24.10482415 | L14: ||||||||||||||||||||||||
B15: Germany | E15: 11 | F15: 19 | G15: 14 | H15: =SUMPRODUCT($E$5:$G$5,E15:G15) -> 85 | I15: 3577.031 | J15: 23.76272389 | L15: ||||||||||||||||||||||||
B16: Spain | E16: 3 | F16: 10 | G16: 4 | H16: =SUMPRODUCT($E$5:$G$5,E16:G16) -> 33 | I16: 1493.513 | J16: 22.09555591 | L16: ||||||||||||||||||||||
B17: Switzerland | E17: 2 | F17: 2 | G17: - | H17: =SUMPRODUCT($E$5:$G$5,E17:G17) -> 10 | I17: 636.059 | J17: 15.72181197 | L17: ||||||||||||||||
B18: United States | E18: 46 | F18: 29 | G18: 29 | H18: =SUMPRODUCT($E$5:$G$5,E18:G18) -> 225 | I18: 15094.025 | J18: 14.90656071 | L18: |||||||||||||||
B19: Canada | E19: 1 | F19: 5 | G19: 12 | H19: =SUMPRODUCT($E$5:$G$5,E19:G19) -> 25 | I19: 1736.869 | J19: =H19/(I19/1000) -> 14.39371651 | L19: =REPT("|",ROUND(J19,0)) -> ||||||||||||||
B20: Turkey | E20: 2 | F20: 2 | G20: 1 | H20: =SUMPRODUCT($E$5:$G$5,E20:G20) -> 11 | I20: 778.089 | J20: 14.13720024 | L20: ||||||||||||||
B21: Japan | E21: 7 | F21: 14 | G21: 17 | H21: =SUMPRODUCT($E$5:$G$5,E21:G21) -> 66 | I21: 5869.471 | J21: 11.24462494 | L21: |||||||||||
B22: Brazil | E22: 3 | F22: 5 | G22: 9 | H22: =SUMPRODUCT($E$5:$G$5,E22:G22) -> 28 | I22: 2492.908 | J22: 11.23186255 | L22: |||||||||||
B23: Mexico | E23: 1 | F23: 3 | G23: 3 | H23: =SUMPRODUCT($E$5:$G$5,E23:G23) -> 12 | I23: 1154.784 | J23: 10.39155375 | L23: ||||||||||
B24: India | E24: - | F24: 2 | G24: 4 | H24: =SUMPRODUCT($E$5:$G$5,E24:G24) -> 8 | I24: 1676.143 | J24: 4.772862459 | L24: |||||
B25: Indonesia | E25: - | F25: 1 | G25: 1 | H25: =SUMPRODUCT($E$5:$G$5,E25:G25) -> 3 | I25: 845.68 | J25: 3.547441112 | L25: ||||
B26: Saudi Arabia | E26: - | F26: - | G26: 1 | H26: =SUMPRODUCT($E$5:$G$5,E26:G26) -> 1 | I26: 577.595 | J26: 1.731316926 | L26: ||
H27: =SUM(H7:H26) -> 1279 | I27: =SUM(I7:I26) -> 55918.24 | J27: 22.87267983
N29: =RSQ(H7:H26,I7:I26) -> 0.6044915443 | O29: 60% R-Squared!

Sheet Unadjusted-2012
A1: Olympic Medals--2012 | D1: 3 | E1: 2 | F1: 1
D2: Gold | E2: Silver | F2: Bronze | G2: Total | H2: Points | I2: Match GDP | J2: GDP ($M) | K2: GDP $T | L2: Pts/$T GDP
A3: 1 | C3: United States | D3: 46 | E3: 29 | F3: 29 | G3: 104 | H3: =SUMPRODUCT(D3:F3,$D$1:$F$1) -> 225 | I3: =MATCH(C3, 'GDP-2012'!$C$4:$C$189,0) -> 178 | J3: =OFFSET('GDP-2012'!$D$3,I3,0) -> 15094025 | K3: =J3/1000/1000 -> 15.094025 | L3: =H3/K3 -> 14.90656071
A4: 2 | C4: China | D4: 38 | E4: 27 | F4: 23 | G4: 88 | H4: =SUMPRODUCT(D4:F4,$D$1:$F$1) -> 191 | I4: =MATCH(C4, 'GDP-2012'!$C$4:$C$189,0) -> 36 | J4: =OFFSET('GDP-2012'!$D$3,I4,0) -> 7298147 | K4: 7.298147 | L4: 26.1710267
A5: 3 | C5: Russia | D5: 24 | E5: 26 | F5: 32 | G5: 82 | H5: =SUMPRODUCT(D5:F5,$D$1:$F$1) -> 156 | I5: =MATCH(C5, 'GDP-2012'!$C$4:$C$189,0) -> 137 | J5: =OFFSET('GDP-2012'!$D$3,I5,0) -> 1850401 | K5: 1.850401 | L5: 84.30605042
A6: 4 | C6: United Kingdom | D6: 29 | E6: 17 | F6: 19 | G6: 65 | H6: =SUMPRODUCT(D6:F6,$D$1:$F$1) -> 140 | I6: =MATCH(C6, 'GDP-2012'!$C$4:$C$189,0) -> 177 | J6: =OFFSET('GDP-2012'!$D$3,I6,0) -> 2417570 | K6: 2.41757 | L6: 57.90938835
A7: 5 | C7: Germany | D7: 11 | E7: 19 | F7: 14 | G7: 44 | H7: =SUMPRODUCT(D7:F7,$D$1:$F$1) -> 85 | I7: =MATCH(C7, 'GDP-2012'!$C$4:$C$189,0) -> 64 | J7: =OFFSET('GDP-2012'!$D$3,I7,0) -> 3577031 | K7: 3.577031 | L7: 23.76272389
A8: 6 | C8: France | D8: 11 | E8: 11 | F8: 12 | G8: 34 | H8: =SUMPRODUCT(D8:F8,$D$1:$F$1) -> 67 | I8: =MATCH(C8, 'GDP-2012'!$C$4:$C$189,0) -> 60 | J8: =OFFSET('GDP-2012'!$D$3,I8,0) -> 2776324 | K8: 2.776324 | L8: 24.13263005
A9: 7 | C9: Japan | D9: 7 | E9: 14 | F9: 17 | G9: 38 | H9: =SUMPRODUCT(D9:F9,$D$1:$F$1) -> 66 | I9: =MATCH(C9, 'GDP-2012'!$C$4:$C$189,0) -> 85 | J9: =OFFSET('GDP-2012'!$D$3,I9,0) -> 5869471 | K9: 5.869471 | L9: 11.24462494
A10: 8 | C10: Australia | D10: 7 | E10: 16 | F10: 12 | G10: 35 | H10: =SUMPRODUCT(D10:F10,$D$1:$F$1) -> 65 | I10: =MATCH(C10, 'GDP-2012'!$C$4:$C$189,0) -> 8 | J10: =OFFSET('GDP-2012'!$D$3,I10,0) -> 1488221 | K10: 1.488221 | L10: 43.67630883
A11: 9 | C11: South Korea | D11: 13 | E11: 8 | F11: 7 | G11: 28 | H11: =SUMPRODUCT(D11:F11,$D$1:$F$1) -> 62 | I11: =MATCH(C11, 'GDP-2012'!$C$4:$C$189,0) -> 154 | J11: =OFFSET('GDP-2012'!$D$3,I11,0) -> 1116247 | K11: 1.116247 | L11: 55.54326238
A12: 10 | C12: Italy | D12: 8 | E12: 9 | F12: 11 | G12: 28 | H12: =SUMPRODUCT(D12:F12,$D$1:$F$1) -> 53 | I12: =MATCH(C12, 'GDP-2012'!$C$4:$C$189,0) -> 83 | J12: =OFFSET('GDP-2012'!$D$3,I12,0) -> 2198730 | K12: 2.19873 | L12: 24.10482415
A13: 11 | C13: Netherlands | D13: 6 | E13: 6 | F13: 8 | G13: 20 | H13: =SUMPRODUCT(D13:F13,$D$1:$F$1) -> 38 | I13: =MATCH(C13, 'GDP-2012'!$C$4:$C$189,0) -> 118 | J13: =OFFSET('GDP-2012'!$D$3,I13,0) -> 840433 | K13: 0.840433 | L13: 45.21478809
A14: 12 | C14: Hungary | D14: 8 | E14: 4 | F14: 5 | G14: 17 | H14: =SUMPRODUCT(D14:F14,$D$1:$F$1) -> 37 | I14: =MATCH(C14, 'GDP-2012'!$C$4:$C$189,0) -> 75 | J14: =OFFSET('GDP-2012'!$D$3,I14,0) -> 140303 | K14: 0.140303 | L14: 263.7149598
A15: 13 | C15: Ukraine | D15: 6 | E15: 5 | F15: 9 | G15: 20 | H15: =SUMPRODUCT(D15:F15,$D$1:$F$1) -> 37 | I15: =MATCH(C15, 'GDP-2012'!$C$4:$C$189,0) -> 175 | J15: =OFFSET('GDP-2012'!$D$3,I15,0) -> 164960 | K15: 0.16496 | L15: 224.2967992
A16: 14 | C16: Spain | D16: 3 | E16: 10 | F16: 4 | G16: 17 | H16: =SUMPRODUCT(D16:F16,$D$1:$F$1) -> 33 | I16: =MATCH(C16, 'GDP-2012'!$C$4:$C$189,0) -> 155 | J16: =OFFSET('GDP-2012'!$D$3,I16,0) -> 1493513 | K16: 1.493513 | L16: 22.09555591
A17: 15 | C17: Kazakhstan | D17: 7 | E17: 1 | F17: 5 | G17: 13 | H17: =SUMPRODUCT(D17:F17,$D$1:$F$1) -> 28 | I17: =MATCH(C17, 'GDP-2012'!$C$4:$C$189,0) -> 87 | J17: =OFFSET('GDP-2012'!$D$3,I17,0) -> 178312 | K17: 0.178312 | L17: 157.0281305
A18: 16 | C18: Brazil | D18: 3 | E18: 5 | F18: 9 | G18: 17 | H18: =SUMPRODUCT(D18:F18,$D$1:$F$1) -> 28 | I18: =MATCH(C18, 'GDP-2012'!$C$4:$C$189,0) -> 23 | J18: =OFFSET('GDP-2012'!$D$3,I18,0) -> 2492908 | K18: 2.492908 | L18: 11.23186255
A19: 17 | C19: Cuba | D19: 5 | E19: 3 | F19: 6 | G19: 14 | H19: =SUMPRODUCT(D19:F19,$D$1:$F$1) -> 27 | I19: =MATCH(C19, 'GDP-2012'!$C$4:$C$189,0) -> 44 | J19: =OFFSET('GDP-2012'!$D$3,I19,0) -> 62705 | K19: 0.062705 | L19: 430.5876724
A20: 18 | C20: New Zealand | D20: 6 | E20: 2 | F20: 5 | G20: 13 | H20: =SUMPRODUCT(D20:F20,$D$1:$F$1) -> 27 | I20: =MATCH(C20, 'GDP-2012'!$C$4:$C$189,0) -> 119 | J20: =OFFSET('GDP-2012'!$D$3,I20,0) -> 161851 | K20: 0.161851 | L20: 166.8201
A21: 19 | C21: Iran | D21: 4 | E21: 5 | F21: 3 | G21: 12 | H21: =SUMPRODUCT(D21:F21,$D$1:$F$1) -> 25 | I21: =MATCH(C21, 'GDP-2012'!$C$4:$C$189,0) -> 79 | J21: =OFFSET('GDP-2012'!$D$3,I21,0) -> 482445 | K21: 0.482445 | L21: 51.81937837
A22: 20 | C22: Canada | D22: 1 | E22: 5 | F22: 12 | G22: 18 | H22: =SUMPRODUCT(D22:F22,$D$1:$F$1) -> 25 | I22: =MATCH(C22, 'GDP-2012'!$C$4:$C$189,0) -> 31 | J22: =OFFSET('GDP-2012'!$D$3,I22,0) -> 1736869 | K22: 1.736869 | L22: 14.39371651
A23: 21 | C23: Jamaica | D23: 4 | E23: 4 | F23: 4 | G23: 12 | H23: =SUMPRODUCT(D23:F23,$D$1:$F$1) -> 24 | I23: =MATCH(C23, 'GDP-2012'!$C$4:$C$189,0) -> 84 | J23: =OFFSET('GDP-2012'!$D$3,I23,0) -> 14807 | K23: 0.014807 | L23: 1620.855001
A24: 22 | C24: Belarus | D24: 3 | E24: 5 | F24: 5 | G24: 13 | H24: =SUMPRODUCT(D24:F24,$D$1:$F$1) -> 24 | I24: =MATCH(C24, 'GDP-2012'!$C$4:$C$189,0) -> 15 | J24: =OFFSET('GDP-2012'!$D$3,I24,0) -> 55483 | K24: 0.055483 | L24: 432.5649298
A25: 23 | C25: Czech Republic | D25: 4 | E25: 3 | F25: 3 | G25: 10 | H25: =SUMPRODUCT(D25:F25,$D$1:$F$1) -> 21 | I25: =MATCH(C25, 'GDP-2012'!$C$4:$C$189,0) -> 46 | J25: =OFFSET('GDP-2012'!$D$3,I25,0) -> 215265 | K25: 0.215265 | L25: 97.55417741
A26: 24 | C26: Kenya | D26: 2 | E26: 4 | F26: 5 | G26: 11 | H26: =SUMPRODUCT(D26:F26,$D$1:$F$1) -> 19 | I26: =MATCH(C26, 'GDP-2012'!$C$4:$C$189,0) -> 88 | J26: =OFFSET('GDP-2012'!$D$3,I26,0) -> 34796 | K26: 0.034796 | L26: 546.0397747
A27: 25 | C27: Romania | D27: 2 | E27: 5 | F27: 2 | G27: 9 | H27: =SUMPRODUCT(D27:F27,$D$1:$F$1) -> 18 | I27: =MATCH(C27, 'GDP-2012'!$C$4:$C$189,0) -> 136 | J27: =OFFSET('GDP-2012'!$D$3,I27,0) -> 189776 | K27: 0.189776 | L27: 94.84866369
A28: 26 | C28: Denmark | D28: 2 | E28: 4 | F28: 3 | G28: 9 | H28: =SUMPRODUCT(D28:F28,$D$1:$F$1) -> 17 | I28: =MATCH(C28, 'GDP-2012'!$C$4:$C$189,0) -> 47 | J28: =OFFSET('GDP-2012'!$D$3,I28,0) -> 333238 | K28: 0.333238 | L28: 51.01459017
A29: 27 | C29: Azerbaijan | D29: 2 | E29: 2 | F29: 6 | G29: 10 | H29: =SUMPRODUCT(D29:F29,$D$1:$F$1) -> 16 | I29: =MATCH(C29, 'GDP-2012'!$C$4:$C$189,0) -> 10 | J29: =OFFSET('GDP-2012'!$D$3,I29,0) -> 62321 | K29: 0.062321 | L29: 256.7352899
A30: 28 | C30: Poland | D30: 2 | E30: 2 | F30: 6 | G30: 10 | H30: =SUMPRODUCT(D30:F30,$D$1:$F$1) -> 16 | I30: =MATCH(C30, 'GDP-2012'!$C$4:$C$189,0) -> 132 | J30: =OFFSET('GDP-2012'!$D$3,I30,0) -> 513821 | K30: 0.513821 | L30: 31.13924888
A31: 29 | C31: North Korea | D31: 4 | E31: - | F31: 2 | G31: 6 | H31: =SUMPRODUCT(D31:F31,$D$1:$F$1) -> 14 | I31: =MATCH(C31, 'GDP-2012'!$C$4:$C$189,0) -> 123 | J31: =OFFSET('GDP-2012'!$D$3,I31,0) -> 28000 | K31: 0.028 | L31: 500
A32: 30 | C32: Ethiopia | D32: 3 | E32: 1 | F32: 3 | G32: 7 | H32: =SUMPRODUCT(D32:F32,$D$1:$F$1) -> 14 | I32: =MATCH(C32, 'GDP-2012'!$C$4:$C$189,0) -> 57 | J32: =OFFSET('GDP-2012'!$D$3,I32,0) -> 31256 | K32: 0.031256 | L32: 447.9140005
A33: 30 | C33: South Africa | D33: 3 | E33: 2 | F33: 1 | G33: 6 | H33: =SUMPRODUCT(D33:F33,$D$1:$F$1) -> 14 | I33: =MATCH(C33, 'GDP-2012'!$C$4:$C$189,0) -> 153 | J33: =OFFSET('GDP-2012'!$D$3,I33,0) -> 408074 | K33: 0.408074 | L33: 34.30750305
A34: 32 | C34: Sweden | D34: 1 | E34: 4 | F34: 3 | G34: 8 | H34: =SUMPRODUCT(D34:F34,$D$1:$F$1) -> 14 | I34: =MATCH(C34, 'GDP-2012'!$C$4:$C$189,0) -> 160 | J34: =OFFSET('GDP-2012'!$D$3,I34,0) -> 538237 | K34: 0.538237 | L34: 26.01084652
A35: 33 | C35: Croatia | D35: 3 | E35: 1 | F35: 2 | G35: 6 | H35: =SUMPRODUCT(D35:F35,$D$1:$F$1) -> 13 | I35: =MATCH(C35, 'GDP-2012'!$C$4:$C$189,0) -> 43 | J35: =OFFSET('GDP-2012'!$D$3,I35,0) -> 63842 | K35: =J35/1000/1000 -> 0.063842 | L35: =H35/K35 -> 203.6277059
A36: 34 | C36: Colombia | D36: 1 | E36: 3 | F36: 4 | G36: 8 | H36: =SUMPRODUCT(D36:F36,$D$1:$F$1) -> 13 | I36: =MATCH(C36, 'GDP-2012'!$C$4:$C$189,0) -> 37 | J36: =OFFSET('GDP-2012'!$D$3,I36,0) -> 328422 | K36: 0.328422 | L36: 39.58321915
A37: 35 | C37: Georgia | D37: 1 | E37: 3 | F37: 3 | G37: 7 | H37: =SUMPRODUCT(D37:F37,$D$1:$F$1) -> 12 | I37: =MATCH(C37, 'GDP-2012'!$C$4:$C$189,0) -> 63 | J37: =OFFSET('GDP-2012'!$D$3,I37,0) -> 14347 | K37: 0.014347 | L37: 836.4117934
A38: 36 | C38: Mexico | D38: 1 | E38: 3 | F38: 3 | G38: 7 | H38: =SUMPRODUCT(D38:F38,$D$1:$F$1) -> 12 | I38: =MATCH(C38, 'GDP-2012'!$C$4:$C$189,0) -> 110 | J38: =OFFSET('GDP-2012'!$D$3,I38,0) -> 1154784 | K38: 1.154784 | L38: 10.39155375
A39: 37 | C39: Turkey | D39: 2 | E39: 2 | F39: 1 | G39: 5 | H39: =SUMPRODUCT(D39:F39,$D$1:$F$1) -> 11 | I39: =MATCH(C39, 'GDP-2012'!$C$4:$C$189,0) -> 171 | J39: =OFFSET('GDP-2012'!$D$3,I39,0) -> 778089 | K39: 0.778089 | L39: 14.13720024
A40: 38 | C40: Lithuania | D40: 2 | E40: 1 | F40: 2 | G40: 5 | H40: =SUMPRODUCT(D40:F40,$D$1:$F$1) -> 10 | I40: =MATCH(C40, 'GDP-2012'!$C$4:$C$189,0) -> 99 | J40: =OFFSET('GDP-2012'!$D$3,I40,0) -> 42718 | K40: 0.042718 | L40: 234.0933564
A41: 39 | C41: Switzerland | D41: 2 | E41: 2 | F41: - | G41: 4 | H41: =SUMPRODUCT(D41:F41,$D$1:$F$1) -> 10 | I41: =MATCH(C41, 'GDP-2012'!$C$4:$C$189,0) -> 161 | J41: =OFFSET('GDP-2012'!$D$3,I41,0) -> 636059 | K41: 0.636059 | L41: 15.72181197
A42: 39 | C42: Norway | D42: 2 | E42: 1 | F42: 1 | G42: 4 | H42: =SUMPRODUCT(D42:F42,$D$1:$F$1) -> 9 | I42: =MATCH(C42, 'GDP-2012'!$C$4:$C$189,0) -> 124 | J42: =OFFSET('GDP-2012'!$D$3,I42,0) -> 483650 | K42: 0.48365 | L42: 18.60849788
A43: 41 | C43: Ireland | D43: 1 | E43: 1 | F43: 3 | G43: 5 | H43: =SUMPRODUCT(D43:F43,$D$1:$F$1) -> 8 | I43: =MATCH(C43, 'GDP-2012'!$C$4:$C$189,0) -> 81 | J43: =OFFSET('GDP-2012'!$D$3,I43,0) -> 217669 | K43: 0.217669 | L43: 36.75305165
A44: 42 | C44: India | D44: - | E44: 2 | F44: 4 | G44: 6 | H44: =SUMPRODUCT(D44:F44,$D$1:$F$1) -> 8 | I44: =MATCH(C44, 'GDP-2012'!$C$4:$C$189,0) -> 77 | J44: =OFFSET('GDP-2012'!$D$3,I44,0) -> 1676143 | K44: 1.676143 | L44: 4.772862459
A45: 42 | C45: Mongolia | D45: - | E45: 2 | F45: 3 | G45: 5 | H45: =SUMPRODUCT(D45:F45,$D$1:$F$1) -> 7 | I45: =MATCH(C45, 'GDP-2012'!$C$4:$C$189,0) -> 112 | J45: =OFFSET('GDP-2012'!$D$3,I45,0) -> 8506 | K45: 0.008506 | L45: 822.9485069
A46: 42 | C46: Serbia | D46: 1 | E46: 1 | F46: 2 | G46: 4 | H46: =SUMPRODUCT(D46:F46,$D$1:$F$1) -> 7 | I46: =MATCH(C46, 'GDP-2012'!$C$4:$C$189,0) -> 146 | J46: =OFFSET('GDP-2012'!$D$3,I46,0) -> 45064 | K46: 0.045064 | L46: 155.3346352
A47: 45 | C47: Slovenia | D47: 1 | E47: 1 | F47: 2 | G47: 4 | H47: =SUMPRODUCT(D47:F47,$D$1:$F$1) -> 7 | I47: =MATCH(C47, 'GDP-2012'!$C$4:$C$189,0) -> 151 | J47: =OFFSET('GDP-2012'!$D$3,I47,0) -> 49588 | K47: 0.049588 | L47: 141.1631846
A48: 46 | C48: Argentina | D48: 1 | E48: 1 | F48: 2 | G48: 4 | H48: =SUMPRODUCT(D48:F48,$D$1:$F$1) -> 7 | I48: =MATCH(C48, 'GDP-2012'!$C$4:$C$189,0) -> 6 | J48: =OFFSET('GDP-2012'!$D$3,I48,0) -> 447644 | K48: 0.447644 | L48: 15.63742617
A49: 47 | C49: Trinidad and Tobago | D49: 1 | E49: - | F49: 3 | G49: 4 | H49: =SUMPRODUCT(D49:F49,$D$1:$F$1) -> 6 | I49: =MATCH(C49, 'GDP-2012'!$C$4:$C$189,0) -> 169 | J49: =OFFSET('GDP-2012'!$D$3,I49,0) -> 22707 | K49: 0.022707 | L49: 264.2356982
A50: 47 | C50: Uzbekistan | D50: 1 | E50: - | F50: 3 | G50: 4 | H50: =SUMPRODUCT(D50:F50,$D$1:$F$1) -> 6 | I50: =MATCH(C50, 'GDP-2012'!$C$4:$C$189,0) -> 180 | J50: =OFFSET('GDP-2012'!$D$3,I50,0) -> 45353 | K50: 0.045353 | L50: 132.2955483
A51: 49 | C51: Tunisia | D51: 1 | E51: 1 | F51: 1 | G51: 3 | H51: =SUMPRODUCT(D51:F51,$D$1:$F$1) -> 6 | I51: =MATCH(C51, 'GDP-2012'!$C$4:$C$189,0) -> 170 | J51: =OFFSET('GDP-2012'!$D$3,I51,0) -> 46360 | K51: 0.04636 | L51: 129.4219154
A52: 50 | C52: Dominican Republic | D52: 1 | E52: 1 | F52: - | G52: 2 | H52: =SUMPRODUCT(D52:F52,$D$1:$F$1) -> 5 | I52: =MATCH(C52, 'GDP-2012'!$C$4:$C$189,0) -> 50 | J52: =OFFSET('GDP-2012'!$D$3,I52,0) -> 56700 | K52: 0.0567 | L52: 88.18342152
A53: 50 | C53: Slovakia | D53: - | E53: 1 | F53: 3 | G53: 4 | H53: =SUMPRODUCT(D53:F53,$D$1:$F$1) -> 5 | I53: =MATCH(C53, 'GDP-2012'!$C$4:$C$189,0) -> 150 | J53: =OFFSET('GDP-2012'!$D$3,I53,0) -> 96089 | K53: 0.096089 | L53: 52.03509247
A54: 50 | C54: Thailand | D54: - | E54: 2 | F54: 1 | G54: 3 | H54: =SUMPRODUCT(D54:F54,$D$1:$F$1) -> 5 | I54: =MATCH(C54, 'GDP-2012'!$C$4:$C$189,0) -> 165 | J54: =OFFSET('GDP-2012'!$D$3,I54,0) -> 345649 | K54: 0.345649 | L54: 14.46554163
A55: 50 | C55: Armenia | D55: - | E55: 1 | F55: 2 | G55: 3 | H55: =SUMPRODUCT(D55:F55,$D$1:$F$1) -> 4 | I55: =MATCH(C55, 'GDP-2012'!$C$4:$C$189,0) -> 7 | J55: =OFFSET('GDP-2012'!$D$3,I55,0) -> 10106 | K55: 0.010106 | L55: 395.8044726
A56: 50 | C56: Latvia | D56: 1 | E56: - | F56: 1 | G56: 2 | H56: =SUMPRODUCT(D56:F56,$D$1:$F$1) -> 4 | I56: =MATCH(C56, 'GDP-2012'!$C$4:$C$189,0) -> 94 | J56: =OFFSET('GDP-2012'!$D$3,I56,0) -> 28252 | K56: 0.028252 | L56: 141.5828968
A57: 55 | C57: Egypt | D57: - | E57: 2 | F57: - | G57: 2 | H57: =SUMPRODUCT(D57:F57,$D$1:$F$1) -> 4 | I57: =MATCH(C57, 'GDP-2012'!$C$4:$C$189,0) -> 52 | J57: =OFFSET('GDP-2012'!$D$3,I57,0) -> 235719 | K57: 0.235719 | L57: 16.96935758
A58: 56 | C58: Finland | D58: - | E58: 1 | F58: 2 | G58: 3 | H58: =SUMPRODUCT(D58:F58,$D$1:$F$1) -> 4 | I58: =MATCH(C58, 'GDP-2012'!$C$4:$C$189,0) -> 59 | J58: =OFFSET('GDP-2012'!$D$3,I58,0) -> 266553 | K58: 0.266553 | L58: 15.00639648
A59: 57 | C59: Belgium | D59: - | E59: 1 | F59: 2 | G59: 3 | H59: =SUMPRODUCT(D59:F59,$D$1:$F$1) -> 4 | I59: =MATCH(C59, 'GDP-2012'!$C$4:$C$189,0) -> 16 | J59: =OFFSET('GDP-2012'!$D$3,I59,0) -> 513396 | K59: 0.513396 | L59: 7.791256652
A60: 58 | C60: Grenada | D60: 1 | E60: - | F60: - | G60: 1 | H60: =SUMPRODUCT(D60:F60,$D$1:$F$1) -> 3 | I60: =MATCH(C60, 'GDP-2012'!$C$4:$C$189,0) -> 67 | J60: =OFFSET('GDP-2012'!$D$3,I60,0) -> 822 | K60: 0.000822 | L60: 3649.635036
A61: 59 | C61: Bahamas | D61: 1 | E61: - | F61: - | G61: 1 | H61: =SUMPRODUCT(D61:F61,$D$1:$F$1) -> 3 | I61: =MATCH(C61, 'GDP-2012'!$C$4:$C$189,0) -> 11 | J61: =OFFSET('GDP-2012'!$D$3,I61,0) -> 8074 | K61: 0.008074 | L61: 371.5630419
A62: 60 | C62: Uganda | D62: 1 | E62: - | F62: - | G62: 1 | H62: =SUMPRODUCT(D62:F62,$D$1:$F$1) -> 3 | I62: =MATCH(C62, 'GDP-2012'!$C$4:$C$189,0) -> 174 | J62: =OFFSET('GDP-2012'!$D$3,I62,0) -> 16810 | K62: 0.01681 | L62: 178.4651993
A63: 60 | C63: Estonia | D63: - | E63: 1 | F63: 1 | G63: 2 | H63: =SUMPRODUCT(D63:F63,$D$1:$F$1) -> 3 | I63: =MATCH(C63, 'GDP-2012'!$C$4:$C$189,0) -> 56 | J63: =OFFSET('GDP-2012'!$D$3,I63,0) -> 22225 | K63: 0.022225 | L63: 134.9831271
A64: 60 | C64: Bulgaria | D64: - | E64: 1 | F64: 1 | G64: 2 | H64: =SUMPRODUCT(D64:F64,$D$1:$F$1) -> 3 | I64: =MATCH(C64, 'GDP-2012'!$C$4:$C$189,0) -> 25 | J64: =OFFSET('GDP-2012'!$D$3,I64,0) -> 53514 | K64: 0.053514 | L64: 56.06009642
A65: 63 | C65: Puerto Rico | D65: - | E65: 1 | F65: 1 | G65: 2 | H65: =SUMPRODUCT(D65:F65,$D$1:$F$1) -> 3 | I65: =MATCH(C65, 'GDP-2012'!$C$4:$C$189,0) -> 134 | J65: =OFFSET('GDP-2012'!$D$3,I65,0) -> 96261 | K65: 0.096261 | L65: 31.16526942
A66: 63 | C66: Algeria | D66: 1 | E66: - | F66: - | G66: 1 | H66: =SUMPRODUCT(D66:F66,$D$1:$F$1) -> 3 | I66: =MATCH(C66, 'GDP-2012'!$C$4:$C$189,0) -> 3 | J66: =OFFSET('GDP-2012'!$D$3,I66,0) -> 190709 | K66: 0.190709 | L66: 15.73077306
A67: 63 | C67: Malaysia | D67: - | E67: 1 | F67: 1 | G67: 2 | H67: =SUMPRODUCT(D67:F67,$D$1:$F$1) -> 3 | I67: =MATCH(C67, 'GDP-2012'!$C$4:$C$189,0) -> 104 | J67: =OFFSET('GDP-2012'!$D$3,I67,0) -> 278680 | K67: =J67/1000/1000 -> 0.27868 | L67: =H67/K67 -> 10.76503517
A68: 63 | C68: Venezuela | D68: 1 | E68: - | F68: - | G68: 1 | H68: =SUMPRODUCT(D68:F68,$D$1:$F$1) -> 3 | I68: =MATCH(C68, 'GDP-2012'!$C$4:$C$189,0) -> 182 | J68: =OFFSET('GDP-2012'!$D$3,I68,0) -> 315841 | K68: 0.315841 | L68: 9.49845017
A69: 63 | C69: Taiwan | D69: - | E69: 1 | F69: 1 | G69: 2 | H69: =SUMPRODUCT(D69:F69,$D$1:$F$1) -> 3 | I69: =MATCH(C69, 'GDP-2012'!$C$4:$C$189,0) -> 162 | J69: =OFFSET('GDP-2012'!$D$3,I69,0) -> 466832 | K69: 0.466832 | L69: 6.426294684
A70: 63 | C70: Indonesia | D70: - | E70: 1 | F70: 1 | G70: 2 | H70: =SUMPRODUCT(D70:F70,$D$1:$F$1) -> 3 | I70: =MATCH(C70, 'GDP-2012'!$C$4:$C$189,0) -> 78 | J70: =OFFSET('GDP-2012'!$D$3,I70,0) -> 845680 | K70: 0.84568 | L70: 3.547441112
A71: 69 | C71: Montenegro | D71: - | E71: 1 | F71: - | G71: 1 | H71: =SUMPRODUCT(D71:F71,$D$1:$F$1) -> 2 | I71: =MATCH(C71, 'GDP-2012'!$C$4:$C$189,0) -> 113 | J71: =OFFSET('GDP-2012'!$D$3,I71,0) -> 4536 | K71: 0.004536 | L71: 440.9171076
A72: 69 | C72: Moldova | D72: - | E72: - | F72: 2 | G72: 2 | H72: =SUMPRODUCT(D72:F72,$D$1:$F$1) -> 2 | I72: =MATCH(C72, 'GDP-2012'!$C$4:$C$189,0) -> 111 | J72: =OFFSET('GDP-2012'!$D$3,I72,0) -> 7003 | K72: 0.007003 | L72: 285.5918892
A73: 69 | C73: Gabon | D73: - | E73: 1 | F73: - | G73: 1 | H73: =SUMPRODUCT(D73:F73,$D$1:$F$1) -> 2 | I73: =MATCH(C73, 'GDP-2012'!$C$4:$C$189,0) -> 61 | J73: =OFFSET('GDP-2012'!$D$3,I73,0) -> 16176 | K73: 0.016176 | L73: 123.6399604
A74: 69 | C74: Botswana | D74: - | E74: 1 | F74: - | G74: 1 | H74: =SUMPRODUCT(D74:F74,$D$1:$F$1) -> 2 | I74: =MATCH(C74, 'GDP-2012'!$C$4:$C$189,0) -> 22 | J74: =OFFSET('GDP-2012'!$D$3,I74,0) -> 17570 | K74: 0.01757 | L74: 113.8303927
A75: 69 | C75: Cyprus | D75: - | E75: 1 | F75: - | G75: 1 | H75: =SUMPRODUCT(D75:F75,$D$1:$F$1) -> 2 | I75: =MATCH(C75, 'GDP-2012'!$C$4:$C$189,0) -> 45 | J75: =OFFSET('GDP-2012'!$D$3,I75,0) -> 24949 | K75: 0.024949 | L75: 80.16353361
A76: 69 | C76: Guatemala | D76: - | E76: 1 | F76: - | G76: 1 | H76: =SUMPRODUCT(D76:F76,$D$1:$F$1) -> 2 | I76: =MATCH(C76, 'GDP-2012'!$C$4:$C$189,0) -> 68 | J76: =OFFSET('GDP-2012'!$D$3,I76,0) -> 46897 | K76: 0.046897 | L76: 42.64665117
A77: 75 | C77: Qatar | D77: - | E77: - | F77: 2 | G77: 2 | H77: =SUMPRODUCT(D77:F77,$D$1:$F$1) -> 2 | I77: =MATCH(C77, 'GDP-2012'!$C$4:$C$189,0) -> 135 | J77: =OFFSET('GDP-2012'!$D$3,I77,0) -> 173847 | K77: 0.173847 | L77: 11.50436878
A78: 75 | C78: Portugal | D78: - | E78: 1 | F78: - | G78: 1 | H78: =SUMPRODUCT(D78:F78,$D$1:$F$1) -> 2 | I78: =MATCH(C78, 'GDP-2012'!$C$4:$C$189,0) -> 133 | J78: =OFFSET('GDP-2012'!$D$3,I78,0) -> 238880 | K78: 0.23888 | L78: 8.372404555
A79: 75 | C79: Singapore | D79: - | E79: - | F79: 2 | G79: 2 | H79: =SUMPRODUCT(D79:F79,$D$1:$F$1) -> 2 | I79: =MATCH(C79, 'GDP-2012'!$C$4:$C$189,0) -> 149 | J79: =OFFSET('GDP-2012'!$D$3,I79,0) -> 259849 | K79: 0.259849 | L79: 7.696777744
A80: 75 | C80: Greece | D80: - | E80: - | F80: 2 | G80: 2 | H80: =SUMPRODUCT(D80:F80,$D$1:$F$1) -> 2 | I80: =MATCH(C80, 'GDP-2012'!$C$4:$C$189,0) -> 66 | J80: =OFFSET('GDP-2012'!$D$3,I80,0) -> 303065 | K80: 0.303065 | L80: 6.599244387
A81: 79 | C81: Tajikistan | D81: - | E81: - | F81: 1 | G81: 1 | H81: =SUMPRODUCT(D81:F81,$D$1:$F$1) -> 1 | I81: =MATCH(C81, 'GDP-2012'!$C$4:$C$189,0) -> 163 | J81: =OFFSET('GDP-2012'!$D$3,I81,0) -> 6523 | K81: 0.006523 | L81: 153.3036946
A82: 79 | C82: Afghanistan | D82: - | E82: - | F82: 1 | G82: 1 | H82: =SUMPRODUCT(D82:F82,$D$1:$F$1) -> 1 | I82: =MATCH(C82, 'GDP-2012'!$C$4:$C$189,0) -> 1 | J82: =OFFSET('GDP-2012'!$D$3,I82,0) -> 18181 | K82: 0.018181 | L82: 55.00247511
A83: 79 | C83: Bahrain | D83: - | E83: - | F83: 1 | G83: 1 | H83: =SUMPRODUCT(D83:F83,$D$1:$F$1) -> 1 | I83: =MATCH(C83, 'GDP-2012'!$C$4:$C$189,0) -> 12 | J83: =OFFSET('GDP-2012'!$D$3,I83,0) -> 26108 | K83: 0.026108 | L83: 38.30243603
A84: 79 | C84: Morocco | D84: - | E84: - | F84: 1 | G84: 1 | H84: =SUMPRODUCT(D84:F84,$D$1:$F$1) -> 1 | I84: =MATCH(C84, 'GDP-2012'!$C$4:$C$189,0) -> 114 | J84: =OFFSET('GDP-2012'!$D$3,I84,0) -> 99241 | K84: 0.099241 | L84: 10.07648049
A85: 79 | C85: Kuwait | D85: - | E85: - | F85: 1 | G85: 1 | H85: =SUMPRODUCT(D85:F85,$D$1:$F$1) -> 1 | I85: =MATCH(C85, 'GDP-2012'!$C$4:$C$189,0) -> 91 | J85: =OFFSET('GDP-2012'!$D$3,I85,0) -> 176667 | K85: 0.176667 | L85: 5.660366679
A86: 79 | C86: Hong Kong | D86: - | E86: - | F86: 1 | G86: 1 | H86: =SUMPRODUCT(D86:F86,$D$1:$F$1) -> 1 | I86: =MATCH(C86, 'GDP-2012'!$C$4:$C$189,0) -> 74 | J86: =OFFSET('GDP-2012'!$D$3,I86,0) -> 243302 | K86: 0.243302 | L86: 4.110118289
A87: 79 | C87: Saudi Arabia | D87: - | E87: - | F87: 1 | G87: 1 | H87: =SUMPRODUCT(D87:F87,$D$1:$F$1) -> 1 | I87: =MATCH(C87, 'GDP-2012'!$C$4:$C$189,0) -> 144 | J87: =OFFSET('GDP-2012'!$D$3,I87,0) -> 577595 | K87: 0.577595 | L87: 1.731316926

Sheet Overall Score-2012
A1: Olympic Medal Efficiency Leaders | D1: 3 | E1: 2 | F1: 1
D2: Gold | E2: Silver | F2: Bronze | G2: Total | H2: Points | I2: Match GDP | J2: GDP ($M) | K2: GDP $T | L2: Pts/$T GDP | P2: Name | Q2: GDP | R2: Pts | S2: Pts/GDP
A3: 1 | C3: Grenada | D3: 1 | E3: - | F3: - | G3: 1 | H3: =SUMPRODUCT(D3:F3,$D$1:$F$1) -> 3 | I3: =MATCH(C3, 'GDP-2012'!$C$4:$C$189,0) -> 67 | J3: =OFFSET('GDP-2012'!$D$3,I3,0) -> 822 | K3: =J3/1000/1000 -> 0.000822 | L3: =H3/K3 -> 3649.635036 | N3: Straight efficiency. | P3: =C3 -> Grenada | Q3: =K3 -> 0.000822 | R3: =H3 -> 3 | S3: =R3/Q3 -> 3649.635036 | T3: Overperform
A4: 2 | C4: Jamaica | D4: 4 | E4: 4 | F4: 4 | G4: 12 | H4: =SUMPRODUCT(D4:F4,$D$1:$F$1) -> 24 | I4: =MATCH(C4, 'GDP-2012'!$C$4:$C$189,0) -> 84 | J4: =OFFSET('GDP-2012'!$D$3,I4,0) -> 14807 | K4: 0.014807 | L4: 1620.855001 | P4: =C4 -> Jamaica | Q4: =K4 -> 0.014807 | R4: =H4 -> 24 | S4: =R4/Q4 -> 1620.855001 | T4: Overperform
A5: 3 | C5: Georgia | D5: 1 | E5: 3 | F5: 3 | G5: 7 | H5: =SUMPRODUCT(D5:F5,$D$1:$F$1) -> 12 | I5: =MATCH(C5, 'GDP-2012'!$C$4:$C$189,0) -> 63 | J5: =OFFSET('GDP-2012'!$D$3,I5,0) -> 14347 | K5: 0.014347 | L5: 836.4117934 | P5: Georgia | Q5: 0.014347 | R5: 12 | S5: 836.4117934 | T5: Overperform
A6: 4 | C6: Mongolia | D6: - | E6: 2 | F6: 3 | G6: 5 | H6: =SUMPRODUCT(D6:F6,$D$1:$F$1) -> 7 | I6: =MATCH(C6, 'GDP-2012'!$C$4:$C$189,0) -> 112 | J6: =OFFSET('GDP-2012'!$D$3,I6,0) -> 8506 | K6: 0.008506 | L6: 822.9485069 | P6: Mongolia | Q6: 0.008506 | R6: 7 | S6: 822.9485069 | T6: Overperform
A7: 5 | C7: Kenya | D7: 2 | E7: 4 | F7: 5 | G7: 11 | H7: =SUMPRODUCT(D7:F7,$D$1:$F$1) -> 19 | I7: =MATCH(C7, 'GDP-2012'!$C$4:$C$189,0) -> 88 | J7: =OFFSET('GDP-2012'!$D$3,I7,0) -> 34796 | K7: 0.034796 | L7: 546.0397747 | P7: Kenya | Q7: 0.034796 | R7: 19 | S7: 546.0397747 | T7: Overperform
A8: 6 | C8: North Korea | D8: 4 | E8: - | F8: 2 | G8: 6 | H8: =SUMPRODUCT(D8:F8,$D$1:$F$1) -> 14 | I8: =MATCH(C8, 'GDP-2012'!$C$4:$C$189,0) -> 123 | J8: =OFFSET('GDP-2012'!$D$3,I8,0) -> 28000 | K8: 0.028 | L8: 500 | P8: North Korea | Q8: 0.028 | R8: 14 | S8: 500 | T8: Overperform
A9: 7 | C9: Ethiopia | D9: 3 | E9: 1 | F9: 3 | G9: 7 | H9: =SUMPRODUCT(D9:F9,$D$1:$F$1) -> 14 | I9: =MATCH(C9, 'GDP-2012'!$C$4:$C$189,0) -> 57 | J9: =OFFSET('GDP-2012'!$D$3,I9,0) -> 31256 | K9: 0.031256 | L9: 447.9140005 | P9: Ethiopia | Q9: 0.031256 | R9: 14 | S9: 447.9140005 | T9: Overperform
A10: 8 | C10: Montenegro | D10: - | E10: 1 | F10: - | G10: 1 | H10: =SUMPRODUCT(D10:F10,$D$1:$F$1) -> 2 | I10: =MATCH(C10, 'GDP-2012'!$C$4:$C$189,0) -> 113 | J10: =OFFSET('GDP-2012'!$D$3,I10,0) -> 4536 | K10: 0.004536 | L10: 440.9171076 | P10: Montenegro | Q10: 0.004536 | R10: 2 | S10: 440.9171076 | T10: Overperform
A11: 9 | C11: Belarus | D11: 3 | E11: 5 | F11: 5 | G11: 13 | H11: =SUMPRODUCT(D11:F11,$D$1:$F$1) -> 24 | I11: =MATCH(C11, 'GDP-2012'!$C$4:$C$189,0) -> 15 | J11: =OFFSET('GDP-2012'!$D$3,I11,0) -> 55483 | K11: 0.055483 | L11: 432.5649298 | P11: Belarus | Q11: 0.055483 | R11: 24 | S11: 432.5649298 | T11: Overperform
A12: 10 | C12: Cuba | D12: 5 | E12: 3 | F12: 6 | G12: 14 | H12: =SUMPRODUCT(D12:F12,$D$1:$F$1) -> 27 | I12: =MATCH(C12, 'GDP-2012'!$C$4:$C$189,0) -> 44 | J12: =OFFSET('GDP-2012'!$D$3,I12,0) -> 62705 | K12: 0.062705 | L12: 430.5876724 | P12: Cuba | Q12: 0.062705 | R12: 27 | S12: 430.5876724 | T12: Overperform
A13: 11 | C13: Armenia | D13: - | E13: 1 | F13: 2 | G13: 3 | H13: =SUMPRODUCT(D13:F13,$D$1:$F$1) -> 4 | I13: =MATCH(C13, 'GDP-2012'!$C$4:$C$189,0) -> 7 | J13: =OFFSET('GDP-2012'!$D$3,I13,0) -> 10106 | K13: 0.010106 | L13: 395.8044726 | P13: Armenia | Q13: 0.010106 | R13: 4 | S13: 395.8044726 | T13: Overperform
A14: 12 | C14: Bahamas | D14: 1 | E14: - | F14: - | G14: 1 | H14: =SUMPRODUCT(D14:F14,$D$1:$F$1) -> 3 | I14: =MATCH(C14, 'GDP-2012'!$C$4:$C$189,0) -> 11 | J14: =OFFSET('GDP-2012'!$D$3,I14,0) -> 8074 | K14: 0.008074 | L14: 371.5630419 | P14: Bahamas | Q14: 0.008074 | R14: 3 | S14: 371.5630419 | T14: Overperform
A15: 13 | C15: Moldova | D15: - | E15: - | F15: 2 | G15: 2 | H15: =SUMPRODUCT(D15:F15,$D$1:$F$1) -> 2 | I15: =MATCH(C15, 'GDP-2012'!$C$4:$C$189,0) -> 111 | J15: =OFFSET('GDP-2012'!$D$3,I15,0) -> 7003 | K15: 0.007003 | L15: 285.5918892 | P15: Moldova | Q15: 0.007003 | R15: 2 | S15: 285.5918892 | T15: Overperform
A16: 14 | C16: Trinidad and Tobago | D16: 1 | E16: - | F16: 3 | G16: 4 | H16: =SUMPRODUCT(D16:F16,$D$1:$F$1) -> 6 | I16: =MATCH(C16, 'GDP-2012'!$C$4:$C$189,0) -> 169 | J16: =OFFSET('GDP-2012'!$D$3,I16,0) -> 22707 | K16: 0.022707 | L16: 264.2356982 | P16: Trinidad and Tobago | Q16: 0.022707 | R16: 6 | S16: 264.2356982 | T16: Overperform
A17: 15 | C17: Hungary | D17: 8 | E17: 4 | F17: 5 | G17: 17 | H17: =SUMPRODUCT(D17:F17,$D$1:$F$1) -> 37 | I17: =MATCH(C17, 'GDP-2012'!$C$4:$C$189,0) -> 75 | J17: =OFFSET('GDP-2012'!$D$3,I17,0) -> 140303 | K17: 0.140303 | L17: 263.7149598 | P17: Hungary | Q17: 0.140303 | R17: 37 | S17: 263.7149598 | T17: Overperform
A18: 16 | C18: Azerbaijan | D18: 2 | E18: 2 | F18: 6 | G18: 10 | H18: =SUMPRODUCT(D18:F18,$D$1:$F$1) -> 16 | I18: =MATCH(C18, 'GDP-2012'!$C$4:$C$189,0) -> 10 | J18: =OFFSET('GDP-2012'!$D$3,I18,0) -> 62321 | K18: 0.062321 | L18: 256.7352899 | P18: Azerbaijan | Q18: 0.062321 | R18: 16 | S18: 256.7352899 | T18: Overperform
A19: 17 | C19: Lithuania | D19: 2 | E19: 1 | F19: 2 | G19: 5 | H19: =SUMPRODUCT(D19:F19,$D$1:$F$1) -> 10 | I19: =MATCH(C19, 'GDP-2012'!$C$4:$C$189,0) -> 99 | J19: =OFFSET('GDP-2012'!$D$3,I19,0) -> 42718 | K19: 0.042718 | L19: 234.0933564 | P19: Lithuania | Q19: 0.042718 | R19: 10 | S19: 234.0933564 | T19: Overperform
A20: 18 | C20: Ukraine | D20: 6 | E20: 5 | F20: 9 | G20: 20 | H20: =SUMPRODUCT(D20:F20,$D$1:$F$1) -> 37 | I20: =MATCH(C20, 'GDP-2012'!$C$4:$C$189,0) -> 175 | J20: =OFFSET('GDP-2012'!$D$3,I20,0) -> 164960 | K20: 0.16496 | L20: 224.2967992 | P20: Ukraine | Q20: 0.16496 | R20: 37 | S20: 224.2967992 | T20: Overperform
A21: 19 | C21: Croatia | D21: 3 | E21: 1 | F21: 2 | G21: 6 | H21: =SUMPRODUCT(D21:F21,$D$1:$F$1) -> 13 | I21: =MATCH(C21, 'GDP-2012'!$C$4:$C$189,0) -> 43 | J21: =OFFSET('GDP-2012'!$D$3,I21,0) -> 63842 | K21: 0.063842 | L21: 203.6277059 | P21: Croatia | Q21: 0.063842 | R21: 13 | S21: 203.6277059 | T21: Overperform
A22: 20 | C22: Uganda | D22: 1 | E22: - | F22: - | G22: 1 | H22: =SUMPRODUCT(D22:F22,$D$1:$F$1) -> 3 | I22: =MATCH(C22, 'GDP-2012'!$C$4:$C$189,0) -> 174 | J22: =OFFSET('GDP-2012'!$D$3,I22,0) -> 16810 | K22: 0.01681 | L22: 178.4651993 | P22: Uganda | Q22: 0.01681 | R22: 3 | S22: 178.4651993 | T22: Overperform
A23: 21 | C23: New Zealand | D23: 6 | E23: 2 | F23: 5 | G23: 13 | H23: =SUMPRODUCT(D23:F23,$D$1:$F$1) -> 27 | I23: =MATCH(C23, 'GDP-2012'!$C$4:$C$189,0) -> 119 | J23: =OFFSET('GDP-2012'!$D$3,I23,0) -> 161851 | K23: 0.161851 | L23: 166.8201 | P23: New Zealand | Q23: 0.161851 | R23: 27 | S23: 166.8201 | T23: Overperform
A24: 22 | C24: Kazakhstan | D24: 7 | E24: 1 | F24: 5 | G24: 13 | H24: =SUMPRODUCT(D24:F24,$D$1:$F$1) -> 28 | I24: =MATCH(C24, 'GDP-2012'!$C$4:$C$189,0) -> 87 | J24: =OFFSET('GDP-2012'!$D$3,I24,0) -> 178312 | K24: 0.178312 | L24: 157.0281305 | P24: Kazakhstan | Q24: 0.178312 | R24: 28 | S24: 157.0281305 | T24: Overperform
A25: 23 | C25: Serbia | D25: 1 | E25: 1 | F25: 2 | G25: 4 | H25: =SUMPRODUCT(D25:F25,$D$1:$F$1) -> 7 | I25: =MATCH(C25, 'GDP-2012'!$C$4:$C$189,0) -> 146 | J25: =OFFSET('GDP-2012'!$D$3,I25,0) -> 45064 | K25: 0.045064 | L25: 155.3346352 | P25: Serbia | Q25: 0.045064 | R25: 7 | S25: 155.3346352 | T25: Overperform
A26: 24 | C26: Tajikistan | D26: - | E26: - | F26: 1 | G26: 1 | H26: =SUMPRODUCT(D26:F26,$D$1:$F$1) -> 1 | I26: =MATCH(C26, 'GDP-2012'!$C$4:$C$189,0) -> 163 | J26: =OFFSET('GDP-2012'!$D$3,I26,0) -> 6523 | K26: 0.006523 | L26: 153.3036946 | P26: Tajikistan | Q26: 0.006523 | R26: 1 | S26: 153.3036946 | T26: Overperform
A27: 25 | C27: Latvia | D27: 1 | E27: - | F27: 1 | G27: 2 | H27: =SUMPRODUCT(D27:F27,$D$1:$F$1) -> 4 | I27: =MATCH(C27, 'GDP-2012'!$C$4:$C$189,0) -> 94 | J27: =OFFSET('GDP-2012'!$D$3,I27,0) -> 28252 | K27: 0.028252 | L27: 141.5828968 | P27: Latvia | Q27: 0.028252 | R27: 4 | S27: 141.5828968 | T27: Overperform
A28: 26 | C28: Slovenia | D28: 1 | E28: 1 | F28: 2 | G28: 4 | H28: =SUMPRODUCT(D28:F28,$D$1:$F$1) -> 7 | I28: =MATCH(C28, 'GDP-2012'!$C$4:$C$189,0) -> 151 | J28: =OFFSET('GDP-2012'!$D$3,I28,0) -> 49588 | K28: 0.049588 | L28: 141.1631846 | P28: Slovenia | Q28: 0.049588 | R28: 7 | S28: 141.1631846 | T28: Overperform
A29: 27 | C29: Estonia | D29: - | E29: 1 | F29: 1 | G29: 2 | H29: =SUMPRODUCT(D29:F29,$D$1:$F$1) -> 3 | I29: =MATCH(C29, 'GDP-2012'!$C$4:$C$189,0) -> 56 | J29: =OFFSET('GDP-2012'!$D$3,I29,0) -> 22225 | K29: 0.022225 | L29: 134.9831271 | P29: Estonia | Q29: 0.022225 | R29: 3 | S29: 134.9831271 | T29: Overperform
A30: 28 | C30: Uzbekistan | D30: 1 | E30: - | F30: 3 | G30: 4 | H30: =SUMPRODUCT(D30:F30,$D$1:$F$1) -> 6 | I30: =MATCH(C30, 'GDP-2012'!$C$4:$C$189,0) -> 180 | J30: =OFFSET('GDP-2012'!$D$3,I30,0) -> 45353 | K30: 0.045353 | L30: 132.2955483 | P30: Uzbekistan | Q30: 0.045353 | R30: 6 | S30: 132.2955483 | T30: Overperform
A31: 29 | C31: Tunisia | D31: 1 | E31: 1 | F31: 1 | G31: 3 | H31: =SUMPRODUCT(D31:F31,$D$1:$F$1) -> 6 | I31: =MATCH(C31, 'GDP-2012'!$C$4:$C$189,0) -> 170 | J31: =OFFSET('GDP-2012'!$D$3,I31,0) -> 46360 | K31: 0.04636 | L31: 129.4219154 | P31: Tunisia | Q31: 0.04636 | R31: 6 | S31: 129.4219154 | T31: Overperform
A32: 30 | C32: Gabon | D32: - | E32: 1 | F32: - | G32: 1 | H32: =SUMPRODUCT(D32:F32,$D$1:$F$1) -> 2 | I32: =MATCH(C32, 'GDP-2012'!$C$4:$C$189,0) -> 61 | J32: =OFFSET('GDP-2012'!$D$3,I32,0) -> 16176 | K32: 0.016176 | L32: 123.6399604 | P32: Gabon | Q32: 0.016176 | R32: 2 | S32: 123.6399604 | T32: Overperform
A33: 30 | C33: Botswana | D33: - | E33: 1 | F33: - | G33: 1 | H33: =SUMPRODUCT(D33:F33,$D$1:$F$1) -> 2 | I33: =MATCH(C33, 'GDP-2012'!$C$4:$C$189,0) -> 22 | J33: =OFFSET('GDP-2012'!$D$3,I33,0) -> 17570 | K33: 0.01757 | L33: 113.8303927 | P33: Botswana | Q33: 0.01757 | R33: 2 | S33: 113.8303927 | T33: Overperform
A34: 32 | C34: Czech Republic | D34: 4 | E34: 3 | F34: 3 | G34: 10 | H34: =SUMPRODUCT(D34:F34,$D$1:$F$1) -> 21 | I34: =MATCH(C34, 'GDP-2012'!$C$4:$C$189,0) -> 46 | J34: =OFFSET('GDP-2012'!$D$3,I34,0) -> 215265 | K34: 0.215265 | L34: 97.55417741 | P34: Czech Republic | Q34: 0.215265 | R34: 21 | S34: 97.55417741 | T34: Overperform
A35: 33 | C35: Romania | D35: 2 | E35: 5 | F35: 2 | G35: 9 | H35: =SUMPRODUCT(D35:F35,$D$1:$F$1) -> 18 | I35: =MATCH(C35, 'GDP-2012'!$C$4:$C$189,0) -> 136 | J35: =OFFSET('GDP-2012'!$D$3,I35,0) -> 189776 | K35: =J35/1000/1000 -> 0.189776 | L35: =H35/K35 -> 94.84866369 | P35: Romania | Q35: 0.189776 | R35: 18 | S35: 94.84866369 | T35: Overperform
A36: 34 | C36: Dominican Republic | D36: 1 | E36: 1 | F36: - | G36: 2 | H36: =SUMPRODUCT(D36:F36,$D$1:$F$1) -> 5 | I36: =MATCH(C36, 'GDP-2012'!$C$4:$C$189,0) -> 50 | J36: =OFFSET('GDP-2012'!$D$3,I36,0) -> 56700 | K36: 0.0567 | L36: 88.18342152 | P36: Dominican Republic | Q36: 0.0567 | R36: 5 | S36: 88.18342152 | T36: Overperform
A37: 35 | C37: Russia | D37: 24 | E37: 26 | F37: 32 | G37: 82 | H37: =SUMPRODUCT(D37:F37,$D$1:$F$1) -> 156 | I37: =MATCH(C37, 'GDP-2012'!$C$4:$C$189,0) -> 137 | J37: =OFFSET('GDP-2012'!$D$3,I37,0) -> 1850401 | K37: 1.850401 | L37: 84.30605042 | P37: Russia | Q37: 1.850401 | R37: 156 | S37: 84.30605042 | T37: Overperform
A38: 36 | C38: Cyprus | D38: - | E38: 1 | F38: - | G38: 1 | H38: =SUMPRODUCT(D38:F38,$D$1:$F$1) -> 2 | I38: =MATCH(C38, 'GDP-2012'!$C$4:$C$189,0) -> 45 | J38: =OFFSET('GDP-2012'!$D$3,I38,0) -> 24949 | K38: 0.024949 | L38: 80.16353361 | P38: Cyprus | Q38: 0.024949 | R38: 2 | S38: 80.16353361 | T38: Overperform
A39: 37 | C39: United Kingdom | D39: 29 | E39: 17 | F39: 19 | G39: 65 | H39: =SUMPRODUCT(D39:F39,$D$1:$F$1) -> 140 | I39: =MATCH(C39, 'GDP-2012'!$C$4:$C$189,0) -> 177 | J39: =OFFSET('GDP-2012'!$D$3,I39,0) -> 2417570 | K39: 2.41757 | L39: 57.90938835 | P39: United Kingdom | Q39: 2.41757 | R39: 140 | S39: 57.90938835 | T39: Overperform
A40: 38 | C40: Bulgaria | D40: - | E40: 1 | F40: 1 | G40: 2 | H40: =SUMPRODUCT(D40:F40,$D$1:$F$1) -> 3 | I40: =MATCH(C40, 'GDP-2012'!$C$4:$C$189,0) -> 25 | J40: =OFFSET('GDP-2012'!$D$3,I40,0) -> 53514 | K40: 0.053514 | L40: 56.06009642 | P40: Bulgaria | Q40: 0.053514 | R40: 3 | S40: 56.06009642 | T40: Overperform
A41: 39 | C41: South Korea | D41: 13 | E41: 8 | F41: 7 | G41: 28 | H41: =SUMPRODUCT(D41:F41,$D$1:$F$1) -> 62 | I41: =MATCH(C41, 'GDP-2012'!$C$4:$C$189,0) -> 154 | J41: =OFFSET('GDP-2012'!$D$3,I41,0) -> 1116247 | K41: 1.116247 | L41: 55.54326238 | P41: South Korea | Q41: 1.116247 | R41: 62 | S41: 55.54326238 | T41: Overperform
A42: 39 | C42: Afghanistan | D42: - | E42: - | F42: 1 | G42: 1 | H42: =SUMPRODUCT(D42:F42,$D$1:$F$1) -> 1 | I42: =MATCH(C42, 'GDP-2012'!$C$4:$C$189,0) -> 1 | J42: =OFFSET('GDP-2012'!$D$3,I42,0) -> 18181 | K42: 0.018181 | L42: 55.00247511 | P42: Afghanistan | Q42: 0.018181 | R42: 1 | S42: 55.00247511 | T42: Overperform
A43: 41 | C43: Slovakia | D43: - | E43: 1 | F43: 3 | G43: 4 | H43: =SUMPRODUCT(D43:F43,$D$1:$F$1) -> 5 | I43: =MATCH(C43, 'GDP-2012'!$C$4:$C$189,0) -> 150 | J43: =OFFSET('GDP-2012'!$D$3,I43,0) -> 96089 | K43: 0.096089 | L43: 52.03509247 | P43: Slovakia | Q43: 0.096089 | R43: 5 | S43: 52.03509247 | T43: Overperform
A44: 42 | C44: Iran | D44: 4 | E44: 5 | F44: 3 | G44: 12 | H44: =SUMPRODUCT(D44:F44,$D$1:$F$1) -> 25 | I44: =MATCH(C44, 'GDP-2012'!$C$4:$C$189,0) -> 79 | J44: =OFFSET('GDP-2012'!$D$3,I44,0) -> 482445 | K44: 0.482445 | L44: 51.81937837 | P44: Iran | Q44: 0.482445 | R44: 25 | S44: 51.81937837 | T44: Overperform
A45: 42 | C45: Denmark | D45: 2 | E45: 4 | F45: 3 | G45: 9 | H45: =SUMPRODUCT(D45:F45,$D$1:$F$1) -> 17 | I45: =MATCH(C45, 'GDP-2012'!$C$4:$C$189,0) -> 47 | J45: =OFFSET('GDP-2012'!$D$3,I45,0) -> 333238 | K45: 0.333238 | L45: 51.01459017 | P45: Denmark | Q45: 0.333238 | R45: 17 | S45: 51.01459017 | T45: Overperform
A46: 42 | C46: Netherlands | D46: 6 | E46: 6 | F46: 8 | G46: 20 | H46: =SUMPRODUCT(D46:F46,$D$1:$F$1) -> 38 | I46: =MATCH(C46, 'GDP-2012'!$C$4:$C$189,0) -> 118 | J46: =OFFSET('GDP-2012'!$D$3,I46,0) -> 840433 | K46: 0.840433 | L46: 45.21478809 | P46: Netherlands | Q46: 0.840433 | R46: 38 | S46: 45.21478809 | T46: Overperform
A47: 45 | C47: Australia | D47: 7 | E47: 16 | F47: 12 | G47: 35 | H47: =SUMPRODUCT(D47:F47,$D$1:$F$1) -> 65 | I47: =MATCH(C47, 'GDP-2012'!$C$4:$C$189,0) -> 8 | J47: =OFFSET('GDP-2012'!$D$3,I47,0) -> 1488221 | K47: 1.488221 | L47: 43.67630883 | P47: Australia | Q47: 1.488221 | R47: 65 | S47: 43.67630883 | T47: Overperform
A48: 46 | C48: Guatemala | D48: - | E48: 1 | F48: - | G48: 1 | H48: =SUMPRODUCT(D48:F48,$D$1:$F$1) -> 2 | I48: =MATCH(C48, 'GDP-2012'!$C$4:$C$189,0) -> 68 | J48: =OFFSET('GDP-2012'!$D$3,I48,0) -> 46897 | K48: 0.046897 | L48: 42.64665117 | P48: Guatemala | Q48: 0.046897 | R48: 2 | S48: 42.64665117 | T48: Overperform
A49: 47 | C49: Colombia | D49: 1 | E49: 3 | F49: 4 | G49: 8 | H49: =SUMPRODUCT(D49:F49,$D$1:$F$1) -> 13 | I49: =MATCH(C49, 'GDP-2012'!$C$4:$C$189,0) -> 37 | J49: =OFFSET('GDP-2012'!$D$3,I49,0) -> 328422 | K49: 0.328422 | L49: 39.58321915 | P49: Colombia | Q49: 0.328422 | R49: 13 | S49: 39.58321915 | T49: Overperform
A50: 47 | C50: Bahrain | D50: - | E50: - | F50: 1 | G50: 1 | H50: =SUMPRODUCT(D50:F50,$D$1:$F$1) -> 1 | I50: =MATCH(C50, 'GDP-2012'!$C$4:$C$189,0) -> 12 | J50: =OFFSET('GDP-2012'!$D$3,I50,0) -> 26108 | K50: 0.026108 | L50: 38.30243603 | P50: Bahrain | Q50: 0.026108 | R50: 1 | S50: 38.30243603 | T50: Overperform
A51: 49 | C51: Ireland | D51: 1 | E51: 1 | F51: 3 | G51: 5 | H51: =SUMPRODUCT(D51:F51,$D$1:$F$1) -> 8 | I51: =MATCH(C51, 'GDP-2012'!$C$4:$C$189,0) -> 81 | J51: =OFFSET('GDP-2012'!$D$3,I51,0) -> 217669 | K51: 0.217669 | L51: 36.75305165 | P51: Ireland | Q51: 0.217669 | R51: 8 | S51: 36.75305165 | T51: Overperform
A52: 50 | C52: South Africa | D52: 3 | E52: 2 | F52: 1 | G52: 6 | H52: =SUMPRODUCT(D52:F52,$D$1:$F$1) -> 14 | I52: =MATCH(C52, 'GDP-2012'!$C$4:$C$189,0) -> 153 | J52: =OFFSET('GDP-2012'!$D$3,I52,0) -> 408074 | K52: 0.408074 | L52: 34.30750305 | P52: South Africa | Q52: 0.408074 | R52: 14 | S52: 34.30750305 | T52: Overperform
A53: 50 | C53: Puerto Rico | D53: - | E53: 1 | F53: 1 | G53: 2 | H53: =SUMPRODUCT(D53:F53,$D$1:$F$1) -> 3 | I53: =MATCH(C53, 'GDP-2012'!$C$4:$C$189,0) -> 134 | J53: =OFFSET('GDP-2012'!$D$3,I53,0) -> 96261 | K53: 0.096261 | L53: 31.16526942 | P53: Puerto Rico | Q53: 0.096261 | R53: 3 | S53: 31.16526942 | T53: Overperform
A54: 50 | C54: Poland | D54: 2 | E54: 2 | F54: 6 | G54: 10 | H54: =SUMPRODUCT(D54:F54,$D$1:$F$1) -> 16 | I54: =MATCH(C54, 'GDP-2012'!$C$4:$C$189,0) -> 132 | J54: =OFFSET('GDP-2012'!$D$3,I54,0) -> 513821 | K54: 0.513821 | L54: 31.13924888 | P54: Poland | Q54: 0.513821 | R54: 16 | S54: 31.13924888 | T54: Overperform
A55: 50 | C55: China | D55: 38 | E55: 27 | F55: 23 | G55: 88 | H55: =SUMPRODUCT(D55:F55,$D$1:$F$1) -> 191 | I55: =MATCH(C55, 'GDP-2012'!$C$4:$C$189,0) -> 36 | J55: =OFFSET('GDP-2012'!$D$3,I55,0) -> 7298147 | K55: 7.298147 | L55: 26.1710267 | P55: China | Q55: 7.298147 | R55: 191 | S55: 26.1710267 | T55: Underperform
A56: 50 | C56: Sweden | D56: 1 | E56: 4 | F56: 3 | G56: 8 | H56: =SUMPRODUCT(D56:F56,$D$1:$F$1) -> 14 | I56: =MATCH(C56, 'GDP-2012'!$C$4:$C$189,0) -> 160 | J56: =OFFSET('GDP-2012'!$D$3,I56,0) -> 538237 | K56: 0.538237 | L56: 26.01084652 | P56: Sweden | Q56: 0.538237 | R56: 14 | S56: 26.01084652 | T56: Underperform
A57: 55 | C57: France | D57: 11 | E57: 11 | F57: 12 | G57: 34 | H57: =SUMPRODUCT(D57:F57,$D$1:$F$1) -> 67 | I57: =MATCH(C57, 'GDP-2012'!$C$4:$C$189,0) -> 60 | J57: =OFFSET('GDP-2012'!$D$3,I57,0) -> 2776324 | K57: 2.776324 | L57: 24.13263005 | P57: France | Q57: 2.776324 | R57: 67 | S57: 24.13263005 | T57: Underperform
A58: 56 | C58: Italy | D58: 8 | E58: 9 | F58: 11 | G58: 28 | H58: =SUMPRODUCT(D58:F58,$D$1:$F$1) -> 53 | I58: =MATCH(C58, 'GDP-2012'!$C$4:$C$189,0) -> 83 | J58: =OFFSET('GDP-2012'!$D$3,I58,0) -> 2198730 | K58: 2.19873 | L58: 24.10482415 | P58: Italy | Q58: 2.19873 | R58: 53 | S58: 24.10482415 | T58: Underperform
A59: 57 | C59: Germany | D59: 11 | E59: 19 | F59: 14 | G59: 44 | H59: =SUMPRODUCT(D59:F59,$D$1:$F$1) -> 85 | I59: =MATCH(C59, 'GDP-2012'!$C$4:$C$189,0) -> 64 | J59: =OFFSET('GDP-2012'!$D$3,I59,0) -> 3577031 | K59: 3.577031 | L59: 23.76272389 | P59: Germany | Q59: 3.577031 | R59: 85 | S59: 23.76272389 | T59: Underperform
A60: 58 | C60: Spain | D60: 3 | E60: 10 | F60: 4 | G60: 17 | H60: =SUMPRODUCT(D60:F60,$D$1:$F$1) -> 33 | I60: =MATCH(C60, 'GDP-2012'!$C$4:$C$189,0) -> 155 | J60: =OFFSET('GDP-2012'!$D$3,I60,0) -> 1493513 | K60: 1.493513 | L60: 22.09555591 | P60: Spain | Q60: 1.493513 | R60: 33 | S60: 22.09555591 | T60: Underperform
A61: 59 | C61: Norway | D61: 2 | E61: 1 | F61: 1 | G61: 4 | H61: =SUMPRODUCT(D61:F61,$D$1:$F$1) -> 9 | I61: =MATCH(C61, 'GDP-2012'!$C$4:$C$189,0) -> 124 | J61: =OFFSET('GDP-2012'!$D$3,I61,0) -> 483650 | K61: 0.48365 | L61: 18.60849788 | P61: Norway | Q61: 0.48365 | R61: 9 | S61: 18.60849788 | T61: Underperform
A62: 60 | C62: Egypt | D62: - | E62: 2 | F62: - | G62: 2 | H62: =SUMPRODUCT(D62:F62,$D$1:$F$1) -> 4 | I62: =MATCH(C62, 'GDP-2012'!$C$4:$C$189,0) -> 52 | J62: =OFFSET('GDP-2012'!$D$3,I62,0) -> 235719 | K62: 0.235719 | L62: 16.96935758 | P62: Egypt | Q62: 0.235719 | R62: 4 | S62: 16.96935758 | T62: Underperform
A63: 60 | C63: Algeria | D63: 1 | E63: - | F63: - | G63: 1 | H63: =SUMPRODUCT(D63:F63,$D$1:$F$1) -> 3 | I63: =MATCH(C63, 'GDP-2012'!$C$4:$C$189,0) -> 3 | J63: =OFFSET('GDP-2012'!$D$3,I63,0) -> 190709 | K63: 0.190709 | L63: 15.73077306 | P63: Algeria | Q63: 0.190709 | R63: 3 | S63: 15.73077306 | T63: Underperform
A64: 60 | C64: Switzerland | D64: 2 | E64: 2 | F64: - | G64: 4 | H64: =SUMPRODUCT(D64:F64,$D$1:$F$1) -> 10 | I64: =MATCH(C64, 'GDP-2012'!$C$4:$C$189,0) -> 161 | J64: =OFFSET('GDP-2012'!$D$3,I64,0) -> 636059 | K64: 0.636059 | L64: 15.72181197 | P64: Switzerland | Q64: 0.636059 | R64: 10 | S64: 15.72181197 | T64: Underperform
A65: 63 | C65: Argentina | D65: 1 | E65: 1 | F65: 2 | G65: 4 | H65: =SUMPRODUCT(D65:F65,$D$1:$F$1) -> 7 | I65: =MATCH(C65, 'GDP-2012'!$C$4:$C$189,0) -> 6 | J65: =OFFSET('GDP-2012'!$D$3,I65,0) -> 447644 | K65: 0.447644 | L65: 15.63742617 | P65: Argentina | Q65: 0.447644 | R65: 7 | S65: 15.63742617 | T65: Underperform
A66: 63 | C66: Finland | D66: - | E66: 1 | F66: 2 | G66: 3 | H66: =SUMPRODUCT(D66:F66,$D$1:$F$1) -> 4 | I66: =MATCH(C66, 'GDP-2012'!$C$4:$C$189,0) -> 59 | J66: =OFFSET('GDP-2012'!$D$3,I66,0) -> 266553 | K66: 0.266553 | L66: 15.00639648 | P66: Finland | Q66: 0.266553 | R66: 4 | S66: 15.00639648 | T66: Underperform
A67: 63 | C67: United States | D67: 46 | E67: 29 | F67: 29 | G67: 104 | H67: =SUMPRODUCT(D67:F67,$D$1:$F$1) -> 225 | I67: =MATCH(C67, 'GDP-2012'!$C$4:$C$189,0) -> 178 | J67: =OFFSET('GDP-2012'!$D$3,I67,0) -> 15094025 | K67: =J67/1000/1000 -> 15.094025 | L67: =H67/K67 -> 14.90656071 | P67: United States | Q67: 15.094025 | R67: 225 | S67: 14.90656071 | T67: Underperform
A68: 63 | C68: Thailand | D68: - | E68: 2 | F68: 1 | G68: 3 | H68: =SUMPRODUCT(D68:F68,$D$1:$F$1) -> 5 | I68: =MATCH(C68, 'GDP-2012'!$C$4:$C$189,0) -> 165 | J68: =OFFSET('GDP-2012'!$D$3,I68,0) -> 345649 | K68: 0.345649 | L68: 14.46554163 | P68: =C68 -> Thailand | Q68: =K68 -> 0.345649 | R68: =H68 -> 5 | S68: =R68/Q68 -> 14.46554163 | T68: Underperform
A69: 63 | C69: Canada | D69: 1 | E69: 5 | F69: 12 | G69: 18 | H69: =SUMPRODUCT(D69:F69,$D$1:$F$1) -> 25 | I69: =MATCH(C69, 'GDP-2012'!$C$4:$C$189,0) -> 31 | J69: =OFFSET('GDP-2012'!$D$3,I69,0) -> 1736869 | K69: 1.736869 | L69: 14.39371651 | P69: Canada | Q69: 1.736869 | R69: 25 | S69: 14.39371651 | T69: Underperform
A70: 63 | C70: Turkey | D70: 2 | E70: 2 | F70: 1 | G70: 5 | H70: =SUMPRODUCT(D70:F70,$D$1:$F$1) -> 11 | I70: =MATCH(C70, 'GDP-2012'!$C$4:$C$189,0) -> 171 | J70: =OFFSET('GDP-2012'!$D$3,I70,0) -> 778089 | K70: 0.778089 | L70: 14.13720024 | P70: Turkey | Q70: 0.778089 | R70: 11 | S70: 14.13720024 | T70: Underperform
A71: 69 | C71: Qatar | D71: - | E71: - | F71: 2 | G71: 2 | H71: =SUMPRODUCT(D71:F71,$D$1:$F$1) -> 2 | I71: =MATCH(C71, 'GDP-2012'!$C$4:$C$189,0) -> 135 | J71: =OFFSET('GDP-2012'!$D$3,I71,0) -> 173847 | K71: 0.173847 | L71: 11.50436878 | P71: Qatar | Q71: 0.173847 | R71: 2 | S71: 11.50436878 | T71: Underperform
A72: 69 | C72: Japan | D72: 7 | E72: 14 | F72: 17 | G72: 38 | H72: =SUMPRODUCT(D72:F72,$D$1:$F$1) -> 66 | I72: =MATCH(C72, 'GDP-2012'!$C$4:$C$189,0) -> 85 | J72: =OFFSET('GDP-2012'!$D$3,I72,0) -> 5869471 | K72: 5.869471 | L72: 11.24462494 | P72: Japan | Q72: 5.869471 | R72: 66 | S72: 11.24462494 | T72: Underperform
A73: 69 | C73: Brazil | D73: 3 | E73: 5 | F73: 9 | G73: 17 | H73: =SUMPRODUCT(D73:F73,$D$1:$F$1) -> 28 | I73: =MATCH(C73, 'GDP-2012'!$C$4:$C$189,0) -> 23 | J73: =OFFSET('GDP-2012'!$D$3,I73,0) -> 2492908 | K73: 2.492908 | L73: 11.23186255 | P73: Brazil | Q73: 2.492908 | R73: 28 | S73: 11.23186255 | T73: Underperform
A74: 69 | C74: Malaysia | D74: - | E74: 1 | F74: 1 | G74: 2 | H74: =SUMPRODUCT(D74:F74,$D$1:$F$1) -> 3 | I74: =MATCH(C74, 'GDP-2012'!$C$4:$C$189,0) -> 104 | J74: =OFFSET('GDP-2012'!$D$3,I74,0) -> 278680 | K74: 0.27868 | L74: 10.76503517 | P74: Malaysia | Q74: 0.27868 | R74: 3 | S74: 10.76503517 | T74: Underperform
A75: 69 | C75: Mexico | D75: 1 | E75: 3 | F75: 3 | G75: 7 | H75: =SUMPRODUCT(D75:F75,$D$1:$F$1) -> 12 | I75: =MATCH(C75, 'GDP-2012'!$C$4:$C$189,0) -> 110 | J75: =OFFSET('GDP-2012'!$D$3,I75,0) -> 1154784 | K75: 1.154784 | L75: 10.39155375 | P75: Mexico | Q75: 1.154784 | R75: 12 | S75: 10.39155375 | T75: Underperform
A76: 69 | C76: Morocco | D76: - | E76: - | F76: 1 | G76: 1 | H76: =SUMPRODUCT(D76:F76,$D$1:$F$1) -> 1 | I76: =MATCH(C76, 'GDP-2012'!$C$4:$C$189,0) -> 114 | J76: =OFFSET('GDP-2012'!$D$3,I76,0) -> 99241 | K76: 0.099241 | L76: 10.07648049 | P76: Morocco | Q76: 0.099241 | R76: 1 | S76: 10.07648049 | T76: Underperform
A77: 75 | C77: Venezuela | D77: 1 | E77: - | F77: - | G77: 1 | H77: =SUMPRODUCT(D77:F77,$D$1:$F$1) -> 3 | I77: =MATCH(C77, 'GDP-2012'!$C$4:$C$189,0) -> 182 | J77: =OFFSET('GDP-2012'!$D$3,I77,0) -> 315841 | K77: 0.315841 | L77: 9.49845017 | P77: Venezuela | Q77: 0.315841 | R77: 3 | S77: 9.49845017 | T77: Underperform
A78: 75 | C78: Portugal | D78: - | E78: 1 | F78: - | G78: 1 | H78: =SUMPRODUCT(D78:F78,$D$1:$F$1) -> 2 | I78: =MATCH(C78, 'GDP-2012'!$C$4:$C$189,0) -> 133 | J78: =OFFSET('GDP-2012'!$D$3,I78,0) -> 238880 | K78: 0.23888 | L78: 8.372404555 | P78: Portugal | Q78: 0.23888 | R78: 2 | S78: 8.372404555 | T78: Underperform
A79: 75 | C79: Belgium | D79: - | E79: 1 | F79: 2 | G79: 3 | H79: =SUMPRODUCT(D79:F79,$D$1:$F$1) -> 4 | I79: =MATCH(C79, 'GDP-2012'!$C$4:$C$189,0) -> 16 | J79: =OFFSET('GDP-2012'!$D$3,I79,0) -> 513396 | K79: 0.513396 | L79: 7.791256652 | P79: Belgium | Q79: 0.513396 | R79: 4 | S79: 7.791256652 | T79: Underperform
A80: 75 | C80: Singapore | D80: - | E80: - | F80: 2 | G80: 2 | H80: =SUMPRODUCT(D80:F80,$D$1:$F$1) -> 2 | I80: =MATCH(C80, 'GDP-2012'!$C$4:$C$189,0) -> 149 | J80: =OFFSET('GDP-2012'!$D$3,I80,0) -> 259849 | K80: 0.259849 | L80: 7.696777744 | P80: Singapore | Q80: 0.259849 | R80: 2 | S80: 7.696777744 | T80: Underperform
A81: 79 | C81: Greece | D81: - | E81: - | F81: 2 | G81: 2 | H81: =SUMPRODUCT(D81:F81,$D$1:$F$1) -> 2 | I81: =MATCH(C81, 'GDP-2012'!$C$4:$C$189,0) -> 66 | J81: =OFFSET('GDP-2012'!$D$3,I81,0) -> 303065 | K81: 0.303065 | L81: 6.599244387 | P81: Greece | Q81: 0.303065 | R81: 2 | S81: 6.599244387 | T81: Underperform
A82: 79 | C82: Taiwan | D82: - | E82: 1 | F82: 1 | G82: 2 | H82: =SUMPRODUCT(D82:F82,$D$1:$F$1) -> 3 | I82: =MATCH(C82, 'GDP-2012'!$C$4:$C$189,0) -> 162 | J82: =OFFSET('GDP-2012'!$D$3,I82,0) -> 466832 | K82: 0.466832 | L82: 6.426294684 | P82: Taiwan | Q82: 0.466832 | R82: 3 | S82: 6.426294684 | T82: Underperform
A83: 79 | C83: Kuwait | D83: - | E83: - | F83: 1 | G83: 1 | H83: =SUMPRODUCT(D83:F83,$D$1:$F$1) -> 1 | I83: =MATCH(C83, 'GDP-2012'!$C$4:$C$189,0) -> 91 | J83: =OFFSET('GDP-2012'!$D$3,I83,0) -> 176667 | K83: 0.176667 | L83: 5.660366679 | P83: Kuwait | Q83: 0.176667 | R83: 1 | S83: 5.660366679 | T83: Underperform
A84: 79 | C84: India | D84: - | E84: 2 | F84: 4 | G84: 6 | H84: =SUMPRODUCT(D84:F84,$D$1:$F$1) -> 8 | I84: =MATCH(C84, 'GDP-2012'!$C$4:$C$189,0) -> 77 | J84: =OFFSET('GDP-2012'!$D$3,I84,0) -> 1676143 | K84: 1.676143 | L84: 4.772862459 | P84: India | Q84: 1.676143 | R84: 8 | S84: 4.772862459 | T84: Underperform
A85: 79 | C85: Hong Kong | D85: - | E85: - | F85: 1 | G85: 1 | H85: =SUMPRODUCT(D85:F85,$D$1:$F$1) -> 1 | I85: =MATCH(C85, 'GDP-2012'!$C$4:$C$189,0) -> 74 | J85: =OFFSET('GDP-2012'!$D$3,I85,0) -> 243302 | K85: 0.243302 | L85: 4.110118289 | P85: Hong Kong | Q85: 0.243302 | R85: 1 | S85: 4.110118289 | T85: Underperform
A86: 79 | C86: Indonesia | D86: - | E86: 1 | F86: 1 | G86: 2 | H86: =SUMPRODUCT(D86:F86,$D$1:$F$1) -> 3 | I86: =MATCH(C86, 'GDP-2012'!$C$4:$C$189,0) -> 78 | J86: =OFFSET('GDP-2012'!$D$3,I86,0) -> 845680 | K86: 0.84568 | L86: 3.547441112 | P86: Indonesia | Q86: 0.84568 | R86: 3 | S86: 3.547441112 | T86: Underperform
A87: 79 | C87: Saudi Arabia | D87: - | E87: - | F87: 1 | G87: 1 | H87: =SUMPRODUCT(D87:F87,$D$1:$F$1) -> 1 | I87: =MATCH(C87, 'GDP-2012'!$C$4:$C$189,0) -> 144 | J87: =OFFSET('GDP-2012'!$D$3,I87,0) -> 577595 | K87: 0.577595 | L87: 1.731316926 | P87: Saudi Arabia | Q87: 0.577595 | R87: 1 | S87: 1.731316926 | T87: Underperform
Q88: =SUM(Q3:Q87) -> 66.014786 | R88: =SUM(R3:R87) -> 1873 | S88: =R88/Q88 -> 28.37243159

Sheet Major Economic Powers-2012
A1: Olympic Medals Adjusted for GDP | D1: 3 | E1: 2 | F1: 1
D2: Gold | E2: Silver | F2: Bronze | G2: Total | H2: Points | I2: Match GDP | J2: GDP ($M) | K2: GDP $T | L2: Pts/$T GDP
A3: 1 | C3: Russia | D3: 24 | E3: 26 | F3: 32 | G3: 82 | H3: =SUMPRODUCT(D3:F3,$D$1:$F$1) -> 156 | I3: =MATCH(C3, 'GDP-2012'!$C$4:$C$189,0) -> 137 | J3: =OFFSET('GDP-2012'!$D$3,I3,0) -> 1850401 | K3: =J3/1000/1000 -> 1.850401 | L3: =H3/K3 -> 84.30605042 | O3: Top 20 Economies | Q3: =SUM(K3:K22) -> 55.91824 | R3: =Q3/Q4 -> 0.8470562943
A4: 2 | C4: United Kingdom | D4: 29 | E4: 17 | F4: 19 | G4: 65 | H4: =SUMPRODUCT(D4:F4,$D$1:$F$1) -> 140 | I4: =MATCH(C4, 'GDP-2012'!$C$4:$C$189,0) -> 177 | J4: =OFFSET('GDP-2012'!$D$3,I4,0) -> 2417570 | K4: 2.41757 | L4: 57.90938835 | O4: Total | Q4: =SUM(K3:K90) -> 66.014786
A5: 3 | C5: South Korea | D5: 13 | E5: 8 | F5: 7 | G5: 28 | H5: =SUMPRODUCT(D5:F5,$D$1:$F$1) -> 62 | I5: =MATCH(C5, 'GDP-2012'!$C$4:$C$189,0) -> 154 | J5: =OFFSET('GDP-2012'!$D$3,I5,0) -> 1116247 | K5: 1.116247 | L5: 55.54326238
A6: 4 | C6: Netherlands | D6: 6 | E6: 6 | F6: 8 | G6: 20 | H6: =SUMPRODUCT(D6:F6,$D$1:$F$1) -> 38 | I6: =MATCH(C6, 'GDP-2012'!$C$4:$C$189,0) -> 118 | J6: =OFFSET('GDP-2012'!$D$3,I6,0) -> 840433 | K6: 0.840433 | L6: 45.21478809
A7: 5 | C7: Australia | D7: 7 | E7: 16 | F7: 12 | G7: 35 | H7: =SUMPRODUCT(D7:F7,$D$1:$F$1) -> 65 | I7: =MATCH(C7, 'GDP-2012'!$C$4:$C$189,0) -> 8 | J7: =OFFSET('GDP-2012'!$D$3,I7,0) -> 1488221 | K7: 1.488221 | L7: 43.67630883 | O7: Great Power medal efficiency: Russia, UK, SKorea., Neth, Aust.
A8: 6 | C8: China | D8: 38 | E8: 27 | F8: 23 | G8: 88 | H8: =SUMPRODUCT(D8:F8,$D$1:$F$1) -> 191 | I8: =MATCH(C8, 'GDP-2012'!$C$4:$C$189,0) -> 36 | J8: =OFFSET('GDP-2012'!$D$3,I8,0) -> 7298147 | K8: 7.298147 | L8: 26.1710267
A9: 7 | C9: France | D9: 11 | E9: 11 | F9: 12 | G9: 34 | H9: =SUMPRODUCT(D9:F9,$D$1:$F$1) -> 67 | I9: =MATCH(C9, 'GDP-2012'!$C$4:$C$189,0) -> 60 | J9: =OFFSET('GDP-2012'!$D$3,I9,0) -> 2776324 | K9: 2.776324 | L9: 24.13263005
A10: 8 | C10: Italy | D10: 8 | E10: 9 | F10: 11 | G10: 28 | H10: =SUMPRODUCT(D10:F10,$D$1:$F$1) -> 53 | I10: =MATCH(C10, 'GDP-2012'!$C$4:$C$189,0) -> 83 | J10: =OFFSET('GDP-2012'!$D$3,I10,0) -> 2198730 | K10: 2.19873 | L10: 24.10482415
A11: 9 | C11: Germany | D11: 11 | E11: 19 | F11: 14 | G11: 44 | H11: =SUMPRODUCT(D11:F11,$D$1:$F$1) -> 85 | I11: =MATCH(C11, 'GDP-2012'!$C$4:$C$189,0) -> 64 | J11: =OFFSET('GDP-2012'!$D$3,I11,0) -> 3577031 | K11: 3.577031 | L11: 23.76272389
A12: 10 | C12: Spain | D12: 3 | E12: 10 | F12: 4 | G12: 17 | H12: =SUMPRODUCT(D12:F12,$D$1:$F$1) -> 33 | I12: =MATCH(C12, 'GDP-2012'!$C$4:$C$189,0) -> 155 | J12: =OFFSET('GDP-2012'!$D$3,I12,0) -> 1493513 | K12: 1.493513 | L12: 22.09555591
A13: 11 | C13: Switzerland | D13: 2 | E13: 2 | F13: - | G13: 4 | H13: =SUMPRODUCT(D13:F13,$D$1:$F$1) -> 10 | I13: =MATCH(C13, 'GDP-2012'!$C$4:$C$189,0) -> 161 | J13: =OFFSET('GDP-2012'!$D$3,I13,0) -> 636059 | K13: 0.636059 | L13: 15.72181197
A14: 12 | C14: United States | D14: 46 | E14: 29 | F14: 29 | G14: 104 | H14: =SUMPRODUCT(D14:F14,$D$1:$F$1) -> 225 | I14: =MATCH(C14, 'GDP-2012'!$C$4:$C$189,0) -> 178 | J14: =OFFSET('GDP-2012'!$D$3,I14,0) -> 15094025 | K14: 15.094025 | L14: 14.90656071
A15: 13 | C15: Canada | D15: 1 | E15: 5 | F15: 12 | G15: 18 | H15: =SUMPRODUCT(D15:F15,$D$1:$F$1) -> 25 | I15: =MATCH(C15, 'GDP-2012'!$C$4:$C$189,0) -> 31 | J15: =OFFSET('GDP-2012'!$D$3,I15,0) -> 1736869 | K15: 1.736869 | L15: 14.39371651
A16: 14 | C16: Turkey | D16: 2 | E16: 2 | F16: 1 | G16: 5 | H16: =SUMPRODUCT(D16:F16,$D$1:$F$1) -> 11 | I16: =MATCH(C16, 'GDP-2012'!$C$4:$C$189,0) -> 171 | J16: =OFFSET('GDP-2012'!$D$3,I16,0) -> 778089 | K16: 0.778089 | L16: 14.13720024
A17: 15 | C17: Japan | D17: 7 | E17: 14 | F17: 17 | G17: 38 | H17: =SUMPRODUCT(D17:F17,$D$1:$F$1) -> 66 | I17: =MATCH(C17, 'GDP-2012'!$C$4:$C$189,0) -> 85 | J17: =OFFSET('GDP-2012'!$D$3,I17,0) -> 5869471 | K17: 5.869471 | L17: 11.24462494
A18: 16 | C18: Brazil | D18: 3 | E18: 5 | F18: 9 | G18: 17 | H18: =SUMPRODUCT(D18:F18,$D$1:$F$1) -> 28 | I18: =MATCH(C18, 'GDP-2012'!$C$4:$C$189,0) -> 23 | J18: =OFFSET('GDP-2012'!$D$3,I18,0) -> 2492908 | K18: 2.492908 | L18: 11.23186255
A19: 17 | C19: Mexico | D19: 1 | E19: 3 | F19: 3 | G19: 7 | H19: =SUMPRODUCT(D19:F19,$D$1:$F$1) -> 12 | I19: =MATCH(C19, 'GDP-2012'!$C$4:$C$189,0) -> 110 | J19: =OFFSET('GDP-2012'!$D$3,I19,0) -> 1154784 | K19: 1.154784 | L19: 10.39155375
A20: 18 | C20: India | D20: - | E20: 2 | F20: 4 | G20: 6 | H20: =SUMPRODUCT(D20:F20,$D$1:$F$1) -> 8 | I20: =MATCH(C20, 'GDP-2012'!$C$4:$C$189,0) -> 77 | J20: =OFFSET('GDP-2012'!$D$3,I20,0) -> 1676143 | K20: 1.676143 | L20: 4.772862459
A21: 19 | C21: Indonesia | D21: - | E21: 1 | F21: 1 | G21: 2 | H21: =SUMPRODUCT(D21:F21,$D$1:$F$1) -> 3 | I21: =MATCH(C21, 'GDP-2012'!$C$4:$C$189,0) -> 78 | J21: =OFFSET('GDP-2012'!$D$3,I21,0) -> 845680 | K21: 0.84568 | L21: 3.547441112
A22: 20 | C22: Saudi Arabia | D22: - | E22: - | F22: 1 | G22: 1 | H22: =SUMPRODUCT(D22:F22,$D$1:$F$1) -> 1 | I22: =MATCH(C22, 'GDP-2012'!$C$4:$C$189,0) -> 144 | J22: =OFFSET('GDP-2012'!$D$3,I22,0) -> 577595 | K22: 0.577595 | L22: 1.731316926
A24: 21 | C24: Sweden | D24: 1 | E24: 4 | F24: 3 | G24: 8 | H24: =SUMPRODUCT(D24:F24,$D$1:$F$1) -> 14 | I24: =MATCH(C24, 'GDP-2012'!$C$4:$C$189,0) -> 160 | J24: =OFFSET('GDP-2012'!$D$3,I24,0) -> 538237 | K24: =J24/1000/1000 -> 0.538237 | L24: =H24/K24 -> 26.01084652
A25: 22 | C25: Poland | D25: 2 | E25: 2 | F25: 6 | G25: 10 | H25: =SUMPRODUCT(D25:F25,$D$1:$F$1) -> 16 | I25: =MATCH(C25, 'GDP-2012'!$C$4:$C$189,0) -> 132 | J25: =OFFSET('GDP-2012'!$D$3,I25,0) -> 513821 | K25: 0.513821 | L25: 31.13924888
A26: 23 | C26: Belgium | D26: - | E26: 1 | F26: 2 | G26: 3 | H26: =SUMPRODUCT(D26:F26,$D$1:$F$1) -> 4 | I26: =MATCH(C26, 'GDP-2012'!$C$4:$C$189,0) -> 16 | J26: =OFFSET('GDP-2012'!$D$3,I26,0) -> 513396 | K26: 0.513396 | L26: 7.791256652
A27: 24 | C27: Norway | D27: 2 | E27: 1 | F27: 1 | G27: 4 | H27: =SUMPRODUCT(D27:F27,$D$1:$F$1) -> 9 | I27: =MATCH(C27, 'GDP-2012'!$C$4:$C$189,0) -> 124 | J27: =OFFSET('GDP-2012'!$D$3,I27,0) -> 483650 | K27: 0.48365 | L27: 18.60849788
A28: 25 | C28: Iran | D28: 4 | E28: 5 | F28: 3 | G28: 12 | H28: =SUMPRODUCT(D28:F28,$D$1:$F$1) -> 25 | I28: =MATCH(C28, 'GDP-2012'!$C$4:$C$189,0) -> 79 | J28: =OFFSET('GDP-2012'!$D$3,I28,0) -> 482445 | K28: 0.482445 | L28: 51.81937837
A29: 26 | C29: Taiwan | D29: - | E29: 1 | F29: 1 | G29: 2 | H29: =SUMPRODUCT(D29:F29,$D$1:$F$1) -> 3 | I29: =MATCH(C29, 'GDP-2012'!$C$4:$C$189,0) -> 162 | J29: =OFFSET('GDP-2012'!$D$3,I29,0) -> 466832 | K29: 0.466832 | L29: 6.426294684
A30: 27 | C30: Argentina | D30: 1 | E30: 1 | F30: 2 | G30: 4 | H30: =SUMPRODUCT(D30:F30,$D$1:$F$1) -> 7 | I30: =MATCH(C30, 'GDP-2012'!$C$4:$C$189,0) -> 6 | J30: =OFFSET('GDP-2012'!$D$3,I30,0) -> 447644 | K30: 0.447644 | L30: 15.63742617
A31: 28 | C31: South Africa | D31: 3 | E31: 2 | F31: 1 | G31: 6 | H31: =SUMPRODUCT(D31:F31,$D$1:$F$1) -> 14 | I31: =MATCH(C31, 'GDP-2012'!$C$4:$C$189,0) -> 153 | J31: =OFFSET('GDP-2012'!$D$3,I31,0) -> 408074 | K31: 0.408074 | L31: 34.30750305
A32: 29 | C32: Thailand | D32: - | E32: 2 | F32: 1 | G32: 3 | H32: =SUMPRODUCT(D32:F32,$D$1:$F$1) -> 5 | I32: =MATCH(C32, 'GDP-2012'!$C$4:$C$189,0) -> 165 | J32: =OFFSET('GDP-2012'!$D$3,I32,0) -> 345649 | K32: 0.345649 | L32: 14.46554163
A33: 30 | C33: Denmark | D33: 2 | E33: 4 | F33: 3 | G33: 9 | H33: =SUMPRODUCT(D33:F33,$D$1:$F$1) -> 17 | I33: =MATCH(C33, 'GDP-2012'!$C$4:$C$189,0) -> 47 | J33: =OFFSET('GDP-2012'!$D$3,I33,0) -> 333238 | K33: 0.333238 | L33: 51.01459017
A34: 31 | C34: Colombia | D34: 1 | E34: 3 | F34: 4 | G34: 8 | H34: =SUMPRODUCT(D34:F34,$D$1:$F$1) -> 13 | I34: =MATCH(C34, 'GDP-2012'!$C$4:$C$189,0) -> 37 | J34: =OFFSET('GDP-2012'!$D$3,I34,0) -> 328422 | K34: 0.328422 | L34: 39.58321915
A35: 32 | C35: Venezuela | D35: 1 | E35: - | F35: - | G35: 1 | H35: =SUMPRODUCT(D35:F35,$D$1:$F$1) -> 3 | I35: =MATCH(C35, 'GDP-2012'!$C$4:$C$189,0) -> 182 | J35: =OFFSET('GDP-2012'!$D$3,I35,0) -> 315841 | K35: 0.315841 | L35: 9.49845017
A36: 33 | C36: Greece | D36: - | E36: - | F36: 2 | G36: 2 | H36: =SUMPRODUCT(D36:F36,$D$1:$F$1) -> 2 | I36: =MATCH(C36, 'GDP-2012'!$C$4:$C$189,0) -> 66 | J36: =OFFSET('GDP-2012'!$D$3,I36,0) -> 303065 | K36: 0.303065 | L36: 6.599244387
A37: 34 | C37: Malaysia | D37: - | E37: 1 | F37: 1 | G37: 2 | H37: =SUMPRODUCT(D37:F37,$D$1:$F$1) -> 3 | I37: =MATCH(C37, 'GDP-2012'!$C$4:$C$189,0) -> 104 | J37: =OFFSET('GDP-2012'!$D$3,I37,0) -> 278680 | K37: 0.27868 | L37: 10.76503517
A38: 35 | C38: Finland | D38: - | E38: 1 | F38: 2 | G38: 3 | H38: =SUMPRODUCT(D38:F38,$D$1:$F$1) -> 4 | I38: =MATCH(C38, 'GDP-2012'!$C$4:$C$189,0) -> 59 | J38: =OFFSET('GDP-2012'!$D$3,I38,0) -> 266553 | K38: 0.266553 | L38: 15.00639648
A39: 36 | C39: Singapore | D39: - | E39: - | F39: 2 | G39: 2 | H39: =SUMPRODUCT(D39:F39,$D$1:$F$1) -> 2 | I39: =MATCH(C39, 'GDP-2012'!$C$4:$C$189,0) -> 149 | J39: =OFFSET('GDP-2012'!$D$3,I39,0) -> 259849 | K39: 0.259849 | L39: 7.696777744
A40: 37 | C40: Hong Kong | D40: - | E40: - | F40: 1 | G40: 1 | H40: =SUMPRODUCT(D40:F40,$D$1:$F$1) -> 1 | I40: =MATCH(C40, 'GDP-2012'!$C$4:$C$189,0) -> 74 | J40: =OFFSET('GDP-2012'!$D$3,I40,0) -> 243302 | K40: 0.243302 | L40: 4.110118289
A41: 38 | C41: Portugal | D41: - | E41: 1 | F41: - | G41: 1 | H41: =SUMPRODUCT(D41:F41,$D$1:$F$1) -> 2 | I41: =MATCH(C41, 'GDP-2012'!$C$4:$C$189,0) -> 133 | J41: =OFFSET('GDP-2012'!$D$3,I41,0) -> 238880 | K41: 0.23888 | L41: 8.372404555
A42: 39 | C42: Egypt | D42: - | E42: 2 | F42: - | G42: 2 | H42: =SUMPRODUCT(D42:F42,$D$1:$F$1) -> 4 | I42: =MATCH(C42, 'GDP-2012'!$C$4:$C$189,0) -> 52 | J42: =OFFSET('GDP-2012'!$D$3,I42,0) -> 235719 | K42: 0.235719 | L42: 16.96935758
A43: 40 | C43: Ireland | D43: 1 | E43: 1 | F43: 3 | G43: 5 | H43: =SUMPRODUCT(D43:F43,$D$1:$F$1) -> 8 | I43: =MATCH(C43, 'GDP-2012'!$C$4:$C$189,0) -> 81 | J43: =OFFSET('GDP-2012'!$D$3,I43,0) -> 217669 | K43: 0.217669 | L43: 36.75305165
A44: 41 | C44: Czech Republic | D44: 4 | E44: 3 | F44: 3 | G44: 10 | H44: =SUMPRODUCT(D44:F44,$D$1:$F$1) -> 21 | I44: =MATCH(C44, 'GDP-2012'!$C$4:$C$189,0) -> 46 | J44: =OFFSET('GDP-2012'!$D$3,I44,0) -> 215265 | K44: 0.215265 | L44: 97.55417741
A45: 42 | C45: Algeria | D45: 1 | E45: - | F45: - | G45: 1 | H45: =SUMPRODUCT(D45:F45,$D$1:$F$1) -> 3 | I45: =MATCH(C45, 'GDP-2012'!$C$4:$C$189,0) -> 3 | J45: =OFFSET('GDP-2012'!$D$3,I45,0) -> 190709 | K45: 0.190709 | L45: 15.73077306
A46: 43 | C46: Romania | D46: 2 | E46: 5 | F46: 2 | G46: 9 | H46: =SUMPRODUCT(D46:F46,$D$1:$F$1) -> 18 | I46: =MATCH(C46, 'GDP-2012'!$C$4:$C$189,0) -> 136 | J46: =OFFSET('GDP-2012'!$D$3,I46,0) -> 189776 | K46: 0.189776 | L46: 94.84866369
A47: 44 | C47: Kazakhstan | D47: 7 | E47: 1 | F47: 5 | G47: 13 | H47: =SUMPRODUCT(D47:F47,$D$1:$F$1) -> 28 | I47: =MATCH(C47, 'GDP-2012'!$C$4:$C$189,0) -> 87 | J47: =OFFSET('GDP-2012'!$D$3,I47,0) -> 178312 | K47: 0.178312 | L47: 157.0281305
A48: 45 | C48: Kuwait | D48: - | E48: - | F48: 1 | G48: 1 | H48: =SUMPRODUCT(D48:F48,$D$1:$F$1) -> 1 | I48: =MATCH(C48, 'GDP-2012'!$C$4:$C$189,0) -> 91 | J48: =OFFSET('GDP-2012'!$D$3,I48,0) -> 176667 | K48: 0.176667 | L48: 5.660366679
A49: 46 | C49: Qatar | D49: - | E49: - | F49: 2 | G49: 2 | H49: =SUMPRODUCT(D49:F49,$D$1:$F$1) -> 2 | I49: =MATCH(C49, 'GDP-2012'!$C$4:$C$189,0) -> 135 | J49: =OFFSET('GDP-2012'!$D$3,I49,0) -> 173847 | K49: 0.173847 | L49: 11.50436878
A50: 47 | C50: Ukraine | D50: 6 | E50: 5 | F50: 9 | G50: 20 | H50: =SUMPRODUCT(D50:F50,$D$1:$F$1) -> 37 | I50: =MATCH(C50, 'GDP-2012'!$C$4:$C$189,0) -> 175 | J50: =OFFSET('GDP-2012'!$D$3,I50,0) -> 164960 | K50: 0.16496 | L50: 224.2967992
A51: 48 | C51: New Zealand | D51: 6 | E51: 2 | F51: 5 | G51: 13 | H51: =SUMPRODUCT(D51:F51,$D$1:$F$1) -> 27 | I51: =MATCH(C51, 'GDP-2012'!$C$4:$C$189,0) -> 119 | J51: =OFFSET('GDP-2012'!$D$3,I51,0) -> 161851 | K51: 0.161851 | L51: 166.8201
A52: 49 | C52: Hungary | D52: 8 | E52: 4 | F52: 5 | G52: 17 | H52: =SUMPRODUCT(D52:F52,$D$1:$F$1) -> 37 | I52: =MATCH(C52, 'GDP-2012'!$C$4:$C$189,0) -> 75 | J52: =OFFSET('GDP-2012'!$D$3,I52,0) -> 140303 | K52: 0.140303 | L52: 263.7149598
A53: 50 | C53: Morocco | D53: - | E53: - | F53: 1 | G53: 1 | H53: =SUMPRODUCT(D53:F53,$D$1:$F$1) -> 1 | I53: =MATCH(C53, 'GDP-2012'!$C$4:$C$189,0) -> 114 | J53: =OFFSET('GDP-2012'!$D$3,I53,0) -> 99241 | K53: 0.099241 | L53: 10.07648049
A56: 51 | C56: Puerto Rico | D56: - | E56: 1 | F56: 1 | G56: 2 | H56: =SUMPRODUCT(D56:F56,$D$1:$F$1) -> 3 | I56: =MATCH(C56, 'GDP-2012'!$C$4:$C$189,0) -> 134 | J56: =OFFSET('GDP-2012'!$D$3,I56,0) -> 96261 | K56: =J56/1000/1000 -> 0.096261 | L56: =H56/K56 -> 31.16526942
A57: 52 | C57: Slovakia | D57: - | E57: 1 | F57: 3 | G57: 4 | H57: =SUMPRODUCT(D57:F57,$D$1:$F$1) -> 5 | I57: =MATCH(C57, 'GDP-2012'!$C$4:$C$189,0) -> 150 | J57: =OFFSET('GDP-2012'!$D$3,I57,0) -> 96089 | K57: 0.096089 | L57: 52.03509247
A58: 53 | C58: Croatia | D58: 3 | E58: 1 | F58: 2 | G58: 6 | H58: =SUMPRODUCT(D58:F58,$D$1:$F$1) -> 13 | I58: =MATCH(C58, 'GDP-2012'!$C$4:$C$189,0) -> 43 | J58: =OFFSET('GDP-2012'!$D$3,I58,0) -> 63842 | K58: 0.063842 | L58: 203.6277059
A59: 54 | C59: Cuba | D59: 5 | E59: 3 | F59: 6 | G59: 14 | H59: =SUMPRODUCT(D59:F59,$D$1:$F$1) -> 27 | I59: =MATCH(C59, 'GDP-2012'!$C$4:$C$189,0) -> 44 | J59: =OFFSET('GDP-2012'!$D$3,I59,0) -> 62705 | K59: 0.062705 | L59: 430.5876724
A60: 55 | C60: Azerbaijan | D60: 2 | E60: 2 | F60: 6 | G60: 10 | H60: =SUMPRODUCT(D60:F60,$D$1:$F$1) -> 16 | I60: =MATCH(C60, 'GDP-2012'!$C$4:$C$189,0) -> 10 | J60: =OFFSET('GDP-2012'!$D$3,I60,0) -> 62321 | K60: 0.062321 | L60: 256.7352899
A61: 56 | C61: Dominican Republic | D61: 1 | E61: 1 | F61: - | G61: 2 | H61: =SUMPRODUCT(D61:F61,$D$1:$F$1) -> 5 | I61: =MATCH(C61, 'GDP-2012'!$C$4:$C$189,0) -> 50 | J61: =OFFSET('GDP-2012'!$D$3,I61,0) -> 56700 | K61: 0.0567 | L61: 88.18342152
A62: 57 | C62: Belarus | D62: 3 | E62: 5 | F62: 5 | G62: 13 | H62: =SUMPRODUCT(D62:F62,$D$1:$F$1) -> 24 | I62: =MATCH(C62, 'GDP-2012'!$C$4:$C$189,0) -> 15 | J62: =OFFSET('GDP-2012'!$D$3,I62,0) -> 55483 | K62: 0.055483 | L62: 432.5649298
A63: 58 | C63: Bulgaria | D63: - | E63: 1 | F63: 1 | G63: 2 | H63: =SUMPRODUCT(D63:F63,$D$1:$F$1) -> 3 | I63: =MATCH(C63, 'GDP-2012'!$C$4:$C$189,0) -> 25 | J63: =OFFSET('GDP-2012'!$D$3,I63,0) -> 53514 | K63: 0.053514 | L63: 56.06009642
A64: 59 | C64: Slovenia | D64: 1 | E64: 1 | F64: 2 | G64: 4 | H64: =SUMPRODUCT(D64:F64,$D$1:$F$1) -> 7 | I64: =MATCH(C64, 'GDP-2012'!$C$4:$C$189,0) -> 151 | J64: =OFFSET('GDP-2012'!$D$3,I64,0) -> 49588 | K64: 0.049588 | L64: 141.1631846
A65: 60 | C65: Guatemala | D65: - | E65: 1 | F65: - | G65: 1 | H65: =SUMPRODUCT(D65:F65,$D$1:$F$1) -> 2 | I65: =MATCH(C65, 'GDP-2012'!$C$4:$C$189,0) -> 68 | J65: =OFFSET('GDP-2012'!$D$3,I65,0) -> 46897 | K65: 0.046897 | L65: 42.64665117
A66: 61 | C66: Tunisia | D66: 1 | E66: 1 | F66: 1 | G66: 3 | H66: =SUMPRODUCT(D66:F66,$D$1:$F$1) -> 6 | I66: =MATCH(C66, 'GDP-2012'!$C$4:$C$189,0) -> 170 | J66: =OFFSET('GDP-2012'!$D$3,I66,0) -> 46360 | K66: 0.04636 | L66: 129.4219154
A67: 62 | C67: Uzbekistan | D67: 1 | E67: - | F67: 3 | G67: 4 | H67: =SUMPRODUCT(D67:F67,$D$1:$F$1) -> 6 | I67: =MATCH(C67, 'GDP-2012'!$C$4:$C$189,0) -> 180 | J67: =OFFSET('GDP-2012'!$D$3,I67,0) -> 45353 | K67: 0.045353 | L67: 132.2955483
A68: 63 | C68: Serbia | D68: 1 | E68: 1 | F68: 2 | G68: 4 | H68: =SUMPRODUCT(D68:F68,$D$1:$F$1) -> 7 | I68: =MATCH(C68, 'GDP-2012'!$C$4:$C$189,0) -> 146 | J68: =OFFSET('GDP-2012'!$D$3,I68,0) -> 45064 | K68: 0.045064 | L68: 155.3346352
A69: 64 | C69: Lithuania | D69: 2 | E69: 1 | F69: 2 | G69: 5 | H69: =SUMPRODUCT(D69:F69,$D$1:$F$1) -> 10 | I69: =MATCH(C69, 'GDP-2012'!$C$4:$C$189,0) -> 99 | J69: =OFFSET('GDP-2012'!$D$3,I69,0) -> 42718 | K69: 0.042718 | L69: 234.0933564
A70: 65 | C70: Kenya | D70: 2 | E70: 4 | F70: 5 | G70: 11 | H70: =SUMPRODUCT(D70:F70,$D$1:$F$1) -> 19 | I70: =MATCH(C70, 'GDP-2012'!$C$4:$C$189,0) -> 88 | J70: =OFFSET('GDP-2012'!$D$3,I70,0) -> 34796 | K70: 0.034796 | L70: 546.0397747
A71: 66 | C71: Ethiopia | D71: 3 | E71: 1 | F71: 3 | G71: 7 | H71: =SUMPRODUCT(D71:F71,$D$1:$F$1) -> 14 | I71: =MATCH(C71, 'GDP-2012'!$C$4:$C$189,0) -> 57 | J71: =OFFSET('GDP-2012'!$D$3,I71,0) -> 31256 | K71: 0.031256 | L71: 447.9140005
A72: 67 | C72: Latvia | D72: 1 | E72: - | F72: 1 | G72: 2 | H72: =SUMPRODUCT(D72:F72,$D$1:$F$1) -> 4 | I72: =MATCH(C72, 'GDP-2012'!$C$4:$C$189,0) -> 94 | J72: =OFFSET('GDP-2012'!$D$3,I72,0) -> 28252 | K72: 0.028252 | L72: 141.5828968
A73: 68 | C73: North Korea | D73: 4 | E73: - | F73: 2 | G73: 6 | H73: =SUMPRODUCT(D73:F73,$D$1:$F$1) -> 14 | I73: =MATCH(C73, 'GDP-2012'!$C$4:$C$189,0) -> 123 | J73: =OFFSET('GDP-2012'!$D$3,I73,0) -> 28000 | K73: 0.028 | L73: 500
A74: 69 | C74: Bahrain | D74: - | E74: - | F74: 1 | G74: 1 | H74: =SUMPRODUCT(D74:F74,$D$1:$F$1) -> 1 | I74: =MATCH(C74, 'GDP-2012'!$C$4:$C$189,0) -> 12 | J74: =OFFSET('GDP-2012'!$D$3,I74,0) -> 26108 | K74: 0.026108 | L74: 38.30243603
A75: 70 | C75: Cyprus | D75: - | E75: 1 | F75: - | G75: 1 | H75: =SUMPRODUCT(D75:F75,$D$1:$F$1) -> 2 | I75: =MATCH(C75, 'GDP-2012'!$C$4:$C$189,0) -> 45 | J75: =OFFSET('GDP-2012'!$D$3,I75,0) -> 24949 | K75: 0.024949 | L75: 80.16353361
A76: 71 | C76: Trinidad and Tobago | D76: 1 | E76: - | F76: 3 | G76: 4 | H76: =SUMPRODUCT(D76:F76,$D$1:$F$1) -> 6 | I76: =MATCH(C76, 'GDP-2012'!$C$4:$C$189,0) -> 169 | J76: =OFFSET('GDP-2012'!$D$3,I76,0) -> 22707 | K76: 0.022707 | L76: 264.2356982
A77: 72 | C77: Estonia | D77: - | E77: 1 | F77: 1 | G77: 2 | H77: =SUMPRODUCT(D77:F77,$D$1:$F$1) -> 3 | I77: =MATCH(C77, 'GDP-2012'!$C$4:$C$189,0) -> 56 | J77: =OFFSET('GDP-2012'!$D$3,I77,0) -> 22225 | K77: 0.022225 | L77: 134.9831271
A78: 73 | C78: Afghanistan | D78: - | E78: - | F78: 1 | G78: 1 | H78: =SUMPRODUCT(D78:F78,$D$1:$F$1) -> 1 | I78: =MATCH(C78, 'GDP-2012'!$C$4:$C$189,0) -> 1 | J78: =OFFSET('GDP-2012'!$D$3,I78,0) -> 18181 | K78: 0.018181 | L78: 55.00247511
A79: 74 | C79: Botswana | D79: - | E79: 1 | F79: - | G79: 1 | H79: =SUMPRODUCT(D79:F79,$D$1:$F$1) -> 2 | I79: =MATCH(C79, 'GDP-2012'!$C$4:$C$189,0) -> 22 | J79: =OFFSET('GDP-2012'!$D$3,I79,0) -> 17570 | K79: 0.01757 | L79: 113.8303927
A80: 75 | C80: Uganda | D80: 1 | E80: - | F80: - | G80: 1 | H80: =SUMPRODUCT(D80:F80,$D$1:$F$1) -> 3 | I80: =MATCH(C80, 'GDP-2012'!$C$4:$C$189,0) -> 174 | J80: =OFFSET('GDP-2012'!$D$3,I80,0) -> 16810 | K80: 0.01681 | L80: 178.4651993
A81: 76 | C81: Gabon | D81: - | E81: 1 | F81: - | G81: 1 | H81: =SUMPRODUCT(D81:F81,$D$1:$F$1) -> 2 | I81: =MATCH(C81, 'GDP-2012'!$C$4:$C$189,0) -> 61 | J81: =OFFSET('GDP-2012'!$D$3,I81,0) -> 16176 | K81: 0.016176 | L81: 123.6399604
A82: 77 | C82: Jamaica | D82: 4 | E82: 4 | F82: 4 | G82: 12 | H82: =SUMPRODUCT(D82:F82,$D$1:$F$1) -> 24 | I82: =MATCH(C82, 'GDP-2012'!$C$4:$C$189,0) -> 84 | J82: =OFFSET('GDP-2012'!$D$3,I82,0) -> 14807 | K82: 0.014807 | L82: 1620.855001
A83: 78 | C83: Georgia | D83: 1 | E83: 3 | F83: 3 | G83: 7 | H83: =SUMPRODUCT(D83:F83,$D$1:$F$1) -> 12 | I83: =MATCH(C83, 'GDP-2012'!$C$4:$C$189,0) -> 63 | J83: =OFFSET('GDP-2012'!$D$3,I83,0) -> 14347 | K83: 0.014347 | L83: 836.4117934
A84: 79 | C84: Armenia | D84: - | E84: 1 | F84: 2 | G84: 3 | H84: =SUMPRODUCT(D84:F84,$D$1:$F$1) -> 4 | I84: =MATCH(C84, 'GDP-2012'!$C$4:$C$189,0) -> 7 | J84: =OFFSET('GDP-2012'!$D$3,I84,0) -> 10106 | K84: 0.010106 | L84: 395.8044726
A85: 80 | C85: Mongolia | D85: - | E85: 2 | F85: 3 | G85: 5 | H85: =SUMPRODUCT(D85:F85,$D$1:$F$1) -> 7 | I85: =MATCH(C85, 'GDP-2012'!$C$4:$C$189,0) -> 112 | J85: =OFFSET('GDP-2012'!$D$3,I85,0) -> 8506 | K85: 0.008506 | L85: 822.9485069
A86: 81 | C86: Bahamas | D86: 1 | E86: - | F86: - | G86: 1 | H86: =SUMPRODUCT(D86:F86,$D$1:$F$1) -> 3 | I86: =MATCH(C86, 'GDP-2012'!$C$4:$C$189,0) -> 11 | J86: =OFFSET('GDP-2012'!$D$3,I86,0) -> 8074 | K86: 0.008074 | L86: 371.5630419
A87: 82 | C87: Moldova | D87: - | E87: - | F87: 2 | G87: 2 | H87: =SUMPRODUCT(D87:F87,$D$1:$F$1) -> 2 | I87: =MATCH(C87, 'GDP-2012'!$C$4:$C$189,0) -> 111 | J87: =OFFSET('GDP-2012'!$D$3,I87,0) -> 7003 | K87: 0.007003 | L87: 285.5918892
A88: 83 | C88: Tajikistan | D88: - | E88: - | F88: 1 | G88: 1 | H88: =SUMPRODUCT(D88:F88,$D$1:$F$1) -> 1 | I88: =MATCH(C88, 'GDP-2012'!$C$4:$C$189,0) -> 163 | J88: =OFFSET('GDP-2012'!$D$3,I88,0) -> 6523 | K88: 0.006523 | L88: 153.3036946
A89: 84 | C89: Montenegro | D89: - | E89: 1 | F89: - | G89: 1 | H89: =SUMPRODUCT(D89:F89,$D$1:$F$1) -> 2 | I89: =MATCH(C89, 'GDP-2012'!$C$4:$C$189,0) -> 113 | J89: =OFFSET('GDP-2012'!$D$3,I89,0) -> 4536 | K89: 0.004536 | L89: 440.9171076
A90: 85 | C90: Grenada | D90: 1 | E90: - | F90: - | G90: 1 | H90: =SUMPRODUCT(D90:F90,$D$1:$F$1) -> 3 | I90: =MATCH(C90, 'GDP-2012'!$C$4:$C$189,0) -> 67 | J90: =OFFSET('GDP-2012'!$D$3,I90,0) -> 822 | K90: 0.000822 | L90: 3649.635036

Sheet GDP-2012
F3: Source: Wikipedia, IMF 2011 GDP
B4: 1 | C4: Afghanistan | D4: 18181
B5: 2 | C5: Albania | D5: 12847
B6: 3 | C6: Algeria | D6: 190709
B7: 4 | C7: Angola | D7: 100948
B8: 5 | C8: Antigua and Barbuda | D8: 1187
B9: 6 | C9: Argentina | D9: 447644
B10: 7 | C10: Armenia | D10: 10106
B11: 8 | C11: Australia | D11: 1488221
B12: 9 | C12: Austria | D12: 419243
B13: 10 | C13: Azerbaijan | D13: 62321
B14: 11 | C14: Bahamas | D14: 8074
B15: 12 | C15: Bahrain | D15: 26108
B16: 13 | C16: Bangladesh | D16: 113032
B17: 14 | C17: Barbados | D17: 4478
B18: 15 | C18: Belarus | D18: 55483
B19: 16 | C19: Belgium | D19: 513396
B20: 17 | C20: Belize | D20: 1474
B21: 18 | C21: Benin | D21: 7306
B22: 19 | C22: Bhutan | D22: 1488
B23: 20 | C23: Bolivia | D23: 24604
B24: 21 | C24: Bosnia and Herzegovina | D24: 17965
B25: 22 | C25: Botswana | D25: 17570
B26: 23 | C26: Brazil | D26: 2492908
B27: 24 | C27: Brunei | D27: 15533
B28: 25 | C28: Bulgaria | D28: 53514
B29: 26 | C29: Burkina Faso | D29: 9981
B30: 27 | C30: Burma | D30: 51925
B31: 28 | C31: Burundi | D31: 2356
B32: 29 | C32: Cambodia | D32: 12861
B33: 30 | C33: Cameroon | D33: 25759
B34: 31 | C34: Canada | D34: 1736869
B35: 32 | C35: Cape Verde | D35: 1903
B36: 33 | C36: Central African Republic | D36: 2165
B37: 34 | C37: Chad | D37: 9344
B38: 35 | C38: Chile | D38: 248411
B39: 36 | C39: China | D39: 7298147
B40: 37 | C40: Colombia | D40: 328422
B41: 38 | C41: Comoros | D41: 614
B42: 39 | C42: Congo, Democratic Republic of the | D42: 15668
C43: Congo, Republic of the | D43: 14769
B44: 40 | C44: Costa Rica | D44: 40947
B45: 41 | C45: Côte d'Ivoire | D45: 24096
B46: 42 | C46: Croatia | D46: 63842
C47: Cuba | D47: 62705 | E47: Note: 2009 from World Bank. IMF doesn't keep Cuba stats.
B48: 43 | C48: Cyprus | D48: 24949
B49: 44 | C49: Czech Republic | D49: 215265
B50: 45 | C50: Denmark | D50: 333238
B51: 46 | C51: Djibouti | D51: 1239
B52: 47 | C52: Dominica | D52: 489
B53: 48 | C53: Dominican Republic | D53: 56700
B54: 49 | C54: Ecuador | D54: 66381
B55: 50 | C55: Egypt | D55: 235719
B56: 51 | C56: El Salvador | D56: 22761
B57: 52 | C57: Equatorial Guinea | D57: 19805
B58: 53 | C58: Eritrea | D58: 2609
B59: 54 | C59: Estonia | D59: 22225
B60: 55 | C60: Ethiopia | D60: 31256
B61: 56 | C61: Fiji | D61: 3546
B62: 57 | C62: Finland | D62: 266553
B63: 58 | C63: France | D63: 2776324
B64: 59 | C64: Gabon | D64: 16176
B65: 60 | C65: Gambia, The | D65: 977
B66: 61 | C66: Georgia | D66: 14347
B67: 62 | C67: Germany | D67: 3577031
B68: 63 | C68: Ghana | D68: 37158
B69: 64 | C69: Greece | D69: 303065
B70: 65 | C70: Grenada | D70: 822
B71: 66 | C71: Guatemala | D71: 46897
B72: 67 | C72: Guinea | D72: 5212
B73: 68 | C73: Guinea-Bissau | D73: 969
B74: 69 | C74: Guyana | D74: 2480
B75: 70 | C75: Haiti | D75: 7388
B76: 71 | C76: Honduras | D76: 17381
B77: 72 | C77: Hong Kong | D77: 243302
B78: 73 | C78: Hungary | D78: 140303
B79: 74 | C79: Iceland | D79: 14048
B80: 75 | C80: India | D80: 1676143
B81: 76 | C81: Indonesia | D81: 845680
B82: 77 | C82: Iran | D82: 482445
B83: 78 | C83: Iraq | D83: 115388
B84: 79 | C84: Ireland | D84: 217669
B85: 80 | C85: Israel | D85: 242897
B86: 81 | C86: Italy | D86: 2198730
B87: 82 | C87: Jamaica | D87: 14807
B88: 83 | C88: Japan | D88: 5869471
B89: 84 | C89: Jordan | D89: 29233
B90: 85 | C90: Kazakhstan | D90: 178312
B91: 86 | C91: Kenya | D91: 34796
B92: 87 | C92: Kiribati | D92: 167
B93: 88 | C93: Kosovo | D93: 6452
B94: 89 | C94: Kuwait | D94: 176667
B95: 90 | C95: Kyrgyzstan | D95: 5920
B96: 91 | C96: Laos | D96: 7891
B97: 92 | C97: Latvia | D97: 28252
B98: 93 | C98: Lebanon | D98: 39039
B99: 94 | C99: Lesotho | D99: 2453
B100: 95 | C100: Liberia | D100: 1154
B101: 96 | C101: Libya | D101: 36874
B102: 97 | C102: Lithuania | D102: 42718
B103: 98 | C103: Luxembourg | D103: 58412
B104: 99 | C104: Macedonia, Republic of | D104: 10327
B105: 100 | C105: Madagascar | D105: 10025
B106: 101 | C106: Malawi | D106: 5673
B107: 102 | C107: Malaysia | D107: 278680
B108: 103 | C108: Maldives | D108: 1944
B109: 104 | C109: Mali | D109: 10600
B110: 105 | C110: Malta | D110: 8896
B111: 106 | C111: Mauritania | D111: 4200
B112: 107 | C112: Mauritius | D112: 11313
B113: 108 | C113: Mexico | D113: 1154784
B114: 109 | C114: Moldova | D114: 7003
B115: 110 | C115: Mongolia | D115: 8506
B116: 111 | C116: Montenegro | D116: 4536
B117: 112 | C117: Morocco | D117: 99241
B118: 113 | C118: Mozambique | D118: 12827
B119: 114 | C119: Namibia | D119: 12461
B120: 115 | C120: Nepal | D120: 18580
B121: 116 | C121: Netherlands | D121: 840433
B122: 117 | C122: New Zealand | D122: 161851
B123: 118 | C123: Nicaragua | D123: 7297
B124: 119 | C124: Niger | D124: 6022
B125: 120 | C125: Nigeria | D125: 238920
C126: North Korea | D126: 28000 | E126: CIA World Factbook 2009
B127: 121 | C127: Norway | D127: 483650
B128: 122 | C128: Oman | D128: 71888
B129: 123 | C129: Pakistan | D129: 210566
B130: 124 | C130: Panama | D130: 30569
B131: 125 | C131: Papua New Guinea | D131: 12655
B132: 126 | C132: Paraguay | D132: 21236
B133: 127 | C133: Peru | D133: 173502
B134: 128 | C134: Philippines | D134: 213129
B135: 129 | C135: Poland | D135: 513821
B136: 130 | C136: Portugal | D136: 238880
C137: Puerto Rico | D137: 96261 | E137: World Bank, 2010
B138: 131 | C138: Qatar | D138: 173847
B139: 132 | C139: Romania | D139: 189776
B140: 133 | C140: Russia | D140: 1850401
B141: 134 | C141: Rwanda | D141: 6179
B142: 135 | C142: Saint Kitts and Nevis | D142: 715
B143: 136 | C143: Saint Lucia | D143: 1239
B144: 137 | C144: Saint Vincent and the Grenadines | D144: 695
B145: 138 | C145: Samoa | D145: 630
B146: 139 | C146: São Tomé and Príncipe | D146: 248
B147: 140 | C147: Saudi Arabia | D147: 577595
B148: 141 | C148: Senegal | D148: 14461
B149: 142 | C149: Serbia | D149: 45064
B150: 143 | C150: Seychelles | D150: 1014
B151: 144 | C151: Sierra Leone | D151: 2196
B152: 145 | C152: Singapore | D152: 259849
B153: 146 | C153: Slovakia | D153: 96089
B154: 147 | C154: Slovenia | D154: 49588
B155: 148 | C155: Solomon Islands | D155: 840
B156: 149 | C156: South Africa | D156: 408074
B157: 150 | C157: South Korea | D157: 1116247
B158: 151 | C158: Spain | D158: 1493513
B159: 152 | C159: Sri Lanka | D159: 59095
B160: 153 | C160: Sudan + South Sudan | D160: 64750
B161: 154 | C161: Suriname | D161: 3790
B162: 155 | C162: Swaziland | D162: 3947
B163: 156 | C163: Sweden | D163: 538237
B164: 157 | C164: Switzerland | D164: 636059
B165: 158 | C165: Taiwan | D165: 466832
B166: 159 | C166: Tajikistan | D166: 6523
B167: 160 | C167: Tanzania | D167: 23333
B168: 161 | C168: Thailand | D168: 345649
B169: 162 | C169: Timor-Leste | D169: 4315
B170: 163 | C170: Togo | D170: 3611
B171: 164 | C171: Tonga | D171: 439
B172: 165 | C172: Trinidad and Tobago | D172: 22707
B173: 166 | C173: Tunisia | D173: 46360
B174: 167 | C174: Turkey | D174: 778089
B175: 168 | C175: Turkmenistan | D175: 25742
B176: 169 | C176: Tuvalu | D176: 35
B177: 170 | C177: Uganda | D177: 16810
B178: 171 | C178: Ukraine | D178: 164960
B179: 172 | C179: United Arab Emirates | D179: 360136
B180: 173 | C180: United Kingdom | D180: 2417570
B181: 174 | C181: United States | D181: 15094025
B182: 175 | C182: Uruguay | D182: 46872
B183: 176 | C183: Uzbekistan | D183: 45353
B184: 177 | C184: Vanuatu | D184: 743
B185: 178 | C185: Venezuela | D185: 315841
B186: 179 | C186: Vietnam | D186: 122722
B187: 180 | C187: Yemen | D187: 33675
B188: 181 | C188: Zambia | D188: 19206
B189: 182 | C189: Zimbabwe | D189: 9323
B190: Syria | C190: n/a
